OrganisationNameLabel,OrganisationURI,EffectiveDate,Directorate/ServiceWhereExpenditureIncurred,ServiceCategoryLabel,ServiceCategoryURI,Supplier,SupplierRegisteredCompany Number,PaymentDate,TransactionNumber,NetAmount,IrrecoverableVAT,PurposeOfSpend,ProcurementClassification:ProclassLabel,ProcrementClassification:ProClassCode
South Lakeland District Council,http://opendatacommunities.org/id/district-council/south-lakeland,28/02/2017,Development Management,Cultural Environmental Regulatory & Planning Services,http://opendatacommunities.org/def/concept/finance/sercop/objective/104,A G & P Jackson,,27/02/2017,65599,385,0,Agricultural Viability Appraisal -,150000,Consultancy
South Lakeland District Council,http://opendatacommunities.org/id/district-council/south-lakeland,28/02/2017,Environment and Housing,SLDC as Agent,,ABRITAS LTD,4101079,20/02/2017,65512,109.98,0,Costs with Disc Charge 2016-17 - Cumbria,151200,Consultancy Efficiency
South Lakeland District Council,http://opendatacommunities.org/id/district-council/south-lakeland,28/02/2017,Environment and Housing,Housing,http://opendatacommunities.org/def/concept/finance/sercop/objective/108,Accessible Bathrooms,,22/02/2017,65633,3805,0,"Sandgate, Kendal",101000,Building Bathrooms
South Lakeland District Council,http://opendatacommunities.org/id/district-council/south-lakeland,28/02/2017,Development Implementation,Cultural Environmental Regulatory & Planning Services,http://opendatacommunities.org/def/concept/finance/sercop/objective/104,ADECCO UK LIMITED,593232,13/02/2017,65260,346.15,0,SLDC Project Officer - ,261400,HR Temporary & Agency Staff
South Lakeland District Council,http://opendatacommunities.org/id/district-council/south-lakeland,28/02/2017,Development Implementation,Cultural Environmental Regulatory & Planning Services,http://opendatacommunities.org/def/concept/finance/sercop/objective/104,ADECCO UK LIMITED,593232,13/02/2017,65261,321.36,0,Administrator - (24hrs,261400,HR Temporary & Agency Staff
South Lakeland District Council,http://opendatacommunities.org/id/district-council/south-lakeland,28/02/2017,Development Implementation,Central Services,http://opendatacommunities.org/def/concept/finance/sercop/objective/102,ADECCO UK LIMITED,593232,13/02/2017,65262,118.7,0,Cleaner for SLDC - ,261400,HR Temporary & Agency Staff
South Lakeland District Council,http://opendatacommunities.org/id/district-council/south-lakeland,28/02/2017,Kendal Town Hall,Highways & Transport Services,http://opendatacommunities.org/def/concept/finance/sercop/objective/107,ADECCO UK LIMITED,593232,20/02/2017,65263,262.02,0,Agency staff to cover Parking Assistant,261400,HR Temporary & Agency Staff
South Lakeland District Council,http://opendatacommunities.org/id/district-council/south-lakeland,28/02/2017,Development Implementation,Central Services,http://opendatacommunities.org/def/concept/finance/sercop/objective/102,ADECCO UK LIMITED,593232,13/02/2017,65264,23.74,0,Cleaner for SLDC - (6 hours per,261400,HR Temporary & Agency Staff
South Lakeland District Council,http://opendatacommunities.org/id/district-council/south-lakeland,28/02/2017,Kendal Town Hall,Highways & Transport Services,http://opendatacommunities.org/def/concept/finance/sercop/objective/107,ADECCO UK LIMITED,593232,13/02/2017,65390,218.99,0,Agency cover for cash collecting service,261400,HR Temporary & Agency Staff
South Lakeland District Council,http://opendatacommunities.org/id/district-council/south-lakeland,28/02/2017,Kendal Town Hall,Highways & Transport Services,http://opendatacommunities.org/def/concept/finance/sercop/objective/107,ADECCO UK LIMITED,593232,13/02/2017,65392,723.24,0,Agency staff to cover Parking Assistant,261400,HR Temporary & Agency Staff
South Lakeland District Council,http://opendatacommunities.org/id/district-council/south-lakeland,28/02/2017,Kendal Town Hall,Highways & Transport Services,http://opendatacommunities.org/def/concept/finance/sercop/objective/107,ADECCO UK LIMITED,593232,13/02/2017,65393,396.06,0,Agency staff to cover Parking Assistant,261400,HR Temporary & Agency Staff
South Lakeland District Council,http://opendatacommunities.org/id/district-council/south-lakeland,28/02/2017,Business Support Community Services,Internal Trading Accounts,,AINSWORTH'S GARAGE,,06/02/2017,65095,29.25,0,Tyre repair,381400,Vehicle Mgt Maintenance
South Lakeland District Council,http://opendatacommunities.org/id/district-council/south-lakeland,28/02/2017,Business Support Community Services,Internal Trading Accounts,,AINSWORTH'S GARAGE,,15/02/2017,65377,29.25,0,Replace tyre,381400,Vehicle Mgt Maintenance
South Lakeland District Council,http://opendatacommunities.org/id/district-council/south-lakeland,28/02/2017,Business Support Community Services,Cultural Environmental Regulatory & Planning Services,http://opendatacommunities.org/def/concept/finance/sercop/objective/104,Air Quality Data Management,,27/02/2017,65641,495,0,Validation of Air Quality Monitoring,181400,Environment Monitoring
South Lakeland District Council,http://opendatacommunities.org/id/district-council/south-lakeland,28/02/2017,Business Support Community Services,Internal Trading Accounts,,ALAN MYERSCOUGH LTD,2027076,27/02/2017,65687,250,0,Repair SL095,381400,Vehicle Mgt Maintenance
South Lakeland District Council,http://opendatacommunities.org/id/district-council/south-lakeland,28/02/2017,Environment and Housing,Housing Services,http://opendatacommunities.org/def/concept/finance/sercop/objective/108,ALLERDALE BOROUGH COUNCIL,,27/02/2017,65667,400,0,Payment for 'Huddle' software for,908000,Public Bodies Council support services
South Lakeland District Council,http://opendatacommunities.org/id/district-council/south-lakeland,28/02/2017,Financial Services,Central Services,http://opendatacommunities.org/def/concept/finance/sercop/objective/102,ALLPAY.NET LTD (NCR),6871069,02/01/2017,65033,15.24,0,Inv 457113 SLSU 31.12.16,209999,Financial Services Not Elsewhere Classif
South Lakeland District Council,http://opendatacommunities.org/id/district-council/south-lakeland,28/02/2017,Financial Services,Central Services,http://opendatacommunities.org/def/concept/finance/sercop/objective/102,ALLPAY.NET LTD (NCR),6871069,02/01/2017,65034,400.2,0,Inv 457113 SLSU 31.12.16,209999,Financial Services Not Elsewhere Classif
South Lakeland District Council,http://opendatacommunities.org/id/district-council/south-lakeland,28/02/2017,Financial Services,Central Services,http://opendatacommunities.org/def/concept/finance/sercop/objective/102,ALLPAY.NET LTD (NCR),6871069,02/01/2017,65035,270.81,0,Inv 457113 SLSU 31.12.16,209999,Financial Services Not Elsewhere Classif
South Lakeland District Council,http://opendatacommunities.org/id/district-council/south-lakeland,28/02/2017,Financial Services,Central Services,http://opendatacommunities.org/def/concept/finance/sercop/objective/102,ALLPAY.NET LTD (NCR),6871069,02/01/2017,65036,646.72,0,Inv 457113 SLSU 31.12.16,209999,Financial Services Not Elsewhere Classif
South Lakeland District Council,http://opendatacommunities.org/id/district-council/south-lakeland,28/02/2017,Financial Services,Central Services,http://opendatacommunities.org/def/concept/finance/sercop/objective/102,ALLPAY.NET LTD (NCR),6871069,02/01/2017,65037,11.44,0,Inv 457113 SLSU 31.12.16,209999,Financial Services Not Elsewhere Classif
South Lakeland District Council,http://opendatacommunities.org/id/district-council/south-lakeland,28/02/2017,Financial Services,Central Services,http://opendatacommunities.org/def/concept/finance/sercop/objective/102,ALLPAY.NET LTD (NCR),6871069,02/01/2017,65038,29.42,0,Inv 457113 SLSU 31.12.16,209999,Financial Services Not Elsewhere Classif
South Lakeland District Council,http://opendatacommunities.org/id/district-council/south-lakeland,28/02/2017,Financial Services,Central Services,http://opendatacommunities.org/def/concept/finance/sercop/objective/102,ALLPAY.NET LTD (NCR),6871069,02/01/2017,65039,19.77,0,Inv 457113 SLSU 31.12.16,209999,Financial Services Not Elsewhere Classif
South Lakeland District Council,http://opendatacommunities.org/id/district-council/south-lakeland,28/02/2017,Financial Services,Central Services,http://opendatacommunities.org/def/concept/finance/sercop/objective/102,ALLPAY.NET LTD (NCR),6871069,02/01/2017,65040,17.58,0,Inv 457113 SLSU 31.12.16,209999,Financial Services Not Elsewhere Classif
South Lakeland District Council,http://opendatacommunities.org/id/district-council/south-lakeland,28/02/2017,Financial Services,Central Services,http://opendatacommunities.org/def/concept/finance/sercop/objective/102,ALLPAY.NET LTD (NCR),6871069,01/02/2017,65312,313.26,0,Allpay Inv 460517 SLCO 31/01/17,209999,Financial Services Not Elsewhere Classif
South Lakeland District Council,http://opendatacommunities.org/id/district-council/south-lakeland,28/02/2017,Financial Services,Central Services,http://opendatacommunities.org/def/concept/finance/sercop/objective/102,ALLPAY.NET LTD (NCR),6871069,01/02/2017,65315,13.83,0,Allpay Inv 460517 SLCO 31/01/17,209999,Financial Services Not Elsewhere Classif
South Lakeland District Council,http://opendatacommunities.org/id/district-council/south-lakeland,28/02/2017,Financial Services,Central Services,http://opendatacommunities.org/def/concept/finance/sercop/objective/102,ALLPAY.NET LTD (NCR),6871069,01/02/2017,65318,289.55,0,Allpay Inv 460517 SLCO 31/01/17,209999,Financial Services Not Elsewhere Classif
South Lakeland District Council,http://opendatacommunities.org/id/district-council/south-lakeland,28/02/2017,Financial Services,Central Services,http://opendatacommunities.org/def/concept/finance/sercop/objective/102,ALLPAY.NET LTD (NCR),6871069,01/02/2017,65319,22.89,0,Allpay Inv 460517 SLCO 31/01/17,209999,Financial Services Not Elsewhere Classif
South Lakeland District Council,http://opendatacommunities.org/id/district-council/south-lakeland,28/02/2017,Financial Services,Central Services,http://opendatacommunities.org/def/concept/finance/sercop/objective/102,ALLPAY.NET LTD (NCR),6871069,01/02/2017,65320,27.04,0,Allpay Inv 460517 SLCO 31/01/17,209999,Financial Services Not Elsewhere Classif
South Lakeland District Council,http://opendatacommunities.org/id/district-council/south-lakeland,28/02/2017,Financial Services,Central Services,http://opendatacommunities.org/def/concept/finance/sercop/objective/102,ALLPAY.NET LTD (NCR),6871069,01/02/2017,65321,17.6,0,Allpay Inv 460517 SLCO 31/01/17,209999,Financial Services Not Elsewhere Classif
South Lakeland District Council,http://opendatacommunities.org/id/district-council/south-lakeland,28/02/2017,Financial Services,Central Services,http://opendatacommunities.org/def/concept/finance/sercop/objective/102,ALLPAY.NET LTD (NCR),6871069,01/02/2017,65322,471.99,0,Allpay Inv 460517 SLCO 31/01/17,209999,Financial Services Not Elsewhere Classif
South Lakeland District Council,http://opendatacommunities.org/id/district-council/south-lakeland,28/02/2017,Financial Services,Central Services,http://opendatacommunities.org/def/concept/finance/sercop/objective/102,ALLPAY.NET LTD (NCR),6871069,01/02/2017,65323,19.4,0,Allpay Inv 460517 SLCO 31/01/17,209999,Financial Services Not Elsewhere Classif
South Lakeland District Council,http://opendatacommunities.org/id/district-council/south-lakeland,28/02/2017,Business Support Community Services,Internal Trading Accounts,,ALLSTAR BUSINESS SOLUTIONS LTD (NCR),2631112,01/02/2017,65141,5764.94,0,Fuel to 31/01,381600,Vehicle Mgt Leasing
South Lakeland District Council,http://opendatacommunities.org/id/district-council/south-lakeland,28/02/2017,Business Support Community Services,Internal Trading Accounts,,ALLSTAR BUSINESS SOLUTIONS LTD (NCR),2631112,01/02/2017,65141,308.31,0,Fuel to 31/01,381600,Vehicle Mgt Leasing
South Lakeland District Council,http://opendatacommunities.org/id/district-council/south-lakeland,28/02/2017,Business Support Community Services,Internal Trading Accounts,,ALLSTAR BUSINESS SOLUTIONS LTD (NCR),2631112,01/02/2017,65141,13470.24,0,Fuel to 31/01,381600,Vehicle Mgt Leasing
South Lakeland District Council,http://opendatacommunities.org/id/district-council/south-lakeland,28/02/2017,Social Enterprise Admin,Highways & Transport Services,http://opendatacommunities.org/def/concept/finance/sercop/objective/107,ALLSTAR BUSINESS SOLUTIONS LTD (NCR),2631112,01/02/2017,65173,96.79,0,Fuel for 3 CEO vehicles 1 April 2016 to,381600,Vehicle Mgt Leasing
South Lakeland District Council,http://opendatacommunities.org/id/district-council/south-lakeland,28/02/2017,Social Enterprise Admin,Highways & Transport Services,http://opendatacommunities.org/def/concept/finance/sercop/objective/107,ALLSTAR BUSINESS SOLUTIONS LTD (NCR),2631112,01/02/2017,65173,248.4,0,Fuel for 3 CEO vehicles 1 April 2016 to,381600,Vehicle Mgt Leasing
South Lakeland District Council,http://opendatacommunities.org/id/district-council/south-lakeland,28/02/2017,Social Enterprise Admin,Cultural Environmental Regulatory & Planning Services,http://opendatacommunities.org/def/concept/finance/sercop/objective/104,ALLSTAR BUSINESS SOLUTIONS LTD (NCR),2631112,01/02/2017,65240,68.08,0,Parks fuel,381600,Vehicle Mgt Leasing
South Lakeland District Council,http://opendatacommunities.org/id/district-council/south-lakeland,28/02/2017,Business Support Community Services,Cultural Environmental Regulatory & Planning Services,http://opendatacommunities.org/def/concept/finance/sercop/objective/104,ALLSTAR BUSINESS SOLUTIONS LTD (NCR),2631112,01/02/2017,65244,32.33,0,Fuel - 25 January 2017 - Private Water,381600,Vehicle Mgt Leasing
South Lakeland District Council,http://opendatacommunities.org/id/district-council/south-lakeland,28/02/2017,Development Implementation,Culture and Related Serv,http://opendatacommunities.org/def/concept/finance/sercop/objective/104,Anna Williams Associates,,06/02/2017,65124,766,0,Professional Services for Ferry Nab -,391114,Construction Buildings Surveys
South Lakeland District Council,http://opendatacommunities.org/id/district-council/south-lakeland,28/02/2017,Business Support Community Services,Internal Trading Accounts,,APSE,6735100,06/02/2017,65137,239,0,Supervisory skills for Team Leaders - T,202100,Financial Services Subscriptions
South Lakeland District Council,http://opendatacommunities.org/id/district-council/south-lakeland,28/02/2017,Business Support Community Services,Internal Trading Accounts,,APSE,6735100,06/02/2017,65137,239,0,Supervisory skills for Team Leaders - T,202100,Financial Services Subscriptions
South Lakeland District Council,http://opendatacommunities.org/id/district-council/south-lakeland,28/02/2017,Business Support Community Services,Internal Trading Accounts,,ARCO LIMITED,133804,06/02/2017,64896,1581.41,0,Cleaning materials,141100,Clothing Protective
South Lakeland District Council,http://opendatacommunities.org/id/district-council/south-lakeland,28/02/2017,Business Support Community Services,Internal Trading Accounts,,ARCO LIMITED,133804,06/02/2017,65088,102.61,0,Cleaning materials,141100,Clothing Protective
South Lakeland District Council,http://opendatacommunities.org/id/district-council/south-lakeland,28/02/2017,Business Support Community Services,Internal Trading Accounts,,ARCO LIMITED,133804,06/02/2017,65090,59.04,0,Cleaning materials,141100,Clothing Protective
South Lakeland District Council,http://opendatacommunities.org/id/district-council/south-lakeland,28/02/2017,Business Support Community Services,Internal Trading Accounts,,ARCO LIMITED,133804,06/02/2017,65093,50.85,0,Cleaning materials,141100,Clothing Protective
South Lakeland District Council,http://opendatacommunities.org/id/district-council/south-lakeland,28/02/2017,Business Support Community Services,Transport Planning Policy,http://opendatacommunities.org/def/concept/finance/sercop/objective/107,ARCO LIMITED,133804,06/02/2017,65097,29.77,0,Cleaning materials,141100,Clothing Protective
South Lakeland District Council,http://opendatacommunities.org/id/district-council/south-lakeland,28/02/2017,Business Support Community Services,Internal Trading Accounts,,ARCO LIMITED,133804,06/02/2017,65097,7.9,0,Cleaning materials,141100,Clothing Protective
South Lakeland District Council,http://opendatacommunities.org/id/district-council/south-lakeland,28/02/2017,Business Support Community Services,Internal Trading Accounts,,ARCO LIMITED,133804,06/02/2017,65097,204.27,0,Cleaning materials,141100,Clothing Protective
South Lakeland District Council,http://opendatacommunities.org/id/district-council/south-lakeland,28/02/2017,Business Support Community Services,Transport Planning Policy,http://opendatacommunities.org/def/concept/finance/sercop/objective/107,ARCO LIMITED,133804,06/02/2017,65138,43.68,0,Cleaning materials,141100,Clothing Protective
South Lakeland District Council,http://opendatacommunities.org/id/district-council/south-lakeland,28/02/2017,Business Support Community Services,Internal Trading Accounts,,ARCO LIMITED,133804,06/02/2017,65146,48.43,0,Cleaning materials,141100,Clothing Protective
South Lakeland District Council,http://opendatacommunities.org/id/district-council/south-lakeland,28/02/2017,Business Support Community Services,Internal Trading Accounts,,ARCO LIMITED,133804,08/02/2017,65186,105,0,Cleaning materials,141100,Clothing Protective
South Lakeland District Council,http://opendatacommunities.org/id/district-council/south-lakeland,28/02/2017,Business Support Community Services,Internal Trading Accounts,,ARCO LIMITED,133804,08/02/2017,65187,34.83,0,Cleaning materials,141100,Clothing Protective
South Lakeland District Council,http://opendatacommunities.org/id/district-council/south-lakeland,28/02/2017,Business Support Community Services,Central Services,http://opendatacommunities.org/def/concept/finance/sercop/objective/102,ARCO LIMITED,133804,08/02/2017,65188,39.95,0,Shoes -,141100,Clothing Protective
South Lakeland District Council,http://opendatacommunities.org/id/district-council/south-lakeland,28/02/2017,Business Support Community Services,Internal Trading Accounts,,ARCO LIMITED,133804,08/02/2017,65189,35.56,0,Cleaning materials,141100,Clothing Protective
South Lakeland District Council,http://opendatacommunities.org/id/district-council/south-lakeland,28/02/2017,Business Support Community Services,Internal Trading Accounts,,ARCO LIMITED,133804,13/02/2017,65267,35.56,0,Cleaning materials,141100,Clothing Protective
South Lakeland District Council,http://opendatacommunities.org/id/district-council/south-lakeland,28/02/2017,Business Support Community Services,Internal Trading Accounts,,ARCO LIMITED,133804,13/02/2017,65328,16.58,0,Cleaning materials,141100,Clothing Protective
South Lakeland District Council,http://opendatacommunities.org/id/district-council/south-lakeland,28/02/2017,Business Support Community Services,Internal Trading Accounts,,ARCO LIMITED,133804,13/02/2017,65329,23.22,0,Cleaning materials,141100,Clothing Protective
South Lakeland District Council,http://opendatacommunities.org/id/district-council/south-lakeland,28/02/2017,Business Support Community Services,Cultural Environmental Regulatory & Planning Services,http://opendatacommunities.org/def/concept/finance/sercop/objective/104,ARCO LIMITED,133804,13/02/2017,65341,180.79,0,PPE,141100,Clothing Protective
South Lakeland District Council,http://opendatacommunities.org/id/district-council/south-lakeland,28/02/2017,Business Support Community Services,Internal Trading Accounts,,ARCO LIMITED,133804,13/02/2017,65344,58.88,0,Cleaning materials,141100,Clothing Protective
South Lakeland District Council,http://opendatacommunities.org/id/district-council/south-lakeland,28/02/2017,Human Resources,Central Services,http://opendatacommunities.org/def/concept/finance/sercop/objective/102,ARCO LIMITED,133804,13/02/2017,65371,-41.62,0,5x Overtrousers -,141100,Clothing Protective
South Lakeland District Council,http://opendatacommunities.org/id/district-council/south-lakeland,28/02/2017,Business Support Community Services,Internal Trading Accounts,,ARCO LIMITED,133804,15/02/2017,65385,24.08,0,Cleaning materials,141100,Clothing Protective
South Lakeland District Council,http://opendatacommunities.org/id/district-council/south-lakeland,28/02/2017,Business Support Community Services,Internal Trading Accounts,,ARCO LIMITED,133804,15/02/2017,65387,6.07,0,Cleaning materials,141100,Clothing Protective
South Lakeland District Council,http://opendatacommunities.org/id/district-council/south-lakeland,28/02/2017,Business Support Community Services,Internal Trading Accounts,,ARCO LIMITED,133804,15/02/2017,65389,23.22,0,Cleaning materials,141100,Clothing Protective
South Lakeland District Council,http://opendatacommunities.org/id/district-council/south-lakeland,28/02/2017,Business Support Community Services,Internal Trading Accounts,,ARCO LIMITED,133804,15/02/2017,65391,8.46,0,Cleaning materials,141100,Clothing Protective
South Lakeland District Council,http://opendatacommunities.org/id/district-council/south-lakeland,28/02/2017,Kendal Town Hall,Highways & Transport Services,http://opendatacommunities.org/def/concept/finance/sercop/objective/107,ARCO LIMITED,133804,15/02/2017,65473,200.73,0,4 x Berghaus RG Alpha Jacket Black (1x,141100,Clothing Protective
South Lakeland District Council,http://opendatacommunities.org/id/district-council/south-lakeland,28/02/2017,Kendal Town Hall,Cultural Environmental Regulatory & Planning Services,http://opendatacommunities.org/def/concept/finance/sercop/objective/104,ARCO LIMITED,133804,15/02/2017,65473,13.32,0,4 x Berghaus RG Alpha Jacket Black (1x,141100,Clothing Protective
South Lakeland District Council,http://opendatacommunities.org/id/district-council/south-lakeland,28/02/2017,Business Support Community Services,Central Services,http://opendatacommunities.org/def/concept/finance/sercop/objective/102,ARCO LIMITED,133804,20/02/2017,65489,185.03,0,10 TA 205 - Trojan Executive Parka,141100,Clothing Protective
South Lakeland District Council,http://opendatacommunities.org/id/district-council/south-lakeland,28/02/2017,Business Support Community Services,Internal Trading Accounts,,ARCO LIMITED,133804,20/02/2017,65490,26.65,0,Cleaning materials,141100,Clothing Protective
South Lakeland District Council,http://opendatacommunities.org/id/district-council/south-lakeland,28/02/2017,Business Support Community Services,Internal Trading Accounts,,ARCO LIMITED,133804,20/02/2017,65494,106.68,0,Cleaning materials,141100,Clothing Protective
South Lakeland District Council,http://opendatacommunities.org/id/district-council/south-lakeland,28/02/2017,Business Support Community Services,Internal Trading Accounts,,ARCO LIMITED,133804,20/02/2017,65495,46.39,0,Cleaning materials,141100,Clothing Protective
South Lakeland District Council,http://opendatacommunities.org/id/district-council/south-lakeland,28/02/2017,Business Support Community Services,Transport Planning Policy,http://opendatacommunities.org/def/concept/finance/sercop/objective/107,ARCO LIMITED,133804,20/02/2017,65497,67.46,0,Cleaning materials,141100,Clothing Protective
South Lakeland District Council,http://opendatacommunities.org/id/district-council/south-lakeland,28/02/2017,Business Support Community Services,Internal Trading Accounts,,ARCO LIMITED,133804,20/02/2017,65497,8.3,0,Cleaning materials,141100,Clothing Protective
South Lakeland District Council,http://opendatacommunities.org/id/district-council/south-lakeland,28/02/2017,Business Support Community Services,Internal Trading Accounts,,ARCO LIMITED,133804,20/02/2017,65497,2.94,0,Cleaning materials,141100,Clothing Protective
South Lakeland District Council,http://opendatacommunities.org/id/district-council/south-lakeland,28/02/2017,Business Support Community Services,Internal Trading Accounts,,ARCO LIMITED,133804,20/02/2017,65497,941.45,0,Cleaning materials,141100,Clothing Protective
South Lakeland District Council,http://opendatacommunities.org/id/district-council/south-lakeland,28/02/2017,Business Support Community Services,Internal Trading Accounts,,ARCO LIMITED,133804,20/02/2017,65506,17.78,0,Cleaning materials,141100,Clothing Protective
South Lakeland District Council,http://opendatacommunities.org/id/district-council/south-lakeland,28/02/2017,Business Support Community Services,Internal Trading Accounts,,ARCO LIMITED,133804,20/02/2017,65507,17.78,0,Cleaning materials,141100,Clothing Protective
South Lakeland District Council,http://opendatacommunities.org/id/district-council/south-lakeland,28/02/2017,Business Support Community Services,Cultural Environmental Regulatory & Planning Services,http://opendatacommunities.org/def/concept/finance/sercop/objective/104,ARCO LIMITED,133804,20/02/2017,65562,-36.99,0,PPE,141100,Clothing Protective
South Lakeland District Council,http://opendatacommunities.org/id/district-council/south-lakeland,28/02/2017,Business Support Community Services,Internal Trading Accounts,,ARCO LIMITED,133804,27/02/2017,65580,33.76,0,Cleaning materials,141100,Clothing Protective
South Lakeland District Council,http://opendatacommunities.org/id/district-council/south-lakeland,28/02/2017,Business Support Community Services,Internal Trading Accounts,,ARCO LIMITED,133804,27/02/2017,65581,5.25,0,Cleaning materials,141100,Clothing Protective
South Lakeland District Council,http://opendatacommunities.org/id/district-council/south-lakeland,28/02/2017,Business Support Community Services,Transport Planning Policy,http://opendatacommunities.org/def/concept/finance/sercop/objective/107,ARCO LIMITED,133804,27/02/2017,65582,33.24,0,Cleaning materials,141100,Clothing Protective
South Lakeland District Council,http://opendatacommunities.org/id/district-council/south-lakeland,28/02/2017,Business Support Community Services,Internal Trading Accounts,,ARCO LIMITED,133804,27/02/2017,65582,6.03,0,Cleaning materials,141100,Clothing Protective
South Lakeland District Council,http://opendatacommunities.org/id/district-council/south-lakeland,28/02/2017,Democratic Services,Central Services,http://opendatacommunities.org/def/concept/finance/sercop/objective/102,Assoc of Democratic Services Off *COURSE,7068088,15/02/2017,65404,95,0,ADSO Meetings Procedures Plus,202100,Financial Services Subscriptions
South Lakeland District Council,http://opendatacommunities.org/id/district-council/south-lakeland,28/02/2017,Social Enterprise Admin,Cultural Environmental Regulatory & Planning Services,http://opendatacommunities.org/def/concept/finance/sercop/objective/104,B & J METALS (SKIP HIRE) LTD,4634318,13/02/2017,65234,433.34,0,8yd skip for Ferry Nab Wardens car park,182011,Environment Waste Management Consumables
South Lakeland District Council,http://opendatacommunities.org/id/district-council/south-lakeland,28/02/2017,Kendal Town Hall,Highways & Transport Services,http://opendatacommunities.org/def/concept/finance/sercop/objective/107,BEMROSE BOOTH PARAGON LTD,4891375,27/02/2017,65576,2866.12,0,"300,000 Hi-co Reflex Tickets.  Tickets",191600,Facilities Printing
South Lakeland District Council,http://opendatacommunities.org/id/district-council/south-lakeland,28/02/2017,Kendal Town Hall,Cultural Environmental Regulatory & Planning Services,http://opendatacommunities.org/def/concept/finance/sercop/objective/104,BERENDSEN UK LTD,228604,08/02/2017,65081,147,0,Monthly rental of anti- slip mats for,161000,Domestic Goods Commercial
South Lakeland District Council,http://opendatacommunities.org/id/district-council/south-lakeland,28/02/2017,Business Support Community Services,Internal Trading Accounts,,BERENDSEN UK LTD,228604,06/02/2017,65091,332,0,Workwear hire 29/03/16 - 28/03/17,161000,Domestic Goods Commercial
South Lakeland District Council,http://opendatacommunities.org/id/district-council/south-lakeland,28/02/2017,Business Support Community Services,Internal Trading Accounts,,BILL MOORE LIFTING TACKLE LTD,1482196,27/02/2017,64892,221.89,0,Inspect lifting gear,181812,Environment Technical Equip Testing
South Lakeland District Council,http://opendatacommunities.org/id/district-council/south-lakeland,28/02/2017,Business Support Community Services,Internal Trading Accounts,,Blackpool Trim Ltd,8665678,27/02/2017,65654,55,0,Repair seat base,381400,Vehicle Mgt Maintenance
South Lakeland District Council,http://opendatacommunities.org/id/district-council/south-lakeland,28/02/2017,Social Enterprise Admin,Cultural Environmental Regulatory & Planning Services,http://opendatacommunities.org/def/concept/finance/sercop/objective/104,Borderloos,3350965,13/02/2017,65104,3542.85,0,For the continuation of hire of the,199999,Facilities Not Elsewhere Classified
South Lakeland District Council,http://opendatacommunities.org/id/district-council/south-lakeland,28/02/2017,Business Support Community Services,Internal Trading Accounts,,BRIAN ARMISTEAD LTD T/A SINKFALL RECYCLI,4133280,13/02/2017,65127,806.88,0,Green waste tipping - 2016/17,391110,Construction Buildings Construction
South Lakeland District Council,http://opendatacommunities.org/id/district-council/south-lakeland,28/02/2017,Business Support Community Services,Internal Trading Accounts,,BRIAN ARMISTEAD LTD T/A SINKFALL RECYCLI,4133280,13/02/2017,65266,692.49,0,Green waste tipping - 2016/17,391110,Construction Buildings Construction
South Lakeland District Council,http://opendatacommunities.org/id/district-council/south-lakeland,28/02/2017,Business Support Community Services,Internal Trading Accounts,,BRIAN ARMISTEAD LTD T/A SINKFALL RECYCLI,4133280,22/02/2017,65531,378.02,0,Green waste tipping - 2016/17,391110,Construction Buildings Construction
South Lakeland District Council,http://opendatacommunities.org/id/district-council/south-lakeland,28/02/2017,Business Support Community Services,Internal Trading Accounts,,BRIAN ARMISTEAD LTD T/A SINKFALL RECYCLI,4133280,20/02/2017,65565,679.37,0,Green waste tipping - 2016/17,391110,Construction Buildings Construction
South Lakeland District Council,http://opendatacommunities.org/id/district-council/south-lakeland,28/02/2017,ICT Group,Cultural Environmental Regulatory & Planning Services,http://opendatacommunities.org/def/concept/finance/sercop/objective/104,BRITISH TELECOMMUNICATIONS PLC,1800000,22/02/2017,65067,120,0,Broadband and line rental for the,279999,ICT Not Elsewhere Classified
South Lakeland District Council,http://opendatacommunities.org/id/district-council/south-lakeland,28/02/2017,ICT Group,Central Services,http://opendatacommunities.org/def/concept/finance/sercop/objective/102,BRITISH TELECOMMUNICATIONS PLC (DD),,01/02/2017,65180,60.53,0,Town View Fields Broadband,279999,ICT Not Elsewhere Classified
South Lakeland District Council,http://opendatacommunities.org/id/district-council/south-lakeland,28/02/2017,ICT Group,Central Services,http://opendatacommunities.org/def/concept/finance/sercop/objective/102,BRITISH TELECOMMUNICATIONS PLC (DD),,01/02/2017,65413,414,0,"NPS Circuit ANUK529077, Covers 1/4/16 to",279999,ICT Not Elsewhere Classified
South Lakeland District Council,http://opendatacommunities.org/id/district-council/south-lakeland,28/02/2017,Development Implementation,Central Services,http://opendatacommunities.org/def/concept/finance/sercop/objective/102,Brown Toland Brown Associates,,06/02/2017,65118,1760,0,Provision of consultancy services for,151000,Consultancy Business
South Lakeland District Council,http://opendatacommunities.org/id/district-council/south-lakeland,28/02/2017,Development Implementation,Central Services,http://opendatacommunities.org/def/concept/finance/sercop/objective/102,Brown Toland Brown Associates,,13/02/2017,65298,3760,0,Provision of consultancy services for,151000,Consultancy Business
South Lakeland District Council,http://opendatacommunities.org/id/district-council/south-lakeland,28/02/2017,Legal Services,Central Services,http://opendatacommunities.org/def/concept/finance/sercop/objective/102,Browne Jacobson LLP,OC306448,13/02/2017,65308,2245.8,0,Fees in respect of State Aid - our ref:,281200,Legal Services General Support
South Lakeland District Council,http://opendatacommunities.org/id/district-council/south-lakeland,28/02/2017,Business Support Community Services,Cultural Environmental Regulatory & Planning Services,http://opendatacommunities.org/def/concept/finance/sercop/objective/104,Buckingham Futures,8329499,08/02/2017,65119,1302.65,0,Supply 1 Full Time Private Water Officer,182030,Environment Water Assessment & Treatment
South Lakeland District Council,http://opendatacommunities.org/id/district-council/south-lakeland,28/02/2017,Business Support Community Services,Cultural Environmental Regulatory & Planning Services,http://opendatacommunities.org/def/concept/finance/sercop/objective/104,Buckingham Futures,8329499,15/02/2017,65410,1167.73,0,Supply 1 Full Time Private Water Officer,182030,Environment Water Assessment & Treatment
South Lakeland District Council,http://opendatacommunities.org/id/district-council/south-lakeland,28/02/2017,Business Support Community Services,Cultural Environmental Regulatory & Planning Services,http://opendatacommunities.org/def/concept/finance/sercop/objective/104,Buckingham Futures,8329499,27/02/2017,65536,1290.93,0,Supply 1 Full Time Private Water Officer,182030,Environment Water Assessment & Treatment
South Lakeland District Council,http://opendatacommunities.org/id/district-council/south-lakeland,28/02/2017,Business Support Community Services,Cultural Environmental Regulatory & Planning Services,http://opendatacommunities.org/def/concept/finance/sercop/objective/104,Buckingham Futures,8329499,27/02/2017,65673,1340.03,0,Supply 1 Full Time Private Water Officer,182030,Environment Water Assessment & Treatment
South Lakeland District Council,http://opendatacommunities.org/id/district-council/south-lakeland,28/02/2017,Business Support Community Services,Housing Services,http://opendatacommunities.org/def/concept/finance/sercop/objective/108,BUNZL CLEANING & HYGIENE SUPPLIES,2902454,06/02/2017,65050,284.67,0,x2 Black Sack (070035),131011,Cleaning & Janitorial Cleaning Materials
South Lakeland District Council,http://opendatacommunities.org/id/district-council/south-lakeland,28/02/2017,Human Resources,Non-Service Payments,,BUSY BEES BENEFITS LTD,6758298,06/02/2017,65184,866,0,child care vouchers,202100,Financial Services Subscriptions
South Lakeland District Council,http://opendatacommunities.org/id/district-council/south-lakeland,28/02/2017,Human Resources,Central Services,http://opendatacommunities.org/def/concept/finance/sercop/objective/102,BUSY BEES BENEFITS LTD,6758298,06/02/2017,65185,30.31,0,child care vouchers,202100,Financial Services Subscriptions
South Lakeland District Council,http://opendatacommunities.org/id/district-council/south-lakeland,28/02/2017,Business Support Community Services,Internal Trading Accounts,,C T HAYTON LTD,1212766,27/02/2017,65639,8.67,0,Double union,391200,Construction Engineering
South Lakeland District Council,http://opendatacommunities.org/id/district-council/south-lakeland,28/02/2017,Environment and Housing,Housing,http://opendatacommunities.org/def/concept/finance/sercop/objective/108,C W COX & SONS (KENDAL) LTD,3498844,08/02/2017,65190,2930,0,"Trinkeld Avenue, Swarthmoor,",101000,Building Bathrooms
South Lakeland District Council,http://opendatacommunities.org/id/district-council/south-lakeland,28/02/2017,Environment and Housing,Housing,http://opendatacommunities.org/def/concept/finance/sercop/objective/108,C W COX & SONS (KENDAL) LTD,3498844,08/02/2017,65252,5450,0,"Trinkeld Avenue, Swarthmoor,",101000,Building Bathrooms
South Lakeland District Council,http://opendatacommunities.org/id/district-council/south-lakeland,28/02/2017,Environment and Housing,Housing,http://opendatacommunities.org/def/concept/finance/sercop/objective/108,C W COX & SONS (KENDAL) LTD,3498844,20/02/2017,65522,2830,0,"Kirkbarrow, Kendal",101000,Building Bathrooms
South Lakeland District Council,http://opendatacommunities.org/id/district-council/south-lakeland,28/02/2017,ICT Group,Central Services,http://opendatacommunities.org/def/concept/finance/sercop/objective/102,CABLE & WIRELESS UK (VODAFONE),,20/02/2017,64630,2879.78,0,Gsi Convergence Framework/PSN. Covers,271700,ICT Telecommunications Fixed
South Lakeland District Council,http://opendatacommunities.org/id/district-council/south-lakeland,28/02/2017,ICT Group,Central Services,http://opendatacommunities.org/def/concept/finance/sercop/objective/102,CABLE & WIRELESS UK (VODAFONE),,20/02/2017,65412,-75,0,DNS Transfer & Management,271700,ICT Telecommunications Fixed
South Lakeland District Council,http://opendatacommunities.org/id/district-council/south-lakeland,28/02/2017,ICT Group,Central Services,http://opendatacommunities.org/def/concept/finance/sercop/objective/102,CAPITA BUSINESS SERVICES LTD,2299747,20/02/2017,64605,3120,0,Quote - AMT07043,261500,HR Training & Conferences
South Lakeland District Council,http://opendatacommunities.org/id/district-council/south-lakeland,28/02/2017,Revenues and Benefits,Central Services,http://opendatacommunities.org/def/concept/finance/sercop/objective/102,CAPITA BUSINESS SERVICES LTD,2299747,27/02/2017,65625,1045,0,Quotation AH3071 - Updates to Allpay,261500,HR Training & Conferences
South Lakeland District Council,http://opendatacommunities.org/id/district-council/south-lakeland,28/02/2017,Financial Services,Central Services,http://opendatacommunities.org/def/concept/finance/sercop/objective/102,CAPITA BUSINESS SERVICES LTD (NCR),,02/01/2017,65032,1687.88,0,Internet payments transactions and moto,261500,HR Training & Conferences
South Lakeland District Council,http://opendatacommunities.org/id/district-council/south-lakeland,28/02/2017,Social Enterprise Admin,Cultural Environmental Regulatory & Planning Services,http://opendatacommunities.org/def/concept/finance/sercop/objective/104,CAPITA SYMONDS LTD,3173410,27/02/2017,65600,2551.92,0,ARBORICULTURE SERVICES,390000,Construction
South Lakeland District Council,http://opendatacommunities.org/id/district-council/south-lakeland,28/02/2017,Social Enterprise Admin,Cultural Environmental Regulatory & Planning Services,http://opendatacommunities.org/def/concept/finance/sercop/objective/104,CAPITA SYMONDS LTD,3173410,27/02/2017,65600,1701.28,0,ARBORICULTURE SERVICES,390000,Construction
South Lakeland District Council,http://opendatacommunities.org/id/district-council/south-lakeland,28/02/2017,Business Support Community Services,Housing Services,http://opendatacommunities.org/def/concept/finance/sercop/objective/108,Capita Translation & Interpreting Servic,5122429,08/02/2017,65232,141.46,0,Telephone Interpreting,261100,HR Interpretation & Translation
South Lakeland District Council,http://opendatacommunities.org/id/district-council/south-lakeland,28/02/2017,Revenues and Benefits,Central Services,http://opendatacommunities.org/def/concept/finance/sercop/objective/102,CARLISLE CITY COUNCIL,,01/02/2017,65052,2461.43,0,Capita SPD Review,908000,Public Bodies Council support services
South Lakeland District Council,http://opendatacommunities.org/id/district-council/south-lakeland,28/02/2017,Development Implementation,Central Services,http://opendatacommunities.org/def/concept/finance/sercop/objective/102,CASTLE GREEN HOTEL IN KENDAL,,27/02/2017,65614,410,0,Hire of Oak Room at Castle Green Hotel,192110,Facilities Room Hire
South Lakeland District Council,http://opendatacommunities.org/id/district-council/south-lakeland,28/02/2017,ICT Group,Central Services,http://opendatacommunities.org/def/concept/finance/sercop/objective/102,CCS MEDIA LTD,1693516,15/02/2017,65376,669.8,0,Plantronics B825-M headsets,271400,ICT Office & Reprographics Equipment
South Lakeland District Council,http://opendatacommunities.org/id/district-council/south-lakeland,28/02/2017,ICT Group,Central Services,http://opendatacommunities.org/def/concept/finance/sercop/objective/102,CCS MEDIA LTD,1693516,20/02/2017,65548,72.95,0,No description recorded,271400,ICT Office & Reprographics Equipment
South Lakeland District Council,http://opendatacommunities.org/id/district-council/south-lakeland,28/02/2017,ICT Group,Central Services,http://opendatacommunities.org/def/concept/finance/sercop/objective/102,CCS MEDIA LTD,1693516,27/02/2017,65586,228.32,0,Logitech Wireless Combo MK270,271400,ICT Office & Reprographics Equipment
South Lakeland District Council,http://opendatacommunities.org/id/district-council/south-lakeland,28/02/2017,ICT Group,Central Services,http://opendatacommunities.org/def/concept/finance/sercop/objective/102,CCS MEDIA LTD,1693516,27/02/2017,65646,689.55,0,Plantronics Voyager Focus UC B825-M -,271400,ICT Office & Reprographics Equipment
South Lakeland District Council,http://opendatacommunities.org/id/district-council/south-lakeland,28/02/2017,Environment and Housing,Housing Services,http://opendatacommunities.org/def/concept/finance/sercop/objective/108,CHARTERED INSTITUTE OF HOUSING,,13/02/2017,65044,2100,0,Chartered Institute of Housing (CIH),202100,Financial Services Subscriptions
South Lakeland District Council,http://opendatacommunities.org/id/district-council/south-lakeland,28/02/2017,Development Implementation,Cultural Environmental Regulatory & Planning Services,http://opendatacommunities.org/def/concept/finance/sercop/objective/104,FOX COMMUNICATIONS,,13/02/2017,65314,350,0,"Marketing for Invest & Explore (Jan, Feb",270000,Information Communications Technology
South Lakeland District Council,http://opendatacommunities.org/id/district-council/south-lakeland,28/02/2017,Human Resources,Central Services,http://opendatacommunities.org/def/concept/finance/sercop/objective/102,Choose Occupational Health,7365943,13/02/2017,58740,162.5,0,half day Clink 06/04/2016,191800,Facilities Public Relations & Image
South Lakeland District Council,http://opendatacommunities.org/id/district-council/south-lakeland,28/02/2017,Human Resources,Central Services,http://opendatacommunities.org/def/concept/finance/sercop/objective/102,Choose Occupational Health,7365943,13/02/2017,58740,333.5,0,half day Clink 06/04/2016,191800,Facilities Public Relations & Image
South Lakeland District Council,http://opendatacommunities.org/id/district-council/south-lakeland,28/02/2017,Human Resources,Central Services,http://opendatacommunities.org/def/concept/finance/sercop/objective/102,Choose Occupational Health,7365943,27/02/2017,65595,600,0,Full day clinic,191800,Facilities Public Relations & Image
South Lakeland District Council,http://opendatacommunities.org/id/district-council/south-lakeland,28/02/2017,Development Management,Cultural Environmental Regulatory & Planning Services,http://opendatacommunities.org/def/concept/finance/sercop/objective/104,CHRIS BOWKER LTD,1642561,13/02/2017,65281,30,0,Checking of electrical work in,101100,Building Electrical
South Lakeland District Council,http://opendatacommunities.org/id/district-council/south-lakeland,28/02/2017,Development Management,Cultural Environmental Regulatory & Planning Services,http://opendatacommunities.org/def/concept/finance/sercop/objective/104,CHRIS BOWKER LTD,1642561,20/02/2017,65447,30,0,Checking of electrical work in,101100,Building Electrical
South Lakeland District Council,http://opendatacommunities.org/id/district-council/south-lakeland,28/02/2017,Development Management,Cultural Environmental Regulatory & Planning Services,http://opendatacommunities.org/def/concept/finance/sercop/objective/104,CHRIS BOWKER LTD,1642561,20/02/2017,65448,30,0,Checking of electrical work in,101100,Building Electrical
South Lakeland District Council,http://opendatacommunities.org/id/district-council/south-lakeland,28/02/2017,Revenues and Benefits,Central Services,http://opendatacommunities.org/def/concept/finance/sercop/objective/102,CIVICA UK LTD,1628868,13/02/2017,65330,225,0,27.01.17 Year End Workshop,271600,ICT Software Customised & Bespoke
South Lakeland District Council,http://opendatacommunities.org/id/district-council/south-lakeland,28/02/2017,Business Support Community Services,Central Services,http://opendatacommunities.org/def/concept/finance/sercop/objective/102,CIVICA UK LTD,1628868,27/02/2017,65535,22409.25,0,"CGPM005014 - Licence, Support and",271600,ICT Software Customised & Bespoke
South Lakeland District Council,http://opendatacommunities.org/id/district-council/south-lakeland,28/02/2017,Revenues and Benefits,Central Services,http://opendatacommunities.org/def/concept/finance/sercop/objective/102,CIVICA UK LTD,1628868,27/02/2017,65587,1950,0,Adult Social Care,271600,ICT Software Customised & Bespoke
South Lakeland District Council,http://opendatacommunities.org/id/district-council/south-lakeland,28/02/2017,Social Enterprise Admin,Cultural Environmental Regulatory & Planning Services,http://opendatacommunities.org/def/concept/finance/sercop/objective/104,Cleartrack (EvL) Ltd,3881690,08/02/2017,64926,660,0,Tree work at Collinfield Lane Kendal,199999,Facilities Not Elsewhere Classified
South Lakeland District Council,http://opendatacommunities.org/id/district-council/south-lakeland,28/02/2017,Business Support Community Services,Internal Trading Accounts,,COMPASS COMPONENTS,,27/02/2017,65606,166.73,0,Consumables 01/04/16 - 31/03/17,101400,Building General Materials
South Lakeland District Council,http://opendatacommunities.org/id/district-council/south-lakeland,28/02/2017,Financial Services,Non-Service Payments,,COMPUTERSHARE VOUCHER SERVICES LTD,4968447,13/02/2017,65325,1112.93,0,child care vouchers deducted from ee per,202100,Financial Services Subscriptions
South Lakeland District Council,http://opendatacommunities.org/id/district-council/south-lakeland,28/02/2017,Business Support Community Services,Cultural Environmental Regulatory & Planning Services,http://opendatacommunities.org/def/concept/finance/sercop/objective/104,CONCEPT ENGINEERING LIMITED,859061,13/02/2017,65282,73,0,Concept Smoke Aerosols  - 1 box of 10,221000,Health & Safety� Products
South Lakeland District Council,http://opendatacommunities.org/id/district-council/south-lakeland,28/02/2017,Development Implementation,Cultural Environmental Regulatory & Planning Services,http://opendatacommunities.org/def/concept/finance/sercop/objective/104,CONISTON PARISH COUNCIL,,13/02/2017,65310,500,0,Shop Front Improvement Grant Scheme,908000,Public Bodies Council support services
South Lakeland District Council,http://opendatacommunities.org/id/district-council/south-lakeland,28/02/2017,Social Enterprise Admin,Cultural Environmental Regulatory & Planning Services,http://opendatacommunities.org/def/concept/finance/sercop/objective/104,CONTINENTAL LANDSCAPES LTD,2108452,08/02/2017,65168,3647.15,0,Gravedigging  for April 2016 -March 2017,391310,Construction Open Spaces Construction
South Lakeland District Council,http://opendatacommunities.org/id/district-council/south-lakeland,28/02/2017,Social Enterprise Admin,Highways & Transport Services,http://opendatacommunities.org/def/concept/finance/sercop/objective/107,CONTINENTAL LANDSCAPES LTD,2108452,08/02/2017,65169,12.15,0,Parks Routine maintenance,391310,Construction Open Spaces Construction
South Lakeland District Council,http://opendatacommunities.org/id/district-council/south-lakeland,28/02/2017,Social Enterprise Admin,Highways & Transport Services,http://opendatacommunities.org/def/concept/finance/sercop/objective/107,CONTINENTAL LANDSCAPES LTD,2108452,08/02/2017,65169,12.15,0,Parks Routine maintenance,391310,Construction Open Spaces Construction
South Lakeland District Council,http://opendatacommunities.org/id/district-council/south-lakeland,28/02/2017,Social Enterprise Admin,Highways & Transport Services,http://opendatacommunities.org/def/concept/finance/sercop/objective/107,CONTINENTAL LANDSCAPES LTD,2108452,08/02/2017,65169,1.22,0,Parks Routine maintenance,391310,Construction Open Spaces Construction
South Lakeland District Council,http://opendatacommunities.org/id/district-council/south-lakeland,28/02/2017,Social Enterprise Admin,Highways & Transport Services,http://opendatacommunities.org/def/concept/finance/sercop/objective/107,CONTINENTAL LANDSCAPES LTD,2108452,08/02/2017,65169,12.15,0,Parks Routine maintenance,391310,Construction Open Spaces Construction
South Lakeland District Council,http://opendatacommunities.org/id/district-council/south-lakeland,28/02/2017,Social Enterprise Admin,Highways & Transport Services,http://opendatacommunities.org/def/concept/finance/sercop/objective/107,CONTINENTAL LANDSCAPES LTD,2108452,08/02/2017,65169,12.15,0,Parks Routine maintenance,391310,Construction Open Spaces Construction
South Lakeland District Council,http://opendatacommunities.org/id/district-council/south-lakeland,28/02/2017,Social Enterprise Admin,Highways & Transport Services,http://opendatacommunities.org/def/concept/finance/sercop/objective/107,CONTINENTAL LANDSCAPES LTD,2108452,08/02/2017,65169,12.15,0,Parks Routine maintenance,391310,Construction Open Spaces Construction
South Lakeland District Council,http://opendatacommunities.org/id/district-council/south-lakeland,28/02/2017,Social Enterprise Admin,Highways & Transport Services,http://opendatacommunities.org/def/concept/finance/sercop/objective/107,CONTINENTAL LANDSCAPES LTD,2108452,08/02/2017,65169,36.46,0,Parks Routine maintenance,391310,Construction Open Spaces Construction
South Lakeland District Council,http://opendatacommunities.org/id/district-council/south-lakeland,28/02/2017,Social Enterprise Admin,Highways & Transport Services,http://opendatacommunities.org/def/concept/finance/sercop/objective/107,CONTINENTAL LANDSCAPES LTD,2108452,08/02/2017,65169,243.05,0,Parks Routine maintenance,391310,Construction Open Spaces Construction
South Lakeland District Council,http://opendatacommunities.org/id/district-council/south-lakeland,28/02/2017,Social Enterprise Admin,Highways & Transport Services,http://opendatacommunities.org/def/concept/finance/sercop/objective/107,CONTINENTAL LANDSCAPES LTD,2108452,08/02/2017,65169,151.91,0,Parks Routine maintenance,391310,Construction Open Spaces Construction
South Lakeland District Council,http://opendatacommunities.org/id/district-council/south-lakeland,28/02/2017,Social Enterprise Admin,Highways & Transport Services,http://opendatacommunities.org/def/concept/finance/sercop/objective/107,CONTINENTAL LANDSCAPES LTD,2108452,08/02/2017,65169,6.08,0,Parks Routine maintenance,391310,Construction Open Spaces Construction
South Lakeland District Council,http://opendatacommunities.org/id/district-council/south-lakeland,28/02/2017,Social Enterprise Admin,Highways & Transport Services,http://opendatacommunities.org/def/concept/finance/sercop/objective/107,CONTINENTAL LANDSCAPES LTD,2108452,08/02/2017,65169,60.76,0,Parks Routine maintenance,391310,Construction Open Spaces Construction
South Lakeland District Council,http://opendatacommunities.org/id/district-council/south-lakeland,28/02/2017,Social Enterprise Admin,Highways & Transport Services,http://opendatacommunities.org/def/concept/finance/sercop/objective/107,CONTINENTAL LANDSCAPES LTD,2108452,08/02/2017,65169,60.76,0,Parks Routine maintenance,391310,Construction Open Spaces Construction
South Lakeland District Council,http://opendatacommunities.org/id/district-council/south-lakeland,28/02/2017,Social Enterprise Admin,Highways & Transport Services,http://opendatacommunities.org/def/concept/finance/sercop/objective/107,CONTINENTAL LANDSCAPES LTD,2108452,08/02/2017,65169,121.53,0,Parks Routine maintenance,391310,Construction Open Spaces Construction
South Lakeland District Council,http://opendatacommunities.org/id/district-council/south-lakeland,28/02/2017,Social Enterprise Admin,Highways & Transport Services,http://opendatacommunities.org/def/concept/finance/sercop/objective/107,CONTINENTAL LANDSCAPES LTD,2108452,08/02/2017,65169,48.61,0,Parks Routine maintenance,391310,Construction Open Spaces Construction
South Lakeland District Council,http://opendatacommunities.org/id/district-council/south-lakeland,28/02/2017,Social Enterprise Admin,Highways & Transport Services,http://opendatacommunities.org/def/concept/finance/sercop/objective/107,CONTINENTAL LANDSCAPES LTD,2108452,08/02/2017,65169,6.08,0,Parks Routine maintenance,391310,Construction Open Spaces Construction
South Lakeland District Council,http://opendatacommunities.org/id/district-council/south-lakeland,28/02/2017,Social Enterprise Admin,Highways & Transport Services,http://opendatacommunities.org/def/concept/finance/sercop/objective/107,CONTINENTAL LANDSCAPES LTD,2108452,08/02/2017,65169,6.08,0,Parks Routine maintenance,391310,Construction Open Spaces Construction
South Lakeland District Council,http://opendatacommunities.org/id/district-council/south-lakeland,28/02/2017,Social Enterprise Admin,Highways & Transport Services,http://opendatacommunities.org/def/concept/finance/sercop/objective/107,CONTINENTAL LANDSCAPES LTD,2108452,08/02/2017,65169,3.04,0,Parks Routine maintenance,391310,Construction Open Spaces Construction
South Lakeland District Council,http://opendatacommunities.org/id/district-council/south-lakeland,28/02/2017,Social Enterprise Admin,Highways & Transport Services,http://opendatacommunities.org/def/concept/finance/sercop/objective/107,CONTINENTAL LANDSCAPES LTD,2108452,08/02/2017,65169,54.69,0,Parks Routine maintenance,391310,Construction Open Spaces Construction
South Lakeland District Council,http://opendatacommunities.org/id/district-council/south-lakeland,28/02/2017,Social Enterprise Admin,Highways & Transport Services,http://opendatacommunities.org/def/concept/finance/sercop/objective/107,CONTINENTAL LANDSCAPES LTD,2108452,08/02/2017,65169,66.84,0,Parks Routine maintenance,391310,Construction Open Spaces Construction
South Lakeland District Council,http://opendatacommunities.org/id/district-council/south-lakeland,28/02/2017,Social Enterprise Admin,Highways & Transport Services,http://opendatacommunities.org/def/concept/finance/sercop/objective/107,CONTINENTAL LANDSCAPES LTD,2108452,08/02/2017,65169,127.6,0,Parks Routine maintenance,391310,Construction Open Spaces Construction
South Lakeland District Council,http://opendatacommunities.org/id/district-council/south-lakeland,28/02/2017,Social Enterprise Admin,Highways & Transport Services,http://opendatacommunities.org/def/concept/finance/sercop/objective/107,CONTINENTAL LANDSCAPES LTD,2108452,08/02/2017,65169,121.53,0,Parks Routine maintenance,391310,Construction Open Spaces Construction
South Lakeland District Council,http://opendatacommunities.org/id/district-council/south-lakeland,28/02/2017,Social Enterprise Admin,Highways & Transport Services,http://opendatacommunities.org/def/concept/finance/sercop/objective/107,CONTINENTAL LANDSCAPES LTD,2108452,08/02/2017,65169,12.15,0,Parks Routine maintenance,391310,Construction Open Spaces Construction
South Lakeland District Council,http://opendatacommunities.org/id/district-council/south-lakeland,28/02/2017,Social Enterprise Admin,Highways & Transport Services,http://opendatacommunities.org/def/concept/finance/sercop/objective/107,CONTINENTAL LANDSCAPES LTD,2108452,08/02/2017,65169,12.15,0,Parks Routine maintenance,391310,Construction Open Spaces Construction
South Lakeland District Council,http://opendatacommunities.org/id/district-council/south-lakeland,28/02/2017,Social Enterprise Admin,Highways & Transport Services,http://opendatacommunities.org/def/concept/finance/sercop/objective/107,CONTINENTAL LANDSCAPES LTD,2108452,08/02/2017,65169,36.46,0,Parks Routine maintenance,391310,Construction Open Spaces Construction
South Lakeland District Council,http://opendatacommunities.org/id/district-council/south-lakeland,28/02/2017,Social Enterprise Admin,Highways & Transport Services,http://opendatacommunities.org/def/concept/finance/sercop/objective/107,CONTINENTAL LANDSCAPES LTD,2108452,08/02/2017,65169,60.76,0,Parks Routine maintenance,391310,Construction Open Spaces Construction
South Lakeland District Council,http://opendatacommunities.org/id/district-council/south-lakeland,28/02/2017,Social Enterprise Admin,Highways & Transport Services,http://opendatacommunities.org/def/concept/finance/sercop/objective/107,CONTINENTAL LANDSCAPES LTD,2108452,08/02/2017,65169,60.76,0,Parks Routine maintenance,391310,Construction Open Spaces Construction
South Lakeland District Council,http://opendatacommunities.org/id/district-council/south-lakeland,28/02/2017,Social Enterprise Admin,Highways & Transport Services,http://opendatacommunities.org/def/concept/finance/sercop/objective/107,CONTINENTAL LANDSCAPES LTD,2108452,08/02/2017,65169,108.1,0,Parks Routine maintenance,391310,Construction Open Spaces Construction
South Lakeland District Council,http://opendatacommunities.org/id/district-council/south-lakeland,28/02/2017,Social Enterprise Admin,Highways & Transport Services,http://opendatacommunities.org/def/concept/finance/sercop/objective/107,CONTINENTAL LANDSCAPES LTD,2108452,08/02/2017,65169,121.53,0,Parks Routine maintenance,391310,Construction Open Spaces Construction
South Lakeland District Council,http://opendatacommunities.org/id/district-council/south-lakeland,28/02/2017,Social Enterprise Admin,Highways & Transport Services,http://opendatacommunities.org/def/concept/finance/sercop/objective/107,CONTINENTAL LANDSCAPES LTD,2108452,08/02/2017,65169,224.83,0,Parks Routine maintenance,391310,Construction Open Spaces Construction
South Lakeland District Council,http://opendatacommunities.org/id/district-council/south-lakeland,28/02/2017,Social Enterprise Admin,Highways & Transport Services,http://opendatacommunities.org/def/concept/finance/sercop/objective/107,CONTINENTAL LANDSCAPES LTD,2108452,08/02/2017,65169,121.53,0,Parks Routine maintenance,391310,Construction Open Spaces Construction
South Lakeland District Council,http://opendatacommunities.org/id/district-council/south-lakeland,28/02/2017,Social Enterprise Admin,Highways & Transport Services,http://opendatacommunities.org/def/concept/finance/sercop/objective/107,CONTINENTAL LANDSCAPES LTD,2108452,08/02/2017,65169,182.29,0,Parks Routine maintenance,391310,Construction Open Spaces Construction
South Lakeland District Council,http://opendatacommunities.org/id/district-council/south-lakeland,28/02/2017,Social Enterprise Admin,Cultural Environmental Regulatory & Planning Services,http://opendatacommunities.org/def/concept/finance/sercop/objective/104,CONTINENTAL LANDSCAPES LTD,2108452,08/02/2017,65169,9722.17,0,Parks Routine maintenance,391310,Construction Open Spaces Construction
South Lakeland District Council,http://opendatacommunities.org/id/district-council/south-lakeland,28/02/2017,Social Enterprise Admin,Cultural Environmental Regulatory & Planning Services,http://opendatacommunities.org/def/concept/finance/sercop/objective/104,CONTINENTAL LANDSCAPES LTD,2108452,08/02/2017,65169,24.31,0,Parks Routine maintenance,391310,Construction Open Spaces Construction
South Lakeland District Council,http://opendatacommunities.org/id/district-council/south-lakeland,28/02/2017,Social Enterprise Admin,Cultural Environmental Regulatory & Planning Services,http://opendatacommunities.org/def/concept/finance/sercop/objective/104,CONTINENTAL LANDSCAPES LTD,2108452,08/02/2017,65169,46119.57,0,Parks Routine maintenance,391310,Construction Open Spaces Construction
South Lakeland District Council,http://opendatacommunities.org/id/district-council/south-lakeland,28/02/2017,Social Enterprise Admin,Cultural Environmental Regulatory & Planning Services,http://opendatacommunities.org/def/concept/finance/sercop/objective/104,CONTINENTAL LANDSCAPES LTD,2108452,08/02/2017,65169,364.58,0,Parks Routine maintenance,391310,Construction Open Spaces Construction
South Lakeland District Council,http://opendatacommunities.org/id/district-council/south-lakeland,28/02/2017,Social Enterprise Admin,Cultural Environmental Regulatory & Planning Services,http://opendatacommunities.org/def/concept/finance/sercop/objective/104,CONTINENTAL LANDSCAPES LTD,2108452,08/02/2017,65169,2309.02,0,Parks Routine maintenance,391310,Construction Open Spaces Construction
South Lakeland District Council,http://opendatacommunities.org/id/district-council/south-lakeland,28/02/2017,Social Enterprise Admin,External Trading Accounts,,CONTINENTAL LANDSCAPES LTD,2108452,08/02/2017,65169,106.34,0,Parks Routine maintenance,391310,Construction Open Spaces Construction
South Lakeland District Council,http://opendatacommunities.org/id/district-council/south-lakeland,28/02/2017,Social Enterprise Admin,Cultural Environmental Regulatory & Planning Services,http://opendatacommunities.org/def/concept/finance/sercop/objective/104,CONTINENTAL LANDSCAPES LTD,2108452,08/02/2017,65170,2000,0,For disposal of waste to Kendal Fell,391310,Construction Open Spaces Construction
South Lakeland District Council,http://opendatacommunities.org/id/district-council/south-lakeland,28/02/2017,Social Enterprise Admin,Cultural Environmental Regulatory & Planning Services,http://opendatacommunities.org/def/concept/finance/sercop/objective/104,CONTINENTAL LANDSCAPES LTD,2108452,08/02/2017,65171,2000,0,For disposal of waste to Kendal Fell,391310,Construction Open Spaces Construction
South Lakeland District Council,http://opendatacommunities.org/id/district-council/south-lakeland,28/02/2017,Environmental Protection,Cultural Environmental Regulatory & Planning Services,http://opendatacommunities.org/def/concept/finance/sercop/objective/104,CONTINENTAL LANDSCAPES LTD,2108452,08/02/2017,65172,2610,0,Remove spoil heaps from Cemeteries,391310,Construction Open Spaces Construction
South Lakeland District Council,http://opendatacommunities.org/id/district-council/south-lakeland,28/02/2017,Social Enterprise Admin,Cultural Environmental Regulatory & Planning Services,http://opendatacommunities.org/def/concept/finance/sercop/objective/104,CONTINENTAL LANDSCAPES LTD,2108452,27/02/2017,65619,530,0,install a concrete pad suitable for a,391310,Construction Open Spaces Construction
South Lakeland District Council,http://opendatacommunities.org/id/district-council/south-lakeland,28/02/2017,Environmental Protection,Cultural Environmental Regulatory & Planning Services,http://opendatacommunities.org/def/concept/finance/sercop/objective/104,COOPER ENGRAVING,,08/02/2017,65213,70,0,1 off each s/s seat plaques brushed s/s,102400,Building Signage
South Lakeland District Council,http://opendatacommunities.org/id/district-council/south-lakeland,28/02/2017,Development Implementation,Culture and Related Serv,http://opendatacommunities.org/def/concept/finance/sercop/objective/104,COX & ALLEN (KENDAL) LTD,1611371,27/02/2017,65679,13099.74,0,Castle Dairy Flood Works,391110,Construction Buildings Construction
South Lakeland District Council,http://opendatacommunities.org/id/district-council/south-lakeland,28/02/2017,Social Enterprise Admin,Highways & Transport Services,http://opendatacommunities.org/def/concept/finance/sercop/objective/107,CREDIT CALL LTD (NCR),,01/02/2017,65304,743.93,0,Credit Call Commission 2016/17,209999,Financial Services Not Elsewhere Classif
South Lakeland District Council,http://opendatacommunities.org/id/district-council/south-lakeland,28/02/2017,Social Enterprise Admin,Highways & Transport Services,http://opendatacommunities.org/def/concept/finance/sercop/objective/107,CREDIT CALL LTD (NCR),,01/02/2017,65316,626.95,0,Credit Call Commission 2016/17,209999,Financial Services Not Elsewhere Classif
South Lakeland District Council,http://opendatacommunities.org/id/district-council/south-lakeland,28/02/2017,Social Enterprise Admin,Highways & Transport Services,http://opendatacommunities.org/def/concept/finance/sercop/objective/107,CREDIT CALL LTD (NCR),,01/02/2017,65317,591.53,0,Credit Call Commission 2016/17,209999,Financial Services Not Elsewhere Classif
South Lakeland District Council,http://opendatacommunities.org/id/district-council/south-lakeland,28/02/2017,Policy & Partnerships,Central Services,http://opendatacommunities.org/def/concept/finance/sercop/objective/102,Cumbria Action for Sustainability,6492907,06/02/2017,65109,15000,0,Community Organisations funding 2015-17,201700,Financial Services Grants
South Lakeland District Council,http://opendatacommunities.org/id/district-council/south-lakeland,28/02/2017,Development Implementation,Cultural Environmental Regulatory & Planning Services,http://opendatacommunities.org/def/concept/finance/sercop/objective/104,CUMBRIA CHAMBER OF COMMERCE,4211364,08/02/2017,64843,22500,0,Provision of Business Support Services,151000,Consultancy Business
South Lakeland District Council,http://opendatacommunities.org/id/district-council/south-lakeland,28/02/2017,Development Implementation,Cultural Environmental Regulatory & Planning Services,http://opendatacommunities.org/def/concept/finance/sercop/objective/104,CUMBRIA CHAMBER OF COMMERCE,4211364,08/02/2017,65248,-7500,0,Provision of Business Support Services,151000,Consultancy Business
South Lakeland District Council,http://opendatacommunities.org/id/district-council/south-lakeland,28/02/2017,Social Enterprise Admin,Cultural Environmental Regulatory & Planning Services,http://opendatacommunities.org/def/concept/finance/sercop/objective/104,CUMBRIA COUNTY COUNCIL,,13/02/2017,64889,32.5,0,Audit of SLDC woodlands as site list,908000,Public Bodies Council support services
South Lakeland District Council,http://opendatacommunities.org/id/district-council/south-lakeland,28/02/2017,Business Support Community Services,SLDC as Agent,,CUMBRIA COUNTY COUNCIL,,08/02/2017,64960,54,0,DBS Checks,908000,Public Bodies Council support services
South Lakeland District Council,http://opendatacommunities.org/id/district-council/south-lakeland,28/02/2017,Business Support Community Services,SLDC as Agent,,CUMBRIA COUNTY COUNCIL,,08/02/2017,65011,54,0,DBS Checks,908000,Public Bodies Council support services
South Lakeland District Council,http://opendatacommunities.org/id/district-council/south-lakeland,28/02/2017,Business Support Community Services,SLDC as Agent,,CUMBRIA COUNTY COUNCIL,,08/02/2017,65012,54,0,DBS Checks,908000,Public Bodies Council support services
South Lakeland District Council,http://opendatacommunities.org/id/district-council/south-lakeland,28/02/2017,Leisure and Wellbeing,Cultural Environmental Regulatory & Planning Services,http://opendatacommunities.org/def/concept/finance/sercop/objective/104,CUMBRIA COUNTY COUNCIL,,08/02/2017,65126,410,0,For Horticare - 2016 perennial plans and,908000,Public Bodies Council support services
South Lakeland District Council,http://opendatacommunities.org/id/district-council/south-lakeland,28/02/2017,Policy & Partnerships,Central Services,http://opendatacommunities.org/def/concept/finance/sercop/objective/102,CUMBRIA COUNTY COUNCIL,,08/02/2017,65205,17442,0,Emergency Planning SLA at 16750 (plus,908000,Public Bodies Council support services
South Lakeland District Council,http://opendatacommunities.org/id/district-council/south-lakeland,28/02/2017,Business Support Community Services,Internal Trading Accounts,,CUMBRIA COUNTY COUNCIL,,13/02/2017,65346,32035.84,0,"Tipping & disposal charges, recyclables",908000,Public Bodies Council support services
South Lakeland District Council,http://opendatacommunities.org/id/district-council/south-lakeland,28/02/2017,Business Support Community Services,Internal Trading Accounts,,CUMBRIA COUNTY COUNCIL,,13/02/2017,65347,12530.15,0,"Tipping & disposal charges, recyclables",908000,Public Bodies Council support services
South Lakeland District Council,http://opendatacommunities.org/id/district-council/south-lakeland,28/02/2017,Social Enterprise Admin,Central Services,http://opendatacommunities.org/def/concept/finance/sercop/objective/102,CUMBRIA COUNTY COUNCIL,,20/02/2017,65408,2875,0,LAND CHARGE SEARCH ENQUIRIES,908000,Public Bodies Council support services
South Lakeland District Council,http://opendatacommunities.org/id/district-council/south-lakeland,28/02/2017,Development Strategy,Cultural Environmental Regulatory & Planning Services,http://opendatacommunities.org/def/concept/finance/sercop/objective/104,CUMBRIA COUNTY COUNCIL,,20/02/2017,65474,5000,0,Additional contribution to Kendal Major,908000,Public Bodies Council support services
South Lakeland District Council,http://opendatacommunities.org/id/district-council/south-lakeland,28/02/2017,Human Resources,Central Services,http://opendatacommunities.org/def/concept/finance/sercop/objective/102,CUMBRIA COUNTY COUNCIL,,27/02/2017,65538,54,0,DBS Checks to Cumbria County Council,908000,Public Bodies Council support services
South Lakeland District Council,http://opendatacommunities.org/id/district-council/south-lakeland,28/02/2017,Human Resources,Central Services,http://opendatacommunities.org/def/concept/finance/sercop/objective/102,CUMBRIA COUNTY COUNCIL,,27/02/2017,65674,750,0,Annual funding for domestic homicide,908000,Public Bodies Council support services
South Lakeland District Council,http://opendatacommunities.org/id/district-council/south-lakeland,28/02/2017,Financial Services,Cultural Environmental Regulatory & Planning Services,http://opendatacommunities.org/def/concept/finance/sercop/objective/104,CUMBRIA LGPS,,08/02/2017,65241,9648.6,0,Redundancy retirement pension strain.,908999,Public Bodies Not Elsewhere Classified
South Lakeland District Council,http://opendatacommunities.org/id/district-council/south-lakeland,28/02/2017,Development Implementation,Cultural Environmental Regulatory & Planning Services,http://opendatacommunities.org/def/concept/finance/sercop/objective/104,CUMBRIA TOURISM,3027358,15/02/2017,65411,2545,0,STEAM Research for 2016,291400,Arts & Leisure Services Sport & Fitness
South Lakeland District Council,http://opendatacommunities.org/id/district-council/south-lakeland,28/02/2017,Business Support Community Services,Internal Trading Accounts,,CUMBRIA TRUCK CENTRE LTD,4298488,06/02/2017,65094,200.84,0,ABS,381300,Vehicle Mgt Industrial
South Lakeland District Council,http://opendatacommunities.org/id/district-council/south-lakeland,28/02/2017,Business Support Community Services,Internal Trading Accounts,,CUMBRIA TRUCK CENTRE LTD,4298488,08/02/2017,65144,490.16,0,Repair SL002,381300,Vehicle Mgt Industrial
South Lakeland District Council,http://opendatacommunities.org/id/district-council/south-lakeland,28/02/2017,Business Support Community Services,Internal Trading Accounts,,CUMBRIA TRUCK CENTRE LTD,4298488,06/02/2017,65145,980,0,Springs,381300,Vehicle Mgt Industrial
South Lakeland District Council,http://opendatacommunities.org/id/district-council/south-lakeland,28/02/2017,Social Enterprise Admin,Central Services,http://opendatacommunities.org/def/concept/finance/sercop/objective/102,CUMBRIA WASTE RECYCLING LTD,3162439,08/02/2017,64689,39.75,0,Wheelie bin at Langstone House,182012,Environment Waste Management Recycling
South Lakeland District Council,http://opendatacommunities.org/id/district-council/south-lakeland,28/02/2017,Cemeteries Office,Cultural Environmental Regulatory & Planning Services,http://opendatacommunities.org/def/concept/finance/sercop/objective/104,CUMBRIA WASTE RECYCLING LTD,3162439,01/02/2017,65066,39.75,0,SLDC Cemetery waste bin emptying from,182012,Environment Waste Management Recycling
South Lakeland District Council,http://opendatacommunities.org/id/district-council/south-lakeland,28/02/2017,Social Enterprise Admin,Central Services,http://opendatacommunities.org/def/concept/finance/sercop/objective/102,CUMBRIA WASTE RECYCLING LTD,3162439,20/02/2017,65375,53.18,0,1100 wheelie bin for Town Hall Queen,182012,Environment Waste Management Recycling
South Lakeland District Council,http://opendatacommunities.org/id/district-council/south-lakeland,28/02/2017,Social Enterprise Admin,Highways & Transport Services,http://opendatacommunities.org/def/concept/finance/sercop/objective/107,CUMBRIA WASTE RECYCLING LTD,3162439,20/02/2017,65419,51.65,0,Westmorland Multi-storey 660Ltr bin,182012,Environment Waste Management Recycling
South Lakeland District Council,http://opendatacommunities.org/id/district-council/south-lakeland,28/02/2017,Lake Wardens,Cultural Environmental Regulatory & Planning Services,http://opendatacommunities.org/def/concept/finance/sercop/objective/104,CUMBRIA WASTE RECYCLING LTD,3162439,27/02/2017,65420,122.84,0,Rental & Emptying of Refuse Wheelie,182012,Environment Waste Management Recycling
South Lakeland District Council,http://opendatacommunities.org/id/district-council/south-lakeland,28/02/2017,Development Implementation,Cultural Environmental Regulatory & Planning Services,http://opendatacommunities.org/def/concept/finance/sercop/objective/104,CUMBRIA WASTE RECYCLING LTD,3162439,20/02/2017,65421,106.9,0,"Waste Collection @ 124 Highgate, Kendal",182012,Environment Waste Management Recycling
South Lakeland District Council,http://opendatacommunities.org/id/district-council/south-lakeland,28/02/2017,Lake Wardens,Cultural Environmental Regulatory & Planning Services,http://opendatacommunities.org/def/concept/finance/sercop/objective/104,CUMBRIA WASTE RECYCLING LTD,3162439,27/02/2017,65422,254,0,Rental & Emptying of Refuse Wheelie,182012,Environment Waste Management Recycling
South Lakeland District Council,http://opendatacommunities.org/id/district-council/south-lakeland,28/02/2017,Social Enterprise Admin,Central Services,http://opendatacommunities.org/def/concept/finance/sercop/objective/102,CUMBRIA WASTE RECYCLING LTD,3162439,20/02/2017,65423,31.8,0,Wheelie bin at Langstone House,182012,Environment Waste Management Recycling
South Lakeland District Council,http://opendatacommunities.org/id/district-council/south-lakeland,28/02/2017,Social Enterprise Admin,Central Services,http://opendatacommunities.org/def/concept/finance/sercop/objective/102,CUMBRIA WASTE RECYCLING LTD,3162439,20/02/2017,65424,220.32,0,SLH Wheelie bin and skip emptying,182012,Environment Waste Management Recycling
South Lakeland District Council,http://opendatacommunities.org/id/district-council/south-lakeland,28/02/2017,Kendal Town Hall,Cultural Environmental Regulatory & Planning Services,http://opendatacommunities.org/def/concept/finance/sercop/objective/104,CUMBRIA WASTE RECYCLING LTD,3162439,20/02/2017,65425,130,0,Weekly collection of bins for KTH,182012,Environment Waste Management Recycling
South Lakeland District Council,http://opendatacommunities.org/id/district-council/south-lakeland,28/02/2017,Cemeteries Office,Cultural Environmental Regulatory & Planning Services,http://opendatacommunities.org/def/concept/finance/sercop/objective/104,CUMBRIA WASTE RECYCLING LTD,3162439,20/02/2017,65515,27.6,0,SLDC Cemetery waste bin emptying from,182012,Environment Waste Management Recycling
South Lakeland District Council,http://opendatacommunities.org/id/district-council/south-lakeland,28/02/2017,Business Support Community Services,Cultural Environmental Regulatory & Planning Services,http://opendatacommunities.org/def/concept/finance/sercop/objective/104,CUMBRIA WASTE RECYCLING LTD,3162439,27/02/2017,65592,15017.3,0,Empty recycling banks in 2016/17,182012,Environment Waste Management Recycling
South Lakeland District Council,http://opendatacommunities.org/id/district-council/south-lakeland,28/02/2017,Policy & Partnerships,Central Services,http://opendatacommunities.org/def/concept/finance/sercop/objective/102,CUMBRIAN NEWSPAPERS LIMITED,2729,06/02/2017,64912,643.2,0,Cost of the Publication for PCC Election,191000,Facilities Advertising
South Lakeland District Council,http://opendatacommunities.org/id/district-council/south-lakeland,28/02/2017,ICT Group,Central Services,http://opendatacommunities.org/def/concept/finance/sercop/objective/102,DAISY COMMUNICATIONS LTD,4145329,20/02/2017,65409,560.92,0,Daisy Line Rental Charges,271700,ICT Telecommunications Fixed
South Lakeland District Council,http://opendatacommunities.org/id/district-council/south-lakeland,28/02/2017,ICT Group,Central Services,http://opendatacommunities.org/def/concept/finance/sercop/objective/102,DAISY COMMUNICATIONS LTD,4145329,20/02/2017,65409,98.68,0,Daisy Line Rental Charges,271700,ICT Telecommunications Fixed
South Lakeland District Council,http://opendatacommunities.org/id/district-council/south-lakeland,28/02/2017,Social Enterprise Admin,Cultural Environmental Regulatory & Planning Services,http://opendatacommunities.org/def/concept/finance/sercop/objective/104,Dan Hill Plast A/S,,13/02/2017,65103,2464,0,88 red B60 buoys in dark red,907999,Marine Not Elsewhere Classified
South Lakeland District Council,http://opendatacommunities.org/id/district-council/south-lakeland,28/02/2017,Business Support Community Services,Internal Trading Accounts,,DENNIS EAGLE LTD,3794455,06/02/2017,63810,176.99,0,Wiper arms,381300,Vehicle Mgt Industrial
South Lakeland District Council,http://opendatacommunities.org/id/district-council/south-lakeland,28/02/2017,Business Support Community Services,Internal Trading Accounts,,DENNIS EAGLE LTD,3794455,08/02/2017,65228,212.42,0,Bearings,381300,Vehicle Mgt Industrial
South Lakeland District Council,http://opendatacommunities.org/id/district-council/south-lakeland,28/02/2017,Business Support Community Services,Internal Trading Accounts,,DENNIS EAGLE LTD,3794455,13/02/2017,65367,124.63,0,LED,381300,Vehicle Mgt Industrial
South Lakeland District Council,http://opendatacommunities.org/id/district-council/south-lakeland,28/02/2017,Business Support Community Services,Internal Trading Accounts,,DENNIS EAGLE LTD,3794455,13/02/2017,65368,44.2,0,LED,381300,Vehicle Mgt Industrial
South Lakeland District Council,http://opendatacommunities.org/id/district-council/south-lakeland,28/02/2017,Revenues and Benefits,Central Services,http://opendatacommunities.org/def/concept/finance/sercop/objective/102,Destin Solutions Limited,5658906,08/02/2017,65229,2600,0,2017/2018 Vision (Pericles Solution,152200,Consultancy Technical & Feasibility
South Lakeland District Council,http://opendatacommunities.org/id/district-council/south-lakeland,28/02/2017,Environment and Housing,Housing,http://opendatacommunities.org/def/concept/finance/sercop/objective/108,DOLPHIN MOBILITY YORKS & CUMBRIA,,06/02/2017,65157,1800,0,"Abbots Vue, Ulverston",321311,Social Care Supplies Equipment
South Lakeland District Council,http://opendatacommunities.org/id/district-council/south-lakeland,28/02/2017,Environment and Housing,Housing,http://opendatacommunities.org/def/concept/finance/sercop/objective/108,DOLPHIN MOBILITY YORKS & CUMBRIA,,13/02/2017,65380,1885,0,"Long Barn, Low Wood,",321311,Social Care Supplies Equipment
South Lakeland District Council,http://opendatacommunities.org/id/district-council/south-lakeland,28/02/2017,Environment and Housing,Housing,http://opendatacommunities.org/def/concept/finance/sercop/objective/108,DOLPHIN MOBILITY YORKS & CUMBRIA,,20/02/2017,65573,2945,0,"Hallgarth Circle, Kendal",321311,Social Care Supplies Equipment
South Lakeland District Council,http://opendatacommunities.org/id/district-council/south-lakeland,28/02/2017,ICT Group,Central Services,http://opendatacommunities.org/def/concept/finance/sercop/objective/102,EE UK LTD (NCR),,01/02/2017,64928,42.21,0,EE myfi 50gb per month ,351000,Street & Traffic Parking Car Parks
South Lakeland District Council,http://opendatacommunities.org/id/district-council/south-lakeland,28/02/2017,ICT Group,Highways & Transport Services,http://opendatacommunities.org/def/concept/finance/sercop/objective/107,EE UK LTD (NCR),,01/02/2017,64928,117,0,EE myfi 50gb per month ,351000,Street & Traffic Parking Car Parks
South Lakeland District Council,http://opendatacommunities.org/id/district-council/south-lakeland,28/02/2017,ICT Group,Central Services,http://opendatacommunities.org/def/concept/finance/sercop/objective/102,EE UK LTD (NCR),,01/02/2017,64929,42.21,0,EE myfi 50gb per month ,351000,Street & Traffic Parking Car Parks
South Lakeland District Council,http://opendatacommunities.org/id/district-council/south-lakeland,28/02/2017,ICT Group,Highways & Transport Services,http://opendatacommunities.org/def/concept/finance/sercop/objective/107,EE UK LTD (NCR),,01/02/2017,64929,117,0,EE myfi 50gb per month ,351000,Street & Traffic Parking Car Parks
South Lakeland District Council,http://opendatacommunities.org/id/district-council/south-lakeland,28/02/2017,ICT Group,Central Services,http://opendatacommunities.org/def/concept/finance/sercop/objective/102,EE UK LTD (NCR),,01/02/2017,65766,126.63,0,EE myfi 50gb per month (for Irene Moore),351000,Street & Traffic Parking Car Parks
South Lakeland District Council,http://opendatacommunities.org/id/district-council/south-lakeland,28/02/2017,ICT Group,Highways & Transport Services,http://opendatacommunities.org/def/concept/finance/sercop/objective/107,EE UK LTD (NCR),,01/02/2017,65766,32.58,0,EE myfi 50gb per month (for Irene Moore),351000,Street & Traffic Parking Car Parks
South Lakeland District Council,http://opendatacommunities.org/id/district-council/south-lakeland,28/02/2017,Business Support Community Services,Internal Trading Accounts,,EK MOTOR FACTORS LTD,838524,13/02/2017,65210,1.44,0,Paret,381400,Vehicle Mgt Maintenance
South Lakeland District Council,http://opendatacommunities.org/id/district-council/south-lakeland,28/02/2017,Business Support Community Services,Internal Trading Accounts,,EK MOTOR FACTORS LTD,838524,13/02/2017,65236,-7.64,0,Paret,381400,Vehicle Mgt Maintenance
South Lakeland District Council,http://opendatacommunities.org/id/district-council/south-lakeland,28/02/2017,Business Support Community Services,Internal Trading Accounts,,EK MOTOR FACTORS LTD,838524,13/02/2017,65237,44.16,0,Paret,381400,Vehicle Mgt Maintenance
South Lakeland District Council,http://opendatacommunities.org/id/district-council/south-lakeland,28/02/2017,Business Support Community Services,Internal Trading Accounts,,EK MOTOR FACTORS LTD,838524,13/02/2017,65238,25.54,0,Paret,381400,Vehicle Mgt Maintenance
South Lakeland District Council,http://opendatacommunities.org/id/district-council/south-lakeland,28/02/2017,Business Support Community Services,Internal Trading Accounts,,EK MOTOR FACTORS LTD,838524,13/02/2017,65255,5,0,Paret,381400,Vehicle Mgt Maintenance
South Lakeland District Council,http://opendatacommunities.org/id/district-council/south-lakeland,28/02/2017,Business Support Community Services,Internal Trading Accounts,,EK MOTOR FACTORS LTD,838524,13/02/2017,65259,5.95,0,Paret,381400,Vehicle Mgt Maintenance
South Lakeland District Council,http://opendatacommunities.org/id/district-council/south-lakeland,28/02/2017,Business Support Community Services,Internal Trading Accounts,,EK MOTOR FACTORS LTD,838524,13/02/2017,65340,26.28,0,Paret,381400,Vehicle Mgt Maintenance
South Lakeland District Council,http://opendatacommunities.org/id/district-council/south-lakeland,28/02/2017,Business Support Community Services,Internal Trading Accounts,,EK MOTOR FACTORS LTD,838524,13/02/2017,65342,53.9,0,Paret,381400,Vehicle Mgt Maintenance
South Lakeland District Council,http://opendatacommunities.org/id/district-council/south-lakeland,28/02/2017,Business Support Community Services,Internal Trading Accounts,,EK MOTOR FACTORS LTD,838524,13/02/2017,65350,22.45,0,Paret,381400,Vehicle Mgt Maintenance
South Lakeland District Council,http://opendatacommunities.org/id/district-council/south-lakeland,28/02/2017,Business Support Community Services,Internal Trading Accounts,,EK MOTOR FACTORS LTD,838524,13/02/2017,65351,44.9,0,Paret,381400,Vehicle Mgt Maintenance
South Lakeland District Council,http://opendatacommunities.org/id/district-council/south-lakeland,28/02/2017,Business Support Community Services,Internal Trading Accounts,,EK MOTOR FACTORS LTD,838524,13/02/2017,65353,16.64,0,Paret,381400,Vehicle Mgt Maintenance
South Lakeland District Council,http://opendatacommunities.org/id/district-council/south-lakeland,28/02/2017,Business Support Community Services,Internal Trading Accounts,,EK MOTOR FACTORS LTD,838524,20/02/2017,65554,54.43,0,Disc pads,381400,Vehicle Mgt Maintenance
South Lakeland District Council,http://opendatacommunities.org/id/district-council/south-lakeland,28/02/2017,Business Support Community Services,Internal Trading Accounts,,EK MOTOR FACTORS LTD,838524,20/02/2017,65556,11.8,0,Disc pads,381400,Vehicle Mgt Maintenance
South Lakeland District Council,http://opendatacommunities.org/id/district-council/south-lakeland,28/02/2017,Business Support Community Services,Internal Trading Accounts,,EK MOTOR FACTORS LTD,838524,20/02/2017,65557,38.23,0,Disc pads,381400,Vehicle Mgt Maintenance
South Lakeland District Council,http://opendatacommunities.org/id/district-council/south-lakeland,28/02/2017,Development Implementation,SLDC as Agent,,Elizabeth Yeowart,,20/02/2017,65528,475.5,0,Feature blog post & social media sharing,191010,Facilities Advertising Promo & Recruit
South Lakeland District Council,http://opendatacommunities.org/id/district-council/south-lakeland,28/02/2017,Human Resources,Central Services,http://opendatacommunities.org/def/concept/finance/sercop/objective/102,EMPLOYMENT PAGES LTD,7363099,01/02/2017,65069,275.4,0,Financial Services Assistant January,261400,HR Temporary & Agency Staff
South Lakeland District Council,http://opendatacommunities.org/id/district-council/south-lakeland,28/02/2017,Social Enterprise Admin,Central Services,http://opendatacommunities.org/def/concept/finance/sercop/objective/102,ENVIROFIRST LTD,5999123,08/02/2017,65223,99.24,0,Lowther Street Wheelie bin mixed,182012,Environment Waste Management Recycling
South Lakeland District Council,http://opendatacommunities.org/id/district-council/south-lakeland,28/02/2017,Environment and Housing,Housing,http://opendatacommunities.org/def/concept/finance/sercop/objective/108,ENVIRONMENT & HOUSING GRANTS,,13/02/2017,65378,3579.59,0,"Schol Knott Drive, Windermere, ",201700,Financial Services Grants
South Lakeland District Council,http://opendatacommunities.org/id/district-council/south-lakeland,28/02/2017,Environment and Housing,Housing,http://opendatacommunities.org/def/concept/finance/sercop/objective/108,ENVIRONMENT & HOUSING GRANTS,,20/02/2017,65523,710,0,"Sycamore Close, Endmoor",201700,Financial Services Grants
South Lakeland District Council,http://opendatacommunities.org/id/district-council/south-lakeland,28/02/2017,Environment and Housing,Housing,http://opendatacommunities.org/def/concept/finance/sercop/objective/108,ENVIRONMENT & HOUSING GRANTS,,20/02/2017,65525,2336.44,0,"Newbiggin, Kendal",201700,Financial Services Grants
South Lakeland District Council,http://opendatacommunities.org/id/district-council/south-lakeland,28/02/2017,Environment and Housing,Housing,http://opendatacommunities.org/def/concept/finance/sercop/objective/108,ENVIRONMENT & HOUSING GRANTS,,22/02/2017,65634,5148,0,"Sycamore Close, Endmoor, Nr Kendal,",201700,Financial Services Grants
South Lakeland District Council,http://opendatacommunities.org/id/district-council/south-lakeland,28/02/2017,Environment and Housing,Housing,http://opendatacommunities.org/def/concept/finance/sercop/objective/108,ENVIRONMENT & HOUSING GRANTS,,22/02/2017,65635,8704,0,"Sycamore Close, Endmoor, Nr Kendal,",201700,Financial Services Grants
South Lakeland District Council,http://opendatacommunities.org/id/district-council/south-lakeland,28/02/2017,Environment and Housing,Housing,http://opendatacommunities.org/def/concept/finance/sercop/objective/108,ENVIRONMENT & HOUSING GRANTS,,22/02/2017,65637,14753.63,0,"First Floor, 1-7 New Market Street,",201700,Financial Services Grants
South Lakeland District Council,http://opendatacommunities.org/id/district-council/south-lakeland,28/02/2017,Business Support Community Services,Internal Trading Accounts,,EPIC Media Group Ltd,4914098,13/02/2017,65280,20,0,Caps,191010,Facilities Advertising Promo & Recruit
South Lakeland District Council,http://opendatacommunities.org/id/district-council/south-lakeland,28/02/2017,Kendal Town Hall,Cultural Environmental Regulatory & Planning Services,http://opendatacommunities.org/def/concept/finance/sercop/objective/104,FARRERS,9023215,20/02/2017,65526,71.18,0,2 boxes of Lakeland Blend tea bags with,111200,Catering Food & Beverages
South Lakeland District Council,http://opendatacommunities.org/id/district-council/south-lakeland,28/02/2017,Business Support Community Services,Internal Trading Accounts,,FAUN ZOELLER (UK) LTD,751804,06/02/2017,65139,486.7,0,Repair bin lift,381400,Vehicle Mgt Maintenance
South Lakeland District Council,http://opendatacommunities.org/id/district-council/south-lakeland,28/02/2017,Business Support Community Services,Internal Trading Accounts,,FAUN ZOELLER (UK) LTD,751804,08/02/2017,65217,298,0,Repair bin lift,381400,Vehicle Mgt Maintenance
South Lakeland District Council,http://opendatacommunities.org/id/district-council/south-lakeland,28/02/2017,Human Resources,Central Services,http://opendatacommunities.org/def/concept/finance/sercop/objective/102,FLORENCE MADDEN ASSOCIATES,,20/02/2017,65499,838.66,0,Effective Leadership Programme 8 day,261500,HR Training & Conferences
South Lakeland District Council,http://opendatacommunities.org/id/district-council/south-lakeland,28/02/2017,Social Enterprise Admin,Cultural Environmental Regulatory & Planning Services,http://opendatacommunities.org/def/concept/finance/sercop/objective/104,FMG CONSULTING LTD,7309324,13/02/2017,65302,3000,0,Ulverston Leisure Site master Plan -,151900,Consultancy Management
South Lakeland District Council,http://opendatacommunities.org/id/district-council/south-lakeland,28/02/2017,Human Resources,Central Services,http://opendatacommunities.org/def/concept/finance/sercop/objective/102,FORBES SOLICITORS,,13/02/2017,65289,174.5,0,Forbes - professional fees 174.50 -,281300,Legal Services Legal Opinion
South Lakeland District Council,http://opendatacommunities.org/id/district-council/south-lakeland,28/02/2017,Human Resources,Central Services,http://opendatacommunities.org/def/concept/finance/sercop/objective/102,FORBES SOLICITORS,,20/02/2017,65292,52.5,0,Invoice number - 476868 - 52.50,281300,Legal Services Legal Opinion
South Lakeland District Council,http://opendatacommunities.org/id/district-council/south-lakeland,28/02/2017,Human Resources,Central Services,http://opendatacommunities.org/def/concept/finance/sercop/objective/102,FORBES SOLICITORS,,13/02/2017,65293,624,0,Forbes - February 2017,281300,Legal Services Legal Opinion
South Lakeland District Council,http://opendatacommunities.org/id/district-council/south-lakeland,28/02/2017,Human Resources,Central Services,http://opendatacommunities.org/def/concept/finance/sercop/objective/102,FORBES SOLICITORS,,20/02/2017,65294,208,0,Invoice number - 476741 - 208.00,281300,Legal Services Legal Opinion
South Lakeland District Council,http://opendatacommunities.org/id/district-council/south-lakeland,28/02/2017,ICT Group,Central Services,http://opendatacommunities.org/def/concept/finance/sercop/objective/102,Forge Training,,20/02/2017,65520,1350,0,2 days liason and training days for,261500,HR Training & Conferences
South Lakeland District Council,http://opendatacommunities.org/id/district-council/south-lakeland,28/02/2017,Business Support Community Services,Internal Trading Accounts,,FST CONSUMABLES LTD,1342012,06/02/2017,64968,122.68,0,Consumables 01/04/16 - 31/03/17,101600,Building Hand Tools
South Lakeland District Council,http://opendatacommunities.org/id/district-council/south-lakeland,28/02/2017,Business Support Community Services,Internal Trading Accounts,,FURNESS FLUID POWER LTD,5675728,13/02/2017,65164,51.83,0,Hose repair,260000,HR
South Lakeland District Council,http://opendatacommunities.org/id/district-council/south-lakeland,28/02/2017,Social Enterprise Admin,Cultural Environmental Regulatory & Planning Services,http://opendatacommunities.org/def/concept/finance/sercop/objective/104,FURNESS NEWSPAPERS LTD,1155841,01/02/2017,65054,51.8,0,PUBLIC NOTICES FOR PLANNING 1 APRIL 2015,191000,Facilities Advertising
South Lakeland District Council,http://opendatacommunities.org/id/district-council/south-lakeland,28/02/2017,Social Enterprise Admin,Cultural Environmental Regulatory & Planning Services,http://opendatacommunities.org/def/concept/finance/sercop/objective/104,FURNESS NEWSPAPERS LTD,1155841,20/02/2017,65307,62.16,0,PUBLIC NOTICES FOR PLANNING 1 APRIL 2015,191000,Facilities Advertising
South Lakeland District Council,http://opendatacommunities.org/id/district-council/south-lakeland,28/02/2017,Business Support Community Services,Housing Services,http://opendatacommunities.org/def/concept/finance/sercop/objective/108,G B BURROW & SON,,15/02/2017,65400,104,0,Storage costs for ,192300,Facilities Storage
South Lakeland District Council,http://opendatacommunities.org/id/district-council/south-lakeland,28/02/2017,Business Support Community Services,Housing Services,http://opendatacommunities.org/def/concept/finance/sercop/objective/108,G B BURROW & SON,,15/02/2017,65401,132,0,Storage of belongings for ,192300,Facilities Storage
South Lakeland District Council,http://opendatacommunities.org/id/district-council/south-lakeland,28/02/2017,Social Enterprise Admin,Highways & Transport Services,http://opendatacommunities.org/def/concept/finance/sercop/objective/107,G4S SECURE SOLUTIONS (UK) LTD,1046019,13/02/2017,65303,874.84,0,Patrol Services for South Lakeland House,192213,Facilities Security Manned Guarding
South Lakeland District Council,http://opendatacommunities.org/id/district-council/south-lakeland,28/02/2017,Legal Services,Central Services,http://opendatacommunities.org/def/concept/finance/sercop/objective/102,GATES TRAVEL SERVICE,,13/02/2017,65110,34.5,0,Rail fare to attend,261600,HR Travel & Subsistence
South Lakeland District Council,http://opendatacommunities.org/id/district-council/south-lakeland,28/02/2017,Business Support Community Services,Cultural Environmental Regulatory & Planning Services,http://opendatacommunities.org/def/concept/finance/sercop/objective/104,GATES TRAVEL SERVICE,,13/02/2017,65297,78,0,Travel to London 23/2/2017,261600,HR Travel & Subsistence
South Lakeland District Council,http://opendatacommunities.org/id/district-council/south-lakeland,28/02/2017,Business Support Community Services,Central Services,http://opendatacommunities.org/def/concept/finance/sercop/objective/102,GATES TRAVEL SERVICE,,20/02/2017,65360,248.4,0,TRAVEL TO BRISTOL - MARCH 2017,261600,HR Travel & Subsistence
South Lakeland District Council,http://opendatacommunities.org/id/district-council/south-lakeland,28/02/2017,Development Implementation,Cultural Environmental Regulatory & Planning Services,http://opendatacommunities.org/def/concept/finance/sercop/objective/104,GATES TRAVEL SERVICE,,20/02/2017,65498,34.5,0,Train fare to Manchester to Northern,261600,HR Travel & Subsistence
South Lakeland District Council,http://opendatacommunities.org/id/district-council/south-lakeland,28/02/2017,Development Implementation,Cultural Environmental Regulatory & Planning Services,http://opendatacommunities.org/def/concept/finance/sercop/objective/104,GATES TRAVEL SERVICE,,20/02/2017,65502,34.5,0,Train Ticket to Manchester for Northern,261600,HR Travel & Subsistence
South Lakeland District Council,http://opendatacommunities.org/id/district-council/south-lakeland,28/02/2017,Human Resources,Central Services,http://opendatacommunities.org/def/concept/finance/sercop/objective/102,GBS Corporate Training,6452080,27/02/2017,65664,995,0,Force completed order,261500,HR Training & Conferences
South Lakeland District Council,http://opendatacommunities.org/id/district-council/south-lakeland,28/02/2017,Business Support Community Services,Cultural Environmental Regulatory & Planning Services,http://opendatacommunities.org/def/concept/finance/sercop/objective/104,GEOFF MONK & ASSOCIATES,,27/02/2017,65671,1200,0,Rainfall Forecast - April 2016 to,181900,Environment Testing & Inspection
South Lakeland District Council,http://opendatacommunities.org/id/district-council/south-lakeland,28/02/2017,Business Support Community Services,Cultural Environmental Regulatory & Planning Services,http://opendatacommunities.org/def/concept/finance/sercop/objective/104,GEOFF MONK & ASSOCIATES,,27/02/2017,65672,1200,0,Rainfall Forecast - October 2016 to,181900,Environment Testing & Inspection
South Lakeland District Council,http://opendatacommunities.org/id/district-council/south-lakeland,28/02/2017,Development Implementation,Cultural Environmental Regulatory & Planning Services,http://opendatacommunities.org/def/concept/finance/sercop/objective/104,Global Exhibition Specialists,2930892,06/02/2017,65072,2056,0,Stand 164 for SLDC/Invest in,190000,Facilities & Management Services
South Lakeland District Council,http://opendatacommunities.org/id/district-council/south-lakeland,28/02/2017,Development Implementation,Cultural Environmental Regulatory & Planning Services,http://opendatacommunities.org/def/concept/finance/sercop/objective/104,Global Exhibition Specialists,2930892,06/02/2017,65073,260.4,0,Stand 164 for SLDC/Invest in South,190000,Facilities & Management Services
South Lakeland District Council,http://opendatacommunities.org/id/district-council/south-lakeland,28/02/2017,Development Implementation,Cultural Environmental Regulatory & Planning Services,http://opendatacommunities.org/def/concept/finance/sercop/objective/104,Global Exhibition Specialists,2930892,13/02/2017,65074,180.6,0,Stand 164 for SLDC/Invest in South,190000,Facilities & Management Services
South Lakeland District Council,http://opendatacommunities.org/id/district-council/south-lakeland,28/02/2017,Democratic and Member Services,Cultural Environmental Regulatory & Planning Services,http://opendatacommunities.org/def/concept/finance/sercop/objective/104,GRANTS- MISCELLANEOUS,,06/02/2017,65083,250,0,250 donation from Cllr to St,201700,Financial Services Grants
South Lakeland District Council,http://opendatacommunities.org/id/district-council/south-lakeland,28/02/2017,Democratic and Member Services,Cultural Environmental Regulatory & Planning Services,http://opendatacommunities.org/def/concept/finance/sercop/objective/104,GRANTS- MISCELLANEOUS,,06/02/2017,65149,500,0,500 donation from Cllr ,201700,Financial Services Grants
South Lakeland District Council,http://opendatacommunities.org/id/district-council/south-lakeland,28/02/2017,Democratic and Member Services,Cultural Environmental Regulatory & Planning Services,http://opendatacommunities.org/def/concept/finance/sercop/objective/104,GRANTS- MISCELLANEOUS,,06/02/2017,65158,1000,0,Cllr donation towards,201700,Financial Services Grants
South Lakeland District Council,http://opendatacommunities.org/id/district-council/south-lakeland,28/02/2017,Democratic and Member Services,Cultural Environmental Regulatory & Planning Services,http://opendatacommunities.org/def/concept/finance/sercop/objective/104,GRANTS- MISCELLANEOUS,,15/02/2017,65426,200,0,200 donation towards IT equipment from,201700,Financial Services Grants
South Lakeland District Council,http://opendatacommunities.org/id/district-council/south-lakeland,28/02/2017,Democratic and Member Services,Cultural Environmental Regulatory & Planning Services,http://opendatacommunities.org/def/concept/finance/sercop/objective/104,GRANTS- MISCELLANEOUS,,27/02/2017,65601,500,0,500 donation from Cllr to,201700,Financial Services Grants
South Lakeland District Council,http://opendatacommunities.org/id/district-council/south-lakeland,28/02/2017,Financial Services,Central Services,http://opendatacommunities.org/def/concept/finance/sercop/objective/102,GREATER MANCHESTER PENSION FUND,,06/02/2017,65107,10822.17,0,April to September 2016 Rechargeable,908999,Public Bodies Not Elsewhere Classified
South Lakeland District Council,http://opendatacommunities.org/id/district-council/south-lakeland,28/02/2017,Environment and Housing,Housing Services,http://opendatacommunities.org/def/concept/finance/sercop/objective/108,GROWING CONCERNS LTD,,08/02/2017,65191,1106.34,0,Payment for Handy Person Scheme,391200,Construction Engineering
South Lakeland District Council,http://opendatacommunities.org/id/district-council/south-lakeland,28/02/2017,Environment and Housing,Housing Services,http://opendatacommunities.org/def/concept/finance/sercop/objective/108,GROWING CONCERNS LTD,,22/02/2017,65636,1227.08,0,Payment for Handy Person Scheme,391200,Construction Engineering
South Lakeland District Council,http://opendatacommunities.org/id/district-council/south-lakeland,28/02/2017,Customer Services,Central Services,http://opendatacommunities.org/def/concept/finance/sercop/objective/102,H & H REEDS PRINTERS LTD,139166,15/02/2017,65403,125,0,As per estimated quote 218041,191100,Facilities Design & Photography
South Lakeland District Council,http://opendatacommunities.org/id/district-council/south-lakeland,28/02/2017,Business Support Community Services,Internal Trading Accounts,,H WICKS (LINDAL) LTD,754590,06/02/2017,65098,600,0,"Gate fees, handling, transport & baling",182012,Environment Waste Management Recycling
South Lakeland District Council,http://opendatacommunities.org/id/district-council/south-lakeland,28/02/2017,Business Support Community Services,Internal Trading Accounts,,H WICKS (LINDAL) LTD,754590,06/02/2017,65147,420,0,"Gate fees, handling, transport & baling",182012,Environment Waste Management Recycling
South Lakeland District Council,http://opendatacommunities.org/id/district-council/south-lakeland,28/02/2017,Business Support Community Services,Internal Trading Accounts,,H WICKS (LINDAL) LTD,754590,20/02/2017,65492,2081.72,0,"Gate fees, handling, transport & baling",182012,Environment Waste Management Recycling
South Lakeland District Council,http://opendatacommunities.org/id/district-council/south-lakeland,28/02/2017,Business Support Community Services,Internal Trading Accounts,,H WICKS (LINDAL) LTD,754590,20/02/2017,65564,300,0,"Gate fees, handling, transport & baling",182012,Environment Waste Management Recycling
South Lakeland District Council,http://opendatacommunities.org/id/district-council/south-lakeland,28/02/2017,Business Support Community Services,Internal Trading Accounts,,HAKO MACHINES LIMITED,1414225,06/02/2017,65136,5043.99,0,Hire of KP63 WXW 01/02/16 - 31/03/16,131000,Cleaning & Janitorial Cleaning Materials
South Lakeland District Council,http://opendatacommunities.org/id/district-council/south-lakeland,28/02/2017,Business Support Community Services,Internal Trading Accounts,,HAKO MACHINES LIMITED,1414225,13/02/2017,65352,70.9,0,Hose,131000,Cleaning & Janitorial Cleaning Materials
South Lakeland District Council,http://opendatacommunities.org/id/district-council/south-lakeland,28/02/2017,Business Support Community Services,Internal Trading Accounts,,HAKO MACHINES LIMITED,1414225,13/02/2017,65354,72.08,0,Hose,131000,Cleaning & Janitorial Cleaning Materials
South Lakeland District Council,http://opendatacommunities.org/id/district-council/south-lakeland,28/02/2017,Business Support Community Services,Internal Trading Accounts,,HAKO MACHINES LIMITED,1414225,20/02/2017,65555,167.76,0,Hose,131000,Cleaning & Janitorial Cleaning Materials
South Lakeland District Council,http://opendatacommunities.org/id/district-council/south-lakeland,28/02/2017,Electoral Services,Central Services,http://opendatacommunities.org/def/concept/finance/sercop/objective/102,HALAROSE LIMITED,1362834,08/02/2017,65056,720,0,Halarose Workshop and User Group 3,271600,ICT Software Customised & Bespoke
South Lakeland District Council,http://opendatacommunities.org/id/district-council/south-lakeland,28/02/2017,Electoral Services,Central Services,http://opendatacommunities.org/def/concept/finance/sercop/objective/102,HALAROSE LIMITED,1362834,08/02/2017,65056,545,0,Halarose Workshop and User Group 3,271600,ICT Software Customised & Bespoke
South Lakeland District Council,http://opendatacommunities.org/id/district-council/south-lakeland,28/02/2017,Business Support Community Services,Internal Trading Accounts,,Harry Park Tyres Ltd,8131208,06/02/2017,65148,210,0,Tyre turns,381500,Vehicle Mgt Parts
South Lakeland District Council,http://opendatacommunities.org/id/district-council/south-lakeland,28/02/2017,Business Support Community Services,Internal Trading Accounts,,Harry Park Tyres Ltd,8131208,08/02/2017,65206,225,0,Call out,381500,Vehicle Mgt Parts
South Lakeland District Council,http://opendatacommunities.org/id/district-council/south-lakeland,28/02/2017,Business Support Community Services,Internal Trading Accounts,,Harry Park Tyres Ltd,8131208,08/02/2017,65208,190,0,Call out,381500,Vehicle Mgt Parts
South Lakeland District Council,http://opendatacommunities.org/id/district-council/south-lakeland,28/02/2017,Business Support Community Services,Internal Trading Accounts,,Harry Park Tyres Ltd,8131208,08/02/2017,65226,2484,0,Call out,381500,Vehicle Mgt Parts
South Lakeland District Council,http://opendatacommunities.org/id/district-council/south-lakeland,28/02/2017,Business Support Community Services,Internal Trading Accounts,,Harry Park Tyres Ltd,8131208,08/02/2017,65235,37.5,0,Call out,381500,Vehicle Mgt Parts
South Lakeland District Council,http://opendatacommunities.org/id/district-council/south-lakeland,28/02/2017,Business Support Community Services,Internal Trading Accounts,,Harry Park Tyres Ltd,8131208,15/02/2017,65253,90,0,Call out,381500,Vehicle Mgt Parts
South Lakeland District Council,http://opendatacommunities.org/id/district-council/south-lakeland,28/02/2017,Business Support Community Services,Internal Trading Accounts,,Harry Park Tyres Ltd,8131208,13/02/2017,65257,20,0,Call out,381500,Vehicle Mgt Parts
South Lakeland District Council,http://opendatacommunities.org/id/district-council/south-lakeland,28/02/2017,Business Support Community Services,Internal Trading Accounts,,Harry Park Tyres Ltd,8131208,13/02/2017,65258,1057.5,0,Call out,381500,Vehicle Mgt Parts
South Lakeland District Council,http://opendatacommunities.org/id/district-council/south-lakeland,28/02/2017,Revenues and Benefits,Central Services,http://opendatacommunities.org/def/concept/finance/sercop/objective/102,HBINFO LTD,5779046,06/02/2017,65161,399,0,Subscription 2017 - 2018 'A' rate to,201400,Financial Services C Tax & Bus Rates
South Lakeland District Council,http://opendatacommunities.org/id/district-council/south-lakeland,28/02/2017,Business Support Community Services,Internal Trading Accounts,,HYDRAIR TRUCK & TRAILER PARTS LTD,,20/02/2017,64178,127.98,0,Air filter,381500,Vehicle Mgt Parts
South Lakeland District Council,http://opendatacommunities.org/id/district-council/south-lakeland,28/02/2017,Business Support Community Services,Internal Trading Accounts,,HYDRAIR TRUCK & TRAILER PARTS LTD,,08/02/2017,65202,65.93,0,Diaphragm,381500,Vehicle Mgt Parts
South Lakeland District Council,http://opendatacommunities.org/id/district-council/south-lakeland,28/02/2017,Business Support Community Services,Internal Trading Accounts,,HYDRAIR TRUCK & TRAILER PARTS LTD,,08/02/2017,65204,216,0,Diaphragm,381500,Vehicle Mgt Parts
South Lakeland District Council,http://opendatacommunities.org/id/district-council/south-lakeland,28/02/2017,Business Support Community Services,Internal Trading Accounts,,HYDRAIR TRUCK & TRAILER PARTS LTD,,08/02/2017,65212,169.84,0,Diaphragm,381500,Vehicle Mgt Parts
South Lakeland District Council,http://opendatacommunities.org/id/district-council/south-lakeland,28/02/2017,Business Support Community Services,Internal Trading Accounts,,HYDRAIR TRUCK & TRAILER PARTS LTD,,08/02/2017,65214,108,0,Diaphragm,381500,Vehicle Mgt Parts
South Lakeland District Council,http://opendatacommunities.org/id/district-council/south-lakeland,28/02/2017,Business Support Community Services,Internal Trading Accounts,,HYDRAIR TRUCK & TRAILER PARTS LTD,,08/02/2017,65215,104.52,0,Diaphragm,381500,Vehicle Mgt Parts
South Lakeland District Council,http://opendatacommunities.org/id/district-council/south-lakeland,28/02/2017,Business Support Community Services,Internal Trading Accounts,,HYDRAIR TRUCK & TRAILER PARTS LTD,,08/02/2017,65216,108.86,0,Diaphragm,381500,Vehicle Mgt Parts
South Lakeland District Council,http://opendatacommunities.org/id/district-council/south-lakeland,28/02/2017,Business Support Community Services,Internal Trading Accounts,,HYDRAIR TRUCK & TRAILER PARTS LTD,,08/02/2017,65218,108,0,Diaphragm,381500,Vehicle Mgt Parts
South Lakeland District Council,http://opendatacommunities.org/id/district-council/south-lakeland,28/02/2017,Business Support Community Services,Internal Trading Accounts,,HYDRAIR TRUCK & TRAILER PARTS LTD,,08/02/2017,65219,120,0,Diaphragm,381500,Vehicle Mgt Parts
South Lakeland District Council,http://opendatacommunities.org/id/district-council/south-lakeland,28/02/2017,Business Support Community Services,Internal Trading Accounts,,HYDRAIR TRUCK & TRAILER PARTS LTD,,08/02/2017,65220,217.72,0,Diaphragm,381500,Vehicle Mgt Parts
South Lakeland District Council,http://opendatacommunities.org/id/district-council/south-lakeland,28/02/2017,Business Support Community Services,Internal Trading Accounts,,HYDRAIR TRUCK & TRAILER PARTS LTD,,08/02/2017,65221,84.92,0,Diaphragm,381500,Vehicle Mgt Parts
South Lakeland District Council,http://opendatacommunities.org/id/district-council/south-lakeland,28/02/2017,Business Support Community Services,Internal Trading Accounts,,HYDRAIR TRUCK & TRAILER PARTS LTD,,08/02/2017,65222,174.55,0,Diaphragm,381500,Vehicle Mgt Parts
South Lakeland District Council,http://opendatacommunities.org/id/district-council/south-lakeland,28/02/2017,Business Support Community Services,Internal Trading Accounts,,HYDRAIR TRUCK & TRAILER PARTS LTD,,08/02/2017,65224,174.55,0,Diaphragm,381500,Vehicle Mgt Parts
South Lakeland District Council,http://opendatacommunities.org/id/district-council/south-lakeland,28/02/2017,Business Support Community Services,Internal Trading Accounts,,HYDRAIR TRUCK & TRAILER PARTS LTD,,13/02/2017,65254,155.12,0,Diaphragm,381500,Vehicle Mgt Parts
South Lakeland District Council,http://opendatacommunities.org/id/district-council/south-lakeland,28/02/2017,Business Support Community Services,Internal Trading Accounts,,HYDRAIR TRUCK & TRAILER PARTS LTD,,13/02/2017,65357,26.48,0,Mudflaps,381500,Vehicle Mgt Parts
South Lakeland District Council,http://opendatacommunities.org/id/district-council/south-lakeland,28/02/2017,Social Enterprise Admin,Cultural Environmental Regulatory & Planning Services,http://opendatacommunities.org/def/concept/finance/sercop/objective/104,IMS Cumbria,4887673,27/02/2017,65618,2857.14,0,Works to Foot Bridge Old x 2 and Tail,221100,Health & Safety� Maintenance
South Lakeland District Council,http://opendatacommunities.org/id/district-council/south-lakeland,28/02/2017,Human Resources,Central Services,http://opendatacommunities.org/def/concept/finance/sercop/objective/102,Indicator - FL Memo Ltd,3599719,01/02/2017,65068,130.05,0,Employment memo 2017 subscription x1,201400,Financial Services C Tax & Bus Rates
South Lakeland District Council,http://opendatacommunities.org/id/district-council/south-lakeland,28/02/2017,Business Support Community Services,Internal Trading Accounts,,INNOVATIVE SAFETY SYSTEMS LTD,6875015,08/02/2017,65150,517,0,Camera wash systems,192200,Facilities Security
South Lakeland District Council,http://opendatacommunities.org/id/district-council/south-lakeland,28/02/2017,ICT Group,Central Services,http://opendatacommunities.org/def/concept/finance/sercop/objective/102,Insight Direct (Uk) Ltd,2579852,13/02/2017,63910,4863.05,0,4668410 / HP6-00003 Microsoft Surface,271200,ICT Hardware
South Lakeland District Council,http://opendatacommunities.org/id/district-council/south-lakeland,28/02/2017,ICT Group,Central Services,http://opendatacommunities.org/def/concept/finance/sercop/objective/102,Insight Direct (Uk) Ltd,2579852,20/02/2017,64287,1467.01,0,4668410 / HP6-00003 Microsoft Surface,271200,ICT Hardware
South Lakeland District Council,http://opendatacommunities.org/id/district-council/south-lakeland,28/02/2017,ICT Group,Central Services,http://opendatacommunities.org/def/concept/finance/sercop/objective/102,Insight Direct (Uk) Ltd,2579852,15/02/2017,64958,58.76,0,Microsoft Sculpt Ergonomic Desktop -,271200,ICT Hardware
South Lakeland District Council,http://opendatacommunities.org/id/district-council/south-lakeland,28/02/2017,ICT Group,Central Services,http://opendatacommunities.org/def/concept/finance/sercop/objective/102,Insight Direct (Uk) Ltd,2579852,20/02/2017,65001,148.17,0,"BenQ BL2405HT - LED monitor - 24""",271200,ICT Hardware
South Lakeland District Council,http://opendatacommunities.org/id/district-council/south-lakeland,28/02/2017,ICT Group,Central Services,http://opendatacommunities.org/def/concept/finance/sercop/objective/102,Insight Direct (Uk) Ltd,2579852,20/02/2017,65002,269.35,0,Fujitsu Consumable Kit - scanner,271200,ICT Hardware
South Lakeland District Council,http://opendatacommunities.org/id/district-council/south-lakeland,28/02/2017,ICT Group,Central Services,http://opendatacommunities.org/def/concept/finance/sercop/objective/102,Insight Direct (Uk) Ltd,2579852,20/02/2017,65003,5.6,0,"BenQ BL2405HT - LED monitor - 24""",271200,ICT Hardware
South Lakeland District Council,http://opendatacommunities.org/id/district-council/south-lakeland,28/02/2017,ICT Group,Central Services,http://opendatacommunities.org/def/concept/finance/sercop/objective/102,Insight Direct (Uk) Ltd,2579852,15/02/2017,65064,19.55,0,Plantronics Blackwire 310-M Monaural,271200,ICT Hardware
South Lakeland District Council,http://opendatacommunities.org/id/district-council/south-lakeland,28/02/2017,ICT Group,Central Services,http://opendatacommunities.org/def/concept/finance/sercop/objective/102,Insight Direct (Uk) Ltd,2579852,15/02/2017,65065,19.55,0,Plantronics Blackwire 310-M Monaural,271200,ICT Hardware
South Lakeland District Council,http://opendatacommunities.org/id/district-council/south-lakeland,28/02/2017,Financial Services,Central Services,http://opendatacommunities.org/def/concept/finance/sercop/objective/102,Insight Direct (Uk) Ltd,2579852,20/02/2017,65477,4383.89,0,Lenovo Thinkpad E560-20EV order placed,271200,ICT Hardware
South Lakeland District Council,http://opendatacommunities.org/id/district-council/south-lakeland,28/02/2017,ICT Group,Central Services,http://opendatacommunities.org/def/concept/finance/sercop/objective/102,Insight Direct (Uk) Ltd,2579852,27/02/2017,65615,401.44,0,HP laptop,271200,ICT Hardware
South Lakeland District Council,http://opendatacommunities.org/id/district-council/south-lakeland,28/02/2017,Business Support Community Services,Central Services,http://opendatacommunities.org/def/concept/finance/sercop/objective/102,INSTITUTE OF LICENSING (EVENTS) LTD,5710898,27/02/2017,65457,390,0,"Acupuncture, Tattoo and Cosmetic Skin",202100,Financial Services Subscriptions
South Lakeland District Council,http://opendatacommunities.org/id/district-council/south-lakeland,28/02/2017,Business Support Community Services,Central Services,http://opendatacommunities.org/def/concept/finance/sercop/objective/102,INSTITUTE OF LICENSING (EVENTS) LTD,5710898,27/02/2017,65675,455,0,"Acupuncture, Tattoo and Cosmetic Skin",202100,Financial Services Subscriptions
South Lakeland District Council,http://opendatacommunities.org/id/district-council/south-lakeland,28/02/2017,Revenues and Benefits,Central Services,http://opendatacommunities.org/def/concept/finance/sercop/objective/102,IRRV (L & C BRANCH),,27/02/2017,65610,150,0,3 Seminars - January & February 2017 -,201700,Financial Services Grants
South Lakeland District Council,http://opendatacommunities.org/id/district-council/south-lakeland,28/02/2017,ICT Group,Central Services,http://opendatacommunities.org/def/concept/finance/sercop/objective/102,IT PROFESSIONAL SERVICES (ITPS),,01/02/2017,65063,750,0,"Audiocodes E1 pri rate card, as agreed",279999,ICT Not Elsewhere Classified
South Lakeland District Council,http://opendatacommunities.org/id/district-council/south-lakeland,28/02/2017,ICT Group,Central Services,http://opendatacommunities.org/def/concept/finance/sercop/objective/102,ITPS Professional Services Ltd (DD),,01/02/2017,65501,857.14,0,Lync Line Rental Charges,271700,ICT Telecommunications Fixed
South Lakeland District Council,http://opendatacommunities.org/id/district-council/south-lakeland,28/02/2017,ICT Group,Central Services,http://opendatacommunities.org/def/concept/finance/sercop/objective/102,ITPS Professional Services Ltd (DD),,01/02/2017,65501,471.05,0,Lync Line Rental Charges,271700,ICT Telecommunications Fixed
South Lakeland District Council,http://opendatacommunities.org/id/district-council/south-lakeland,28/02/2017,ICT Group,Central Services,http://opendatacommunities.org/def/concept/finance/sercop/objective/102,ITPS Professional Services Ltd (DD),,01/02/2017,65517,840.76,0,Lync Line Rental Charges,271700,ICT Telecommunications Fixed
South Lakeland District Council,http://opendatacommunities.org/id/district-council/south-lakeland,28/02/2017,ICT Group,Central Services,http://opendatacommunities.org/def/concept/finance/sercop/objective/102,ITPS Professional Services Ltd (DD),,01/02/2017,65517,509.65,0,Lync Line Rental Charges,271700,ICT Telecommunications Fixed
South Lakeland District Council,http://opendatacommunities.org/id/district-council/south-lakeland,28/02/2017,Business Support Community Services,Internal Trading Accounts,,J R RICHARDSON LTD,2225792,13/02/2017,65345,235.77,0,Vehicle washing consumables,381500,Vehicle Mgt Parts
South Lakeland District Council,http://opendatacommunities.org/id/district-council/south-lakeland,28/02/2017,Development Implementation,SLDC as Agent,,James Robinson,,06/02/2017,65116,200,0,Film usage for Kendal Website,191010,Facilities Advertising Promo & Recruit
South Lakeland District Council,http://opendatacommunities.org/id/district-council/south-lakeland,28/02/2017,Business Support Community Services,Cultural Environmental Regulatory & Planning Services,http://opendatacommunities.org/def/concept/finance/sercop/objective/104,JEWSON LIMITED,348407,13/02/2017,65369,44.07,0,Fixtures & fittings 2016/17,101400,Building General Materials
South Lakeland District Council,http://opendatacommunities.org/id/district-council/south-lakeland,28/02/2017,Development Implementation,Cultural Environmental Regulatory & Planning Services,http://opendatacommunities.org/def/concept/finance/sercop/objective/104,John Smale Media Services,,13/02/2017,65299,217.57,0,"Reception Duties at 124 Highgate,",191010,Facilities Advertising Promo & Recruit
South Lakeland District Council,http://opendatacommunities.org/id/district-council/south-lakeland,28/02/2017,Business Support Community Services,Internal Trading Accounts,,K S INTERNATIONAL LTD,2703321,20/02/2017,65355,50,0,Brake pads,381500,Vehicle Mgt Parts
South Lakeland District Council,http://opendatacommunities.org/id/district-council/south-lakeland,28/02/2017,Business Support Community Services,Internal Trading Accounts,,K S INTERNATIONAL LTD,2703321,20/02/2017,65358,30,0,Brake pads,381500,Vehicle Mgt Parts
South Lakeland District Council,http://opendatacommunities.org/id/district-council/south-lakeland,28/02/2017,Business Support Community Services,Internal Trading Accounts,,K S INTERNATIONAL LTD,2703321,20/02/2017,65366,530,0,Brake pads,381500,Vehicle Mgt Parts
South Lakeland District Council,http://opendatacommunities.org/id/district-council/south-lakeland,28/02/2017,Environment and Housing,Housing,http://opendatacommunities.org/def/concept/finance/sercop/objective/108,Kendal Building Company,348755,20/02/2017,65574,18248.2,0,"Moorside, Flookburgh,",101400,Building General Materials
South Lakeland District Council,http://opendatacommunities.org/id/district-council/south-lakeland,28/02/2017,Policy & Partnerships,Central Services,http://opendatacommunities.org/def/concept/finance/sercop/objective/102,KENDAL COLLEGE,,13/02/2017,65105,380,0,Cost of room hire inc refreshments for,908999,Public Bodies Not Elsewhere Classified
South Lakeland District Council,http://opendatacommunities.org/id/district-council/south-lakeland,28/02/2017,Human Resources,Central Services,http://opendatacommunities.org/def/concept/finance/sercop/objective/102,KENDAL COLLEGE,,20/02/2017,65527,350,0,000031288 forced completed in error 4,908999,Public Bodies Not Elsewhere Classified
South Lakeland District Council,http://opendatacommunities.org/id/district-council/south-lakeland,28/02/2017,Business Support Community Services,Housing Services,http://opendatacommunities.org/def/concept/finance/sercop/objective/108,KENDAL HOSTEL,,27/02/2017,65602,800,0,Accommodation,261000,HR Accommodation
South Lakeland District Council,http://opendatacommunities.org/id/district-council/south-lakeland,28/02/2017,Human Resources,Central Services,http://opendatacommunities.org/def/concept/finance/sercop/objective/102,KENTDALE FIRST AID TRAINING,,06/02/2017,65129,270,0,3 members of her staff,261500,HR Training & Conferences
South Lakeland District Council,http://opendatacommunities.org/id/district-council/south-lakeland,28/02/2017,Human Resources,Central Services,http://opendatacommunities.org/def/concept/finance/sercop/objective/102,KENTDALE FIRST AID TRAINING,,08/02/2017,65230,90,0,First Aid booking for,261500,HR Training & Conferences
South Lakeland District Council,http://opendatacommunities.org/id/district-council/south-lakeland,28/02/2017,Financial Services,SLDC as Agent,,KIRKLAND TRUST (KENDAL),,15/02/2017,65452,3403.5,0,2016/17 Income,201700,Financial Services Grants
South Lakeland District Council,http://opendatacommunities.org/id/district-council/south-lakeland,28/02/2017,Printing Section,Central Services,http://opendatacommunities.org/def/concept/finance/sercop/objective/102,Konica Minolta Bus Solutions (UK) Ltd,,06/02/2017,64660,3096.13,0,Konica Embedded License,192000,Facilities Reprographics
South Lakeland District Council,http://opendatacommunities.org/id/district-council/south-lakeland,28/02/2017,Lake Wardens,SLDC as Agent,,LAKE DISTRICT NATIONAL PARK AUTHORITY,,08/02/2017,65209,557.48,0,Monthly Invoices for 2016/2017 for Boat,201700,Financial Services Grants
South Lakeland District Council,http://opendatacommunities.org/id/district-council/south-lakeland,28/02/2017,Development Implementation,Cultural Environmental Regulatory & Planning Services,http://opendatacommunities.org/def/concept/finance/sercop/objective/104,LAKELAND ARTS,8162578,13/02/2017,65311,6000,0,Town Centre Flood Recovery Grant -,201700,Financial Services Grants
South Lakeland District Council,http://opendatacommunities.org/id/district-council/south-lakeland,28/02/2017,Financial Services,SLDC as Agent,,LAKELAND ESTATES (AMBLESIDE) LTD,3022544,15/02/2017,65453,7895.29,0,2016/17 Income,191700,Facilities Property Management
South Lakeland District Council,http://opendatacommunities.org/id/district-council/south-lakeland,28/02/2017,Policy & Partnerships,Cultural Environmental Regulatory & Planning Services,http://opendatacommunities.org/def/concept/finance/sercop/objective/104,Lakeland Sinfonia Concert Society,,20/02/2017,65500,3500,0,Arts and Events Funding - 2015-17 - year,201700,Financial Services Grants
South Lakeland District Council,http://opendatacommunities.org/id/district-council/south-lakeland,28/02/2017,Social Enterprise Admin,Cultural Environmental Regulatory & Planning Services,http://opendatacommunities.org/def/concept/finance/sercop/objective/104,LAMBERT SMITH HAMPTON GROUP,2521225,06/02/2017,65121,675,0,APPRAISALS FOR PLANNING DEPARTMENT,999999,Unclassifiable
South Lakeland District Council,http://opendatacommunities.org/id/district-council/south-lakeland,28/02/2017,Development Implementation,Central Services,http://opendatacommunities.org/def/concept/finance/sercop/objective/102,LAMBERT SMITH HAMPTON GROUP,2521225,06/02/2017,65125,60140.17,0,Property Services Contract - Monthly,999999,Unclassifiable
South Lakeland District Council,http://opendatacommunities.org/id/district-council/south-lakeland,28/02/2017,Development Implementation,Central Services,http://opendatacommunities.org/def/concept/finance/sercop/objective/102,LAMBERT SMITH HAMPTON GROUP,2521225,20/02/2017,65530,1081,0,"DEC for SL House, DEC & AR for Kendal",999999,Unclassifiable
South Lakeland District Council,http://opendatacommunities.org/id/district-council/south-lakeland,28/02/2017,Business Support Community Services,Internal Trading Accounts,,LANCASTER TRAINING SERVICES LTD,1447612,06/02/2017,65089,166.25,0,Training 2016/17 (SWK),261500,HR Training & Conferences
South Lakeland District Council,http://opendatacommunities.org/id/district-council/south-lakeland,28/02/2017,Business Support Community Services,Internal Trading Accounts,,LANCASTER TRAINING SERVICES LTD,1447612,06/02/2017,65089,332.5,0,Training 2016/17 (SWK),261500,HR Training & Conferences
South Lakeland District Council,http://opendatacommunities.org/id/district-council/south-lakeland,28/02/2017,Business Support Community Services,Internal Trading Accounts,,LANCASTER TRAINING SERVICES LTD,1447612,20/02/2017,65504,135.85,0,Training 2016/17 (SWK),261500,HR Training & Conferences
South Lakeland District Council,http://opendatacommunities.org/id/district-council/south-lakeland,28/02/2017,Business Support Community Services,Internal Trading Accounts,,LANCASTER TRAINING SERVICES LTD,1447612,20/02/2017,65504,555.4,0,Training 2016/17 (SWK),261500,HR Training & Conferences
South Lakeland District Council,http://opendatacommunities.org/id/district-council/south-lakeland,28/02/2017,Business Support Community Services,Housing Services,http://opendatacommunities.org/def/concept/finance/sercop/objective/108,Landlord,,01/02/2017,65041,600,0,Monthly rent ,250000,Housing
South Lakeland District Council,http://opendatacommunities.org/id/district-council/south-lakeland,28/02/2017,Business Support Community Services,Housing Services,http://opendatacommunities.org/def/concept/finance/sercop/objective/108,Landlord,,08/02/2017,65192,400,0,Monthly rent ,250000,Housing
South Lakeland District Council,http://opendatacommunities.org/id/district-council/south-lakeland,28/02/2017,Business Support Community Services,Housing Services,http://opendatacommunities.org/def/concept/finance/sercop/objective/108,Landlord,,08/02/2017,65193,400,0,Monthly rent ,250010,Housing Letting Agents
South Lakeland District Council,http://opendatacommunities.org/id/district-council/south-lakeland,28/02/2017,Business Support Community Services,Housing Services,http://opendatacommunities.org/def/concept/finance/sercop/objective/108,Landlord,,08/02/2017,65194,400,0,Monthly rent ,250000,Housing
South Lakeland District Council,http://opendatacommunities.org/id/district-council/south-lakeland,28/02/2017,Business Support Community Services,Housing Services,http://opendatacommunities.org/def/concept/finance/sercop/objective/108,Landlord,,08/02/2017,65195,500,0,Monthly rent ,202000,Financial Services Rents
South Lakeland District Council,http://opendatacommunities.org/id/district-council/south-lakeland,28/02/2017,Business Support Community Services,Housing Services,http://opendatacommunities.org/def/concept/finance/sercop/objective/108,Landlord,,13/02/2017,65381,600,0,Monthly rent ,250000,Housing
South Lakeland District Council,http://opendatacommunities.org/id/district-council/south-lakeland,28/02/2017,Business Support Community Services,Housing Services,http://opendatacommunities.org/def/concept/finance/sercop/objective/108,Landlord,,13/02/2017,65382,520,0,Monthly rent ,202000,Financial Services Rents
South Lakeland District Council,http://opendatacommunities.org/id/district-council/south-lakeland,28/02/2017,Business Support Community Services,Housing Services,http://opendatacommunities.org/def/concept/finance/sercop/objective/108,Landlord,,13/02/2017,65383,520,0,Monthly rent,202000,Financial Services Rents
South Lakeland District Council,http://opendatacommunities.org/id/district-council/south-lakeland,28/02/2017,Business Support Community Services,Housing Services,http://opendatacommunities.org/def/concept/finance/sercop/objective/108,Landlord,7121028,13/02/2017,65384,400,0,Monthly rent ,202000,Financial Services Rents
South Lakeland District Council,http://opendatacommunities.org/id/district-council/south-lakeland,28/02/2017,Business Support Community Services,Housing Services,http://opendatacommunities.org/def/concept/finance/sercop/objective/108,Landlord,,13/02/2017,65386,520,0,Monthly rent ,202000,Financial Services Rents
South Lakeland District Council,http://opendatacommunities.org/id/district-council/south-lakeland,28/02/2017,Business Support Community Services,Housing Services,http://opendatacommunities.org/def/concept/finance/sercop/objective/108,Landlord,,13/02/2017,65388,520,0,Monthly rent ,202000,Financial Services Rents
South Lakeland District Council,http://opendatacommunities.org/id/district-council/south-lakeland,28/02/2017,Business Support Community Services,Housing Services,http://opendatacommunities.org/def/concept/finance/sercop/objective/108,Landlord,,15/02/2017,65441,890,0,Monthly rent,250000,Housing
South Lakeland District Council,http://opendatacommunities.org/id/district-council/south-lakeland,28/02/2017,Business Support Community Services,Housing Services,http://opendatacommunities.org/def/concept/finance/sercop/objective/108,Landlord,,15/02/2017,65442,1190,0,Monthly rent,202000,Financial Services Rents
South Lakeland District Council,http://opendatacommunities.org/id/district-council/south-lakeland,28/02/2017,Business Support Community Services,Housing Services,http://opendatacommunities.org/def/concept/finance/sercop/objective/108,Landlord,,15/02/2017,65443,520,0,Monthly rent ,250010,Housing Letting Agents
South Lakeland District Council,http://opendatacommunities.org/id/district-council/south-lakeland,28/02/2017,Business Support Community Services,Housing Services,http://opendatacommunities.org/def/concept/finance/sercop/objective/108,Landlord,8672920,15/02/2017,65444,400,0,Monthly rent ,202000,Financial Services Rents
South Lakeland District Council,http://opendatacommunities.org/id/district-council/south-lakeland,28/02/2017,Business Support Community Services,Housing Services,http://opendatacommunities.org/def/concept/finance/sercop/objective/108,Landlord,7803122,22/02/2017,65596,500,0,Monthly rent ,250000,Housing
South Lakeland District Council,http://opendatacommunities.org/id/district-council/south-lakeland,28/02/2017,Business Support Community Services,Housing Services,http://opendatacommunities.org/def/concept/finance/sercop/objective/108,Landlord,,27/02/2017,65597,625,0,Monthly rent ,250000,Housing
South Lakeland District Council,http://opendatacommunities.org/id/district-council/south-lakeland,28/02/2017,Business Support Community Services,Housing Services,http://opendatacommunities.org/def/concept/finance/sercop/objective/108,Landlord,7009105,27/02/2017,65704,480,0,Monthly rent ,250000,Housing
South Lakeland District Council,http://opendatacommunities.org/id/district-council/south-lakeland,28/02/2017,Business Support Community Services,Housing Services,http://opendatacommunities.org/def/concept/finance/sercop/objective/108,Landlord,,27/02/2017,65705,400,0,Monthly rent ,250000,Housing
South Lakeland District Council,http://opendatacommunities.org/id/district-council/south-lakeland,28/02/2017,Business Support Community Services,Housing Services,http://opendatacommunities.org/def/concept/finance/sercop/objective/108,Landlord,,27/02/2017,65706,520,0,Monthly rent ,250000,Housing
South Lakeland District Council,http://opendatacommunities.org/id/district-council/south-lakeland,28/02/2017,Business Support Community Services,Housing Services,http://opendatacommunities.org/def/concept/finance/sercop/objective/108,Landlord,,27/02/2017,65707,500,0,Monthly rent ,250000,Housing
South Lakeland District Council,http://opendatacommunities.org/id/district-council/south-lakeland,28/02/2017,Business Support Community Services,Housing Services,http://opendatacommunities.org/def/concept/finance/sercop/objective/108,Landlord,,27/02/2017,65708,625,0,Monthly rent ,202000,Financial Services Rents
South Lakeland District Council,http://opendatacommunities.org/id/district-council/south-lakeland,28/02/2017,Business Support Community Services,Housing Services,http://opendatacommunities.org/def/concept/finance/sercop/objective/108,Landlord,,27/02/2017,65709,500,0,Monthly rent ,250010,Housing Letting Agents
South Lakeland District Council,http://opendatacommunities.org/id/district-council/south-lakeland,28/02/2017,Business Support Community Services,Housing Services,http://opendatacommunities.org/def/concept/finance/sercop/objective/108,Landlord,,27/02/2017,65710,410,0,Monthly rent ,250000,Housing
South Lakeland District Council,http://opendatacommunities.org/id/district-council/south-lakeland,28/02/2017,Business Support Community Services,Housing Services,http://opendatacommunities.org/def/concept/finance/sercop/objective/108,Landlord,,27/02/2017,65711,625,0,Monthly rent ,202000,Financial Services Rents
South Lakeland District Council,http://opendatacommunities.org/id/district-council/south-lakeland,28/02/2017,Business Support Community Services,Housing Services,http://opendatacommunities.org/def/concept/finance/sercop/objective/108,Landlord,,27/02/2017,65712,500,0,Monthly rent ,202000,Financial Services Rents
South Lakeland District Council,http://opendatacommunities.org/id/district-council/south-lakeland,28/02/2017,Business Support Community Services,Housing Services,http://opendatacommunities.org/def/concept/finance/sercop/objective/108,Landlord,,27/02/2017,65713,415,0,Monthly rent ,250010,Housing Letting Agents
South Lakeland District Council,http://opendatacommunities.org/id/district-council/south-lakeland,28/02/2017,Social Enterprise Admin,Cultural Environmental Regulatory & Planning Services,http://opendatacommunities.org/def/concept/finance/sercop/objective/104,LDA Cleaning Services Ltd,8917986,08/02/2017,65239,175,0,For  the continuation of cleaning,131310,Cleaning & Janitorial Cleaning Service
South Lakeland District Council,http://opendatacommunities.org/id/district-council/south-lakeland,28/02/2017,Social Enterprise Admin,Cultural Environmental Regulatory & Planning Services,http://opendatacommunities.org/def/concept/finance/sercop/objective/104,LDA Cleaning Services Ltd,8917986,13/02/2017,65301,175,0,For  the continuation of cleaning,131310,Cleaning & Janitorial Cleaning Service
South Lakeland District Council,http://opendatacommunities.org/id/district-council/south-lakeland,28/02/2017,Social Enterprise Admin,Cultural Environmental Regulatory & Planning Services,http://opendatacommunities.org/def/concept/finance/sercop/objective/104,LDA Cleaning Services Ltd,8917986,15/02/2017,65395,175,0,For  the continuation of cleaning,131310,Cleaning & Janitorial Cleaning Service
South Lakeland District Council,http://opendatacommunities.org/id/district-council/south-lakeland,28/02/2017,Social Enterprise Admin,Cultural Environmental Regulatory & Planning Services,http://opendatacommunities.org/def/concept/finance/sercop/objective/104,LDA Cleaning Services Ltd,8917986,27/02/2017,65670,175,0,For  the continuation of cleaning,131310,Cleaning & Janitorial Cleaning Service
South Lakeland District Council,http://opendatacommunities.org/id/district-council/south-lakeland,28/02/2017,Business Support Community Services,Internal Trading Accounts,,Licence Bureau Ltd,4819897,06/02/2017,65099,394.5,0,Licence checks,380000,Vehicle Management
South Lakeland District Council,http://opendatacommunities.org/id/district-council/south-lakeland,28/02/2017,Development Implementation,Planning and Development,,Link Contracting Services Ltd,2461502,01/02/2017,65047,6481.9,0,"Refurbishment of 124 Highgate, Kendal",391111,Construction Buildings Repair & Mtce
South Lakeland District Council,http://opendatacommunities.org/id/district-council/south-lakeland,28/02/2017,Revenues and Benefits,Central Services,http://opendatacommunities.org/def/concept/finance/sercop/objective/102,LOOMIS UK LTD,3200432,27/02/2017,65613,116.3,0,Langstone House Surcharge 2016 - 2017,192200,Facilities Security
South Lakeland District Council,http://opendatacommunities.org/id/district-council/south-lakeland,28/02/2017,Revenues and Benefits,Highways & Transport Services,http://opendatacommunities.org/def/concept/finance/sercop/objective/107,LOOMIS UK LTD,3200432,27/02/2017,65613,982.74,0,Langstone House Surcharge 2016 - 2017,192200,Facilities Security
South Lakeland District Council,http://opendatacommunities.org/id/district-council/south-lakeland,28/02/2017,Business Support Community Services,Internal Trading Accounts,,M G D LTD,,06/02/2017,63627,35,0,MOTs 01/04/16 - 31/03/17,381400,Vehicle Mgt Maintenance
South Lakeland District Council,http://opendatacommunities.org/id/district-council/south-lakeland,28/02/2017,Business Support Community Services,Internal Trading Accounts,,M G D LTD,,06/02/2017,65096,35,0,MOTs 01/04/16 - 31/03/17,381400,Vehicle Mgt Maintenance
South Lakeland District Council,http://opendatacommunities.org/id/district-council/south-lakeland,28/02/2017,Business Support Community Services,Internal Trading Accounts,,M G D LTD,,13/02/2017,65288,35,0,MOTs 01/04/16 - 31/03/17,381400,Vehicle Mgt Maintenance
South Lakeland District Council,http://opendatacommunities.org/id/district-council/south-lakeland,28/02/2017,Business Support Community Services,Internal Trading Accounts,,M G D LTD,,13/02/2017,65370,35,0,MOTs 01/04/16 - 31/03/17,381400,Vehicle Mgt Maintenance
South Lakeland District Council,http://opendatacommunities.org/id/district-council/south-lakeland,28/02/2017,Business Support Community Services,Internal Trading Accounts,,M G D LTD,,20/02/2017,65496,35,0,MOTs 01/04/16 - 31/03/17,381400,Vehicle Mgt Maintenance
South Lakeland District Council,http://opendatacommunities.org/id/district-council/south-lakeland,28/02/2017,Business Support Community Services,Internal Trading Accounts,,M G D LTD,,20/02/2017,65563,35,0,MOTs 01/04/16 - 31/03/17,381400,Vehicle Mgt Maintenance
South Lakeland District Council,http://opendatacommunities.org/id/district-council/south-lakeland,28/02/2017,Business Support Community Services,Internal Trading Accounts,,M G D LTD,,27/02/2017,65593,35,0,MOTs 01/04/16 - 31/03/17,381400,Vehicle Mgt Maintenance
South Lakeland District Council,http://opendatacommunities.org/id/district-council/south-lakeland,28/02/2017,Business Support Community Services,Internal Trading Accounts,,M G D LTD,,27/02/2017,65640,35,0,MOTs 01/04/16 - 31/03/17,381400,Vehicle Mgt Maintenance
South Lakeland District Council,http://opendatacommunities.org/id/district-council/south-lakeland,28/02/2017,Business Support Community Services,Internal Trading Accounts,,M G D LTD,,27/02/2017,65655,35,0,MOTs 01/04/16 - 31/03/17,381400,Vehicle Mgt Maintenance
South Lakeland District Council,http://opendatacommunities.org/id/district-council/south-lakeland,28/02/2017,Business Support Community Services,Cultural Environmental Regulatory & Planning Services,http://opendatacommunities.org/def/concept/finance/sercop/objective/104,M. J. FIELDING VET,,01/02/2017,65023,494.58,0,Zoo Inspection (periodic),181900,Environment Testing & Inspection
South Lakeland District Council,http://opendatacommunities.org/id/district-council/south-lakeland,28/02/2017,Democratic and Member Services,Central Services,http://opendatacommunities.org/def/concept/finance/sercop/objective/102,MAJESTIC PUBLICATIONS LTD,4353962,20/02/2017,65539,245,0,support for St Mary's Hospice,171113,Education Library Books
South Lakeland District Council,http://opendatacommunities.org/id/district-council/south-lakeland,28/02/2017,Social Enterprise Admin,Central Services,http://opendatacommunities.org/def/concept/finance/sercop/objective/102,MARGARET BARROW INTERIORS LTD T/A MBI,,13/02/2017,65167,15161,0,OFFICE FURNITURE DEVELOPMENT MANAGEMENT,211200,Furniture & Soft Furn Office Furniture
South Lakeland District Council,http://opendatacommunities.org/id/district-council/south-lakeland,28/02/2017,Business Support Community Services,Internal Trading Accounts,,Masterstaff Limited,2777593,08/02/2017,65199,1353.3,0,Agency staff - January 2017,261300,HR Recruitment & Assessment
South Lakeland District Council,http://opendatacommunities.org/id/district-council/south-lakeland,28/02/2017,Business Support Community Services,Internal Trading Accounts,,Masterstaff Limited,2777593,20/02/2017,65491,1086.54,0,Agency staff - January 2017,261300,HR Recruitment & Assessment
South Lakeland District Council,http://opendatacommunities.org/id/district-council/south-lakeland,28/02/2017,Business Support Community Services,Internal Trading Accounts,,Masterstaff Limited,2777593,27/02/2017,65579,1086.54,0,Agency staff - January 2017,261300,HR Recruitment & Assessment
South Lakeland District Council,http://opendatacommunities.org/id/district-council/south-lakeland,28/02/2017,Revenues and Benefits,Central Services,http://opendatacommunities.org/def/concept/finance/sercop/objective/102,MERITEC LTD,3224622,01/02/2017,65070,279,0,2016 - 2017  RAB Processing Contract and,391200,Construction Engineering
South Lakeland District Council,http://opendatacommunities.org/id/district-council/south-lakeland,28/02/2017,Revenues and Benefits,Central Services,http://opendatacommunities.org/def/concept/finance/sercop/objective/102,MERITEC LTD,3224622,08/02/2017,65179,279,0,2016 - 2017  RAB Processing Contract and,391200,Construction Engineering
South Lakeland District Council,http://opendatacommunities.org/id/district-council/south-lakeland,28/02/2017,Revenues and Benefits,Central Services,http://opendatacommunities.org/def/concept/finance/sercop/objective/102,MERITEC LTD,3224622,15/02/2017,65407,279,0,2016 - 2017  RAB Processing Contract and,391200,Construction Engineering
South Lakeland District Council,http://opendatacommunities.org/id/district-council/south-lakeland,28/02/2017,Social Enterprise Admin,Highways & Transport Services,http://opendatacommunities.org/def/concept/finance/sercop/objective/107,METRIC GROUP LIMITED,2560839,08/02/2017,65181,693,0,Web hosting and web tariff editor for 66,359999,Street & Traffic Not Elsewhere Classifie
South Lakeland District Council,http://opendatacommunities.org/id/district-council/south-lakeland,28/02/2017,Human Resources,Central Services,http://opendatacommunities.org/def/concept/finance/sercop/objective/102,MIDLAND SOFTWARE LTD,1852206,27/02/2017,65590,1019,0,Single Sign on.,271600,ICT Software Customised & Bespoke
South Lakeland District Council,http://opendatacommunities.org/id/district-council/south-lakeland,28/02/2017,Business Support Community Services,Cultural Environmental Regulatory & Planning Services,http://opendatacommunities.org/def/concept/finance/sercop/objective/104,MILNTHORPE KENNELS & CATTERY,8932302,06/02/2017,65112,2574.71,0,Stray dog kennelling fees 1 April 2016 -,181500,Environment Animal Services
South Lakeland District Council,http://opendatacommunities.org/id/district-council/south-lakeland,28/02/2017,Financial Services,Central Services,http://opendatacommunities.org/def/concept/finance/sercop/objective/102,Municipal Mutual Insurance Ltd,76678,27/02/2017,65669,388.5,0,Inv 201710SOA555 EL 08143084151 11/01/17,201800,Financial Services Insurance
South Lakeland District Council,http://opendatacommunities.org/id/district-council/south-lakeland,28/02/2017,Business Support Community Services,Housing Services,http://opendatacommunities.org/def/concept/finance/sercop/objective/108,My Dream Cleaners Ltd,9839482,01/02/2017,65059,362,0,Cleaning at,131320,Cleaning & Janitorial Cleaning Service
South Lakeland District Council,http://opendatacommunities.org/id/district-council/south-lakeland,28/02/2017,Business Support Community Services,Housing Services,http://opendatacommunities.org/def/concept/finance/sercop/objective/108,My Dream Cleaners Ltd,9839482,08/02/2017,65198,502.5,0,Cleaning at Town View Fields Hostel,131320,Cleaning & Janitorial Cleaning Service
South Lakeland District Council,http://opendatacommunities.org/id/district-council/south-lakeland,28/02/2017,Business Support Community Services,Housing Services,http://opendatacommunities.org/def/concept/finance/sercop/objective/108,My Dream Cleaners Ltd,9839482,27/02/2017,65626,190,0,Deep clean,131320,Cleaning & Janitorial Cleaning Service
South Lakeland District Council,http://opendatacommunities.org/id/district-council/south-lakeland,28/02/2017,Business Support Community Services,Housing Services,http://opendatacommunities.org/def/concept/finance/sercop/objective/108,My Dream Cleaners Ltd,9839482,27/02/2017,65629,150,0,Deep Clean,131320,Cleaning & Janitorial Cleaning Service
South Lakeland District Council,http://opendatacommunities.org/id/district-council/south-lakeland,28/02/2017,Development Strategy,Cultural Environmental Regulatory & Planning Services,http://opendatacommunities.org/def/concept/finance/sercop/objective/104,Nepro Ltd,,01/02/2017,64922,7014.5,0,Sustainability Appraisal for Development,151900,Consultancy Management
South Lakeland District Council,http://opendatacommunities.org/id/district-council/south-lakeland,28/02/2017,Development Implementation,Cultural Environmental Regulatory & Planning Services,http://opendatacommunities.org/def/concept/finance/sercop/objective/104,Nepro Ltd,,06/02/2017,65101,2996.93,0,Inward Investment Strategic Review for,151900,Consultancy Management
South Lakeland District Council,http://opendatacommunities.org/id/district-council/south-lakeland,28/02/2017,Development Implementation,Cultural Environmental Regulatory & Planning Services,http://opendatacommunities.org/def/concept/finance/sercop/objective/104,Nepro Ltd,,13/02/2017,65291,22139.75,0,Grange Lido Renaissance Project - South,151900,Consultancy Management
South Lakeland District Council,http://opendatacommunities.org/id/district-council/south-lakeland,28/02/2017,Social Enterprise Admin,Cultural Environmental Regulatory & Planning Services,http://opendatacommunities.org/def/concept/finance/sercop/objective/104,NEWSQUEST MEDIA GROUP LTD,3102566,06/02/2017,64961,141.12,0,PUBLIC NOTICES FOR PLANNING 1 APRIL - 31,191000,Facilities Advertising
South Lakeland District Council,http://opendatacommunities.org/id/district-council/south-lakeland,28/02/2017,Social Enterprise Admin,Cultural Environmental Regulatory & Planning Services,http://opendatacommunities.org/def/concept/finance/sercop/objective/104,NEWSQUEST MEDIA GROUP LTD,3102566,20/02/2017,65402,201.6,0,PUBLIC NOTICES FOR PLANNING 1 APRIL - 31,191000,Facilities Advertising
South Lakeland District Council,http://opendatacommunities.org/id/district-council/south-lakeland,28/02/2017,Business Support Community Services,Cultural Environmental Regulatory & Planning Services,http://opendatacommunities.org/def/concept/finance/sercop/objective/104,North West Equine Vets Ltd,9731215,01/02/2017,65024,171.2,0,Inspection at Larkrigg RE002,180040,Env. Service- Veterinary Services
South Lakeland District Council,http://opendatacommunities.org/id/district-council/south-lakeland,28/02/2017,Business Support Community Services,Cultural Environmental Regulatory & Planning Services,http://opendatacommunities.org/def/concept/finance/sercop/objective/104,North West Equine Vets Ltd,9731215,01/02/2017,65025,110,0,Inspection at Larkrigg RE002,180040,Env. Service- Veterinary Services
South Lakeland District Council,http://opendatacommunities.org/id/district-council/south-lakeland,28/02/2017,Business Support Community Services,Cultural Environmental Regulatory & Planning Services,http://opendatacommunities.org/def/concept/finance/sercop/objective/104,North West Equine Vets Ltd,9731215,01/02/2017,65026,132.5,0,Inspection at Larkrigg RE002,180040,Env. Service- Veterinary Services
South Lakeland District Council,http://opendatacommunities.org/id/district-council/south-lakeland,28/02/2017,Business Support Community Services,Cultural Environmental Regulatory & Planning Services,http://opendatacommunities.org/def/concept/finance/sercop/objective/104,North West Equine Vets Ltd,9731215,01/02/2017,65027,147,0,Inspection at Larkrigg RE002,180040,Env. Service- Veterinary Services
South Lakeland District Council,http://opendatacommunities.org/id/district-council/south-lakeland,28/02/2017,Development Implementation,SLDC as Agent,,NORTHERN PRINT DISTRIBUTION LTD,4109774,06/02/2017,65108,258,0,Packing & Shipment of 750 brochures Lake,191600,Facilities Printing
South Lakeland District Council,http://opendatacommunities.org/id/district-council/south-lakeland,28/02/2017,Leisure and Wellbeing,Cultural Environmental Regulatory & Planning Services,http://opendatacommunities.org/def/concept/finance/sercop/objective/104,NORTHGATE VEHICLE HIRE LTD,1434157,13/02/2017,64911,24.52,0,Car hire for ,381600,Vehicle Mgt Leasing
South Lakeland District Council,http://opendatacommunities.org/id/district-council/south-lakeland,28/02/2017,Revenues and Benefits,Central Services,http://opendatacommunities.org/def/concept/finance/sercop/objective/102,NORTHGATE VEHICLE HIRE LTD,1434157,06/02/2017,65102,15.14,0,Car hire Workshop Leeds,381600,Vehicle Mgt Leasing
South Lakeland District Council,http://opendatacommunities.org/id/district-council/south-lakeland,28/02/2017,Policy & Partnerships,Central Services,http://opendatacommunities.org/def/concept/finance/sercop/objective/102,NORTHGATE VEHICLE HIRE LTD,1434157,13/02/2017,65290,45.42,0,"Car Hire for L.C, J.B and G.V for DCN",381600,Vehicle Mgt Leasing
South Lakeland District Council,http://opendatacommunities.org/id/district-council/south-lakeland,28/02/2017,Business Support Community Services,Central Services,http://opendatacommunities.org/def/concept/finance/sercop/objective/102,NORTHUMBRIAN WATER LTD,2366703,06/02/2017,65115,35,0,Private Water Training at  NWG Lab,182030,Environment Water Assessment & Treatment
South Lakeland District Council,http://opendatacommunities.org/id/district-council/south-lakeland,28/02/2017,Business Support Community Services,Housing Services,http://opendatacommunities.org/def/concept/finance/sercop/objective/108,NOWMEDICAL,4338252,27/02/2017,65627,120,0,Medical report,311600,Healthcare Services
South Lakeland District Council,http://opendatacommunities.org/id/district-council/south-lakeland,28/02/2017,Kendal Town Hall,Cultural Environmental Regulatory & Planning Services,http://opendatacommunities.org/def/concept/finance/sercop/objective/104,NUMATIC INTERNATIONAL LIMITED,773331,08/02/2017,65163,137.45,0,Call out to repair TTB 1840 floor,131011,Cleaning & Janitorial Cleaning Materials
South Lakeland District Council,http://opendatacommunities.org/id/district-council/south-lakeland,28/02/2017,Human Resources,Housing Services,http://opendatacommunities.org/def/concept/finance/sercop/objective/108,OCEAN MEDIA GROUP LTD,1680420,08/02/2017,65225,895,0,Inside Housing - January 17,191000,Facilities Advertising
South Lakeland District Council,http://opendatacommunities.org/id/district-council/south-lakeland,28/02/2017,Business Support Community Services,Cultural Environmental Regulatory & Planning Services,http://opendatacommunities.org/def/concept/finance/sercop/objective/104,OCS GROUP LTD T/A CANNON HYGIENE LTD,1298292,06/02/2017,65080,13.04,0,Clinical waste collections - 2016/17,131011,Cleaning & Janitorial Cleaning Materials
South Lakeland District Council,http://opendatacommunities.org/id/district-council/south-lakeland,28/02/2017,Business Support Community Services,Cultural Environmental Regulatory & Planning Services,http://opendatacommunities.org/def/concept/finance/sercop/objective/104,OCS GROUP LTD T/A CANNON HYGIENE LTD,1298292,06/02/2017,65134,2137.06,0,Clinical waste collections - 2016/17,131011,Cleaning & Janitorial Cleaning Materials
South Lakeland District Council,http://opendatacommunities.org/id/district-council/south-lakeland,28/02/2017,Lake Wardens,Cultural Environmental Regulatory & Planning Services,http://opendatacommunities.org/def/concept/finance/sercop/objective/104,OFCOM,7753885,06/02/2017,65111,75,0,Coastal Station Radio License No.,202100,Financial Services Subscriptions
South Lakeland District Council,http://opendatacommunities.org/id/district-council/south-lakeland,28/02/2017,Development Implementation,Cultural Environmental Regulatory & Planning Services,http://opendatacommunities.org/def/concept/finance/sercop/objective/104,Orian Solutions Ltd,8237164,06/02/2017,65048,378.35,0,"Cleaning Services at 124 Highgate,",131310,Cleaning & Janitorial Cleaning Service
South Lakeland District Council,http://opendatacommunities.org/id/district-council/south-lakeland,28/02/2017,Development Implementation,Cultural Environmental Regulatory & Planning Services,http://opendatacommunities.org/def/concept/finance/sercop/objective/104,Orian Solutions Ltd,8237164,27/02/2017,65616,378.35,0,"Cleaning Services at Highgate,",131310,Cleaning & Janitorial Cleaning Service
South Lakeland District Council,http://opendatacommunities.org/id/district-council/south-lakeland,28/02/2017,Environmental Protection,Cultural Environmental Regulatory & Planning Services,http://opendatacommunities.org/def/concept/finance/sercop/objective/104,PARKIN & JACKSON LTD,8282892,06/02/2017,65076,300,0,Make safe memorials in St. Mary' K.L. as,121000,Cemetery & Crematorium Burial & Crem
South Lakeland District Council,http://opendatacommunities.org/id/district-council/south-lakeland,28/02/2017,Social Enterprise Admin,SLDC as Agent,,PAY BY PHONE (PAYPOINT),,13/02/2017,65300,170.93,0,Pay-by-phone charges from 1 April 2016,351400,Street & Traffic Traffic Control
South Lakeland District Council,http://opendatacommunities.org/id/district-council/south-lakeland,28/02/2017,Social Enterprise Admin,Highways & Transport Services,http://opendatacommunities.org/def/concept/finance/sercop/objective/107,PAY BY PHONE (PAYPOINT),,15/02/2017,65456,27,0,CTA and 2 side stickers for Millerbridge,351400,Street & Traffic Traffic Control
South Lakeland District Council,http://opendatacommunities.org/id/district-council/south-lakeland,28/02/2017,Legal Services,Internal Trading Accounts,,PENNINGTONS (KENDAL) LIMITED,434649,06/02/2017,65077,2000,0,Annual Charge for use of Link Road at,182013,Environment Waste Mgt Waste Collection
South Lakeland District Council,http://opendatacommunities.org/id/district-council/south-lakeland,28/02/2017,Business Support Community Services,Cultural Environmental Regulatory & Planning Services,http://opendatacommunities.org/def/concept/finance/sercop/objective/104,PIER 1 METALWORKS LTD,4291520,06/02/2017,65092,40,0,Repair recycling banks 2016/17,391200,Construction Engineering
South Lakeland District Council,http://opendatacommunities.org/id/district-council/south-lakeland,28/02/2017,Business Support Community Services,Internal Trading Accounts,,PIER 1 METALWORKS LTD,4291520,13/02/2017,65279,60,0,Repair SL001,391200,Construction Engineering
South Lakeland District Council,http://opendatacommunities.org/id/district-council/south-lakeland,28/02/2017,Business Support Community Services,Internal Trading Accounts,,PIER 1 METALWORKS LTD,4291520,13/02/2017,65285,15,0,Repair hose,391200,Construction Engineering
South Lakeland District Council,http://opendatacommunities.org/id/district-council/south-lakeland,28/02/2017,Business Support Community Services,Cultural Environmental Regulatory & Planning Services,http://opendatacommunities.org/def/concept/finance/sercop/objective/104,PIER 1 METALWORKS LTD,4291520,20/02/2017,65493,40,0,Repair recycling banks 2016/17,391200,Construction Engineering
South Lakeland District Council,http://opendatacommunities.org/id/district-council/south-lakeland,28/02/2017,Revenues and Benefits,Central Services,http://opendatacommunities.org/def/concept/finance/sercop/objective/102,PITNEY BOWES LTD,182037,06/02/2017,65128,357.6,0,2016 - 2017  Stationery & office,301200,Mail Services� Postage
South Lakeland District Council,http://opendatacommunities.org/id/district-council/south-lakeland,28/02/2017,Revenues and Benefits,Central Services,http://opendatacommunities.org/def/concept/finance/sercop/objective/102,PITNEY BOWES LTD,182037,13/02/2017,65231,289.4,0,2016 - 2017  Stationery & office,301200,Mail Services� Postage
South Lakeland District Council,http://opendatacommunities.org/id/district-council/south-lakeland,28/02/2017,Revenues and Benefits,Central Services,http://opendatacommunities.org/def/concept/finance/sercop/objective/102,PITNEY BOWES LTD,182037,13/02/2017,65233,455,0,2016 - 2017  Stationery & office,301200,Mail Services� Postage
South Lakeland District Council,http://opendatacommunities.org/id/district-council/south-lakeland,28/02/2017,Leisure and Wellbeing,Environment Regulatory,,PLAYDALE PLAYGROUNDS LTD,525615,27/02/2017,65604,4554,0,Timber 40m Aerial Runway to be,331000,Sports Playground Equipment
South Lakeland District Council,http://opendatacommunities.org/id/district-council/south-lakeland,28/02/2017,Revenues and Benefits,Central Services,http://opendatacommunities.org/def/concept/finance/sercop/objective/102,Preston City Council,,15/02/2017,65405,225,0,FOI Training with Ibrahim Hussain on,908000,Public Bodies Council support services
South Lakeland District Council,http://opendatacommunities.org/id/district-council/south-lakeland,28/02/2017,ICT Group,Central Services,http://opendatacommunities.org/def/concept/finance/sercop/objective/102,PROBRAND LTD,2653446,20/02/2017,64969,304.1,0,Logitech Wireless Combo MK270 - Keyboard,271600,ICT Software Customised & Bespoke
South Lakeland District Council,http://opendatacommunities.org/id/district-council/south-lakeland,28/02/2017,ICT Group,Central Services,http://opendatacommunities.org/def/concept/finance/sercop/objective/102,PROBRAND LTD,2653446,20/02/2017,65488,28.8,0,Belkin HDMI cables,271600,ICT Software Customised & Bespoke
South Lakeland District Council,http://opendatacommunities.org/id/district-council/south-lakeland,28/02/2017,ICT Group,Central Services,http://opendatacommunities.org/def/concept/finance/sercop/objective/102,PROBRAND LTD,2653446,20/02/2017,65488,28.8,0,Belkin HDMI cables,271600,ICT Software Customised & Bespoke
South Lakeland District Council,http://opendatacommunities.org/id/district-council/south-lakeland,28/02/2017,Business Support Community Services,Internal Trading Accounts,,PROBRUSH T/A NORTHERN MUNICIPAL SPARES L,,06/02/2017,65140,1996.8,0,Brushes 2016/17,381600,Vehicle Mgt Leasing
South Lakeland District Council,http://opendatacommunities.org/id/district-council/south-lakeland,28/02/2017,Business Support Community Services,Internal Trading Accounts,,PROBRUSH T/A NORTHERN MUNICIPAL SPARES L,,13/02/2017,65265,998.4,0,Brushes 2016/17,381600,Vehicle Mgt Leasing
South Lakeland District Council,http://opendatacommunities.org/id/district-council/south-lakeland,28/02/2017,Development Implementation,Cultural Environmental Regulatory & Planning Services,http://opendatacommunities.org/def/concept/finance/sercop/objective/104,PS BUSINESS MATTERS,8147185,15/02/2017,65277,2500,0,Kendal Futures Programme Support,151900,Consultancy Management
South Lakeland District Council,http://opendatacommunities.org/id/district-council/south-lakeland,28/02/2017,Business Support Community Services,Cultural Environmental Regulatory & Planning Services,http://opendatacommunities.org/def/concept/finance/sercop/objective/104,Public Health England,,06/02/2017,65086,312.8,0,2 x cockles - micro testing,221100,Health & Safety� Maintenance
South Lakeland District Council,http://opendatacommunities.org/id/district-council/south-lakeland,28/02/2017,Business Support Community Services,Cultural Environmental Regulatory & Planning Services,http://opendatacommunities.org/def/concept/finance/sercop/objective/104,Public Health England,,13/02/2017,65331,75.18,0,Microbiological Examination,221100,Health & Safety� Maintenance
South Lakeland District Council,http://opendatacommunities.org/id/district-council/south-lakeland,28/02/2017,Business Support Community Services,Cultural Environmental Regulatory & Planning Services,http://opendatacommunities.org/def/concept/finance/sercop/objective/104,Public Health England,,13/02/2017,65332,75.18,0,Micro examination of two cockle samples,221100,Health & Safety� Maintenance
South Lakeland District Council,http://opendatacommunities.org/id/district-council/south-lakeland,28/02/2017,Business Support Community Services,Cultural Environmental Regulatory & Planning Services,http://opendatacommunities.org/def/concept/finance/sercop/objective/104,Public Health England,,13/02/2017,65333,75.18,0,Micro examination 2 x cockle samples,221100,Health & Safety� Maintenance
South Lakeland District Council,http://opendatacommunities.org/id/district-council/south-lakeland,28/02/2017,Business Support Community Services,Cultural Environmental Regulatory & Planning Services,http://opendatacommunities.org/def/concept/finance/sercop/objective/104,Public Health England,,13/02/2017,65334,75.18,0,Cockle Testing on 10 March 2016,221100,Health & Safety� Maintenance
South Lakeland District Council,http://opendatacommunities.org/id/district-council/south-lakeland,28/02/2017,Development Implementation,Transport,http://opendatacommunities.org/def/concept/finance/sercop/objective/107,R G PARKINS & PARTNERS LTD,4107150,01/02/2017,65007,24700,0,Rydal Road Car Park Bridge Repairs,152200,Consultancy Technical & Feasibility
South Lakeland District Council,http://opendatacommunities.org/id/district-council/south-lakeland,28/02/2017,Development Implementation,Transport,http://opendatacommunities.org/def/concept/finance/sercop/objective/107,R G PARKINS & PARTNERS LTD,4107150,20/02/2017,65305,200,0,Rydal Road Car Park Bridge Repairs,152200,Consultancy Technical & Feasibility
South Lakeland District Council,http://opendatacommunities.org/id/district-council/south-lakeland,28/02/2017,Business Support Community Services,Internal Trading Accounts,,RIBBLE FUEL OILS,,06/02/2017,65143,1391.59,0,Gas oil 2016/17,381100,Vehicle Mgt Fuel
South Lakeland District Council,http://opendatacommunities.org/id/district-council/south-lakeland,28/02/2017,Business Support Community Services,Internal Trading Accounts,,RIBBLESDALE AUTO ELECTRICS 1992 LTD,2732686,13/02/2017,65061,23,0,Batteries,381500,Vehicle Mgt Parts
South Lakeland District Council,http://opendatacommunities.org/id/district-council/south-lakeland,28/02/2017,Business Support Community Services,Internal Trading Accounts,,RIBBLESDALE AUTO ELECTRICS 1992 LTD,2732686,08/02/2017,65113,72,0,Batteries,381500,Vehicle Mgt Parts
South Lakeland District Council,http://opendatacommunities.org/id/district-council/south-lakeland,28/02/2017,Business Support Community Services,Internal Trading Accounts,,RIBBLESDALE AUTO ELECTRICS 1992 LTD,2732686,08/02/2017,65114,160,0,Batteries,381500,Vehicle Mgt Parts
South Lakeland District Council,http://opendatacommunities.org/id/district-council/south-lakeland,28/02/2017,Business Support Community Services,Internal Trading Accounts,,RIBBLESDALE AUTO ELECTRICS 1992 LTD,2732686,08/02/2017,65130,17.5,0,Batteries,381500,Vehicle Mgt Parts
South Lakeland District Council,http://opendatacommunities.org/id/district-council/south-lakeland,28/02/2017,Business Support Community Services,Internal Trading Accounts,,RIBBLESDALE AUTO ELECTRICS 1992 LTD,2732686,08/02/2017,65131,23,0,Batteries,381500,Vehicle Mgt Parts
South Lakeland District Council,http://opendatacommunities.org/id/district-council/south-lakeland,28/02/2017,Business Support Community Services,Internal Trading Accounts,,RIBBLESDALE AUTO ELECTRICS 1992 LTD,2732686,08/02/2017,65211,56.5,0,Lamp,381500,Vehicle Mgt Parts
South Lakeland District Council,http://opendatacommunities.org/id/district-council/south-lakeland,28/02/2017,Business Support Community Services,Internal Trading Accounts,,RIBBLESDALE AUTO ELECTRICS 1992 LTD,2732686,15/02/2017,65397,183.45,0,Batteries,381500,Vehicle Mgt Parts
South Lakeland District Council,http://opendatacommunities.org/id/district-council/south-lakeland,28/02/2017,Business Support Community Services,Internal Trading Accounts,,RIBBLESDALE AUTO ELECTRICS 1992 LTD,2732686,15/02/2017,65398,52.58,0,Batteries,381500,Vehicle Mgt Parts
South Lakeland District Council,http://opendatacommunities.org/id/district-council/south-lakeland,28/02/2017,Business Support Community Services,Internal Trading Accounts,,RIBBLESDALE AUTO ELECTRICS 1992 LTD,2732686,20/02/2017,65478,105.16,0,Batteries,381500,Vehicle Mgt Parts
South Lakeland District Council,http://opendatacommunities.org/id/district-council/south-lakeland,28/02/2017,Business Support Community Services,Internal Trading Accounts,,RIBBLESDALE AUTO ELECTRICS 1992 LTD,2732686,20/02/2017,65479,32.9,0,Batteries,381500,Vehicle Mgt Parts
South Lakeland District Council,http://opendatacommunities.org/id/district-council/south-lakeland,28/02/2017,Business Support Community Services,Internal Trading Accounts,,RIBBLESDALE AUTO ELECTRICS 1992 LTD,2732686,20/02/2017,65480,184,0,Batteries,381500,Vehicle Mgt Parts
South Lakeland District Council,http://opendatacommunities.org/id/district-council/south-lakeland,28/02/2017,Business Support Community Services,Internal Trading Accounts,,RIBBLESDALE AUTO ELECTRICS 1992 LTD,2732686,27/02/2017,65609,7.96,0,Batteries,381500,Vehicle Mgt Parts
South Lakeland District Council,http://opendatacommunities.org/id/district-council/south-lakeland,28/02/2017,Customer Services,Cultural Environmental Regulatory & Planning Services,http://opendatacommunities.org/def/concept/finance/sercop/objective/104,RIGHT 2 WORK,,01/02/2017,65046,2688,0,for removal of bulky waste,321010,Social Care Adult Advice & Counselling
South Lakeland District Council,http://opendatacommunities.org/id/district-council/south-lakeland,28/02/2017,Customer Services,Cultural Environmental Regulatory & Planning Services,http://opendatacommunities.org/def/concept/finance/sercop/objective/104,RIGHT 2 WORK,,08/02/2017,65201,3490,0,for removal of bulky waste,321010,Social Care Adult Advice & Counselling
South Lakeland District Council,http://opendatacommunities.org/id/district-council/south-lakeland,28/02/2017,Development Implementation,Central Services,http://opendatacommunities.org/def/concept/finance/sercop/objective/102,RIGHT 2 WORK,,13/02/2017,65313,380,0,Removal of furniture from South Lakeland,321010,Social Care Adult Advice & Counselling
South Lakeland District Council,http://opendatacommunities.org/id/district-council/south-lakeland,28/02/2017,Democratic and Member Services,Central Services,http://opendatacommunities.org/def/concept/finance/sercop/objective/102,RIVERBANK HOSPITALITY CATERING,,06/02/2017,64914,39.65,0,buffet for Members Safeguarding Training,111000,Catering Banquet & Catering
South Lakeland District Council,http://opendatacommunities.org/id/district-council/south-lakeland,28/02/2017,Business Support Community Services,Internal Trading Accounts,,Romaquip UK,,15/02/2017,61159,711.34,0,Light guards,381000,Vehicle Mgt Commercial
South Lakeland District Council,http://opendatacommunities.org/id/district-council/south-lakeland,28/02/2017,Business Support Community Services,Internal Trading Accounts,,Romaquip UK,,27/02/2017,64400,727.71,0,Lightguards,381000,Vehicle Mgt Commercial
South Lakeland District Council,http://opendatacommunities.org/id/district-council/south-lakeland,28/02/2017,Business Support Community Services,Internal Trading Accounts,,Romaquip UK,,13/02/2017,65348,95,0,Repair PO65 FRP,381000,Vehicle Mgt Commercial
South Lakeland District Council,http://opendatacommunities.org/id/district-council/south-lakeland,28/02/2017,Business Support Community Services,Internal Trading Accounts,,Romaquip UK,,27/02/2017,65653,375,0,Repair SL053,381000,Vehicle Mgt Commercial
South Lakeland District Council,http://opendatacommunities.org/id/district-council/south-lakeland,28/02/2017,Printing Section,Central Services,http://opendatacommunities.org/def/concept/finance/sercop/objective/102,ROSEFOX PAPER LIMITED,1655083,06/02/2017,64744,96.7,0,Paper One A4 80gsm to be held in stock,341000,Stationery Paper
South Lakeland District Council,http://opendatacommunities.org/id/district-council/south-lakeland,28/02/2017,Printing Section,Central Services,http://opendatacommunities.org/def/concept/finance/sercop/objective/102,ROSEFOX PAPER LIMITED,1655083,27/02/2017,65577,99.45,0,Target SRA3 100gsm,341000,Stationery Paper
South Lakeland District Council,http://opendatacommunities.org/id/district-council/south-lakeland,28/02/2017,Revenues and Benefits,Central Services,http://opendatacommunities.org/def/concept/finance/sercop/objective/102,ROYAL MAIL GROUP PLC,,01/02/2017,64804,104.46,0,2016 - 2017  Postal Charges a/c,301200,Mail Services� Postage
South Lakeland District Council,http://opendatacommunities.org/id/district-council/south-lakeland,28/02/2017,Revenues and Benefits,SLDC as Agent,,ROYAL MAIL GROUP PLC,,01/02/2017,64807,2080.65,0,2016 - 17  Postal Charges a/c 0198123013,301200,Mail Services� Postage
South Lakeland District Council,http://opendatacommunities.org/id/district-council/south-lakeland,28/02/2017,Revenues and Benefits,SLDC as Agent,,ROYAL MAIL GROUP PLC,,01/02/2017,65000,1231.51,0,2016 - 17  Postal Charges a/c 0198123013,301200,Mail Services� Postage
South Lakeland District Council,http://opendatacommunities.org/id/district-council/south-lakeland,28/02/2017,Electoral Services,Central Services,http://opendatacommunities.org/def/concept/finance/sercop/objective/102,ROYAL MAIL GROUP PLC,,01/02/2017,65060,95,0,Response Plus Licence,301200,Mail Services� Postage
South Lakeland District Council,http://opendatacommunities.org/id/district-council/south-lakeland,28/02/2017,Electoral Services,Central Services,http://opendatacommunities.org/def/concept/finance/sercop/objective/102,ROYAL MAIL GROUP PLC,,06/02/2017,65165,59.15,0,Response Plus Postage,301200,Mail Services� Postage
South Lakeland District Council,http://opendatacommunities.org/id/district-council/south-lakeland,28/02/2017,Revenues and Benefits,SLDC as Agent,,ROYAL MAIL GROUP PLC,,08/02/2017,65178,1304,0,2016 - 17  Postal Charges a/c 0198123013,301200,Mail Services� Postage
South Lakeland District Council,http://opendatacommunities.org/id/district-council/south-lakeland,28/02/2017,Revenues and Benefits,SLDC as Agent,,ROYAL MAIL GROUP PLC,,15/02/2017,65406,2549.31,0,2016 - 17  Postal Charges a/c 0198123013,301200,Mail Services� Postage
South Lakeland District Council,http://opendatacommunities.org/id/district-council/south-lakeland,28/02/2017,Revenues and Benefits,Central Services,http://opendatacommunities.org/def/concept/finance/sercop/objective/102,ROYAL MAIL GROUP PLC,,27/02/2017,65611,201.05,0,2016 - 2017  Postal Charges a/c,301200,Mail Services� Postage
South Lakeland District Council,http://opendatacommunities.org/id/district-council/south-lakeland,28/02/2017,Revenues and Benefits,SLDC as Agent,,ROYAL MAIL GROUP PLC,,27/02/2017,65612,2745.75,0,2016 - 17  Postal Charges a/c 0198123013,301200,Mail Services� Postage
South Lakeland District Council,http://opendatacommunities.org/id/district-council/south-lakeland,28/02/2017,Electoral Services,Central Services,http://opendatacommunities.org/def/concept/finance/sercop/objective/102,ROYAL MAIL GROUP PLC,,27/02/2017,65683,267.04,0,Return Postage,301200,Mail Services� Postage
South Lakeland District Council,http://opendatacommunities.org/id/district-council/south-lakeland,28/02/2017,Business Support Community Services,Cultural Environmental Regulatory & Planning Services,http://opendatacommunities.org/def/concept/finance/sercop/objective/104,RTPI Conferences,,27/02/2017,65543,349,0,RTPI GUIDE TO THE PLANNING SYSTEM -,261500,HR Training & Conferences
South Lakeland District Council,http://opendatacommunities.org/id/district-council/south-lakeland,28/02/2017,Business Support Community Services,Internal Trading Accounts,,S J Bargh ltd,532272,13/02/2017,65268,121,0,MOTs 2016/17,381400,Vehicle Mgt Maintenance
South Lakeland District Council,http://opendatacommunities.org/id/district-council/south-lakeland,28/02/2017,Business Support Community Services,Internal Trading Accounts,,S J Bargh ltd,532272,13/02/2017,65284,143,0,MOTs 2016/17,381400,Vehicle Mgt Maintenance
South Lakeland District Council,http://opendatacommunities.org/id/district-council/south-lakeland,28/02/2017,Business Support Community Services,Internal Trading Accounts,,S J Bargh ltd,532272,13/02/2017,65343,121,0,MOTs 2016/17,381400,Vehicle Mgt Maintenance
South Lakeland District Council,http://opendatacommunities.org/id/district-council/south-lakeland,28/02/2017,Business Support Community Services,Internal Trading Accounts,,S J Bargh ltd,532272,20/02/2017,65519,121,0,MOTs 2016/17,381400,Vehicle Mgt Maintenance
South Lakeland District Council,http://opendatacommunities.org/id/district-council/south-lakeland,28/02/2017,Electoral Services,Central Services,http://opendatacommunities.org/def/concept/finance/sercop/objective/102,SCI PRINT LTD,,13/02/2017,65042,509,0,Costs relating to Annual Canvass,191600,Facilities Printing
South Lakeland District Council,http://opendatacommunities.org/id/district-council/south-lakeland,28/02/2017,Electoral Services,Central Services,http://opendatacommunities.org/def/concept/finance/sercop/objective/102,SCI PRINT LTD,,13/02/2017,65043,174.49,0,Type A Review letters,191600,Facilities Printing
South Lakeland District Council,http://opendatacommunities.org/id/district-council/south-lakeland,28/02/2017,Electoral Services,Central Services,http://opendatacommunities.org/def/concept/finance/sercop/objective/102,SCI PRINT LTD,,13/02/2017,65043,462.93,0,Type A Review letters,191600,Facilities Printing
South Lakeland District Council,http://opendatacommunities.org/id/district-council/south-lakeland,28/02/2017,Electoral Services,Central Services,http://opendatacommunities.org/def/concept/finance/sercop/objective/102,SCI PRINT LTD,,27/02/2017,65203,447.12,0,Postal Vote Refresh Printing,191600,Facilities Printing
South Lakeland District Council,http://opendatacommunities.org/id/district-council/south-lakeland,28/02/2017,Electoral Services,Central Services,http://opendatacommunities.org/def/concept/finance/sercop/objective/102,SCI PRINT LTD,,27/02/2017,65203,427.05,0,Postal Vote Refresh Printing,191600,Facilities Printing
South Lakeland District Council,http://opendatacommunities.org/id/district-council/south-lakeland,28/02/2017,Electoral Services,Central Services,http://opendatacommunities.org/def/concept/finance/sercop/objective/102,SCI PRINT LTD,,22/02/2017,65537,785,0,"Poll Cards, Postal Packs and Ballot",191600,Facilities Printing
South Lakeland District Council,http://opendatacommunities.org/id/district-council/south-lakeland,28/02/2017,Electoral Services,Central Services,http://opendatacommunities.org/def/concept/finance/sercop/objective/102,SCI PRINT LTD,,22/02/2017,65537,432.54,0,"Poll Cards, Postal Packs and Ballot",191600,Facilities Printing
South Lakeland District Council,http://opendatacommunities.org/id/district-council/south-lakeland,28/02/2017,Human Resources,Central Services,http://opendatacommunities.org/def/concept/finance/sercop/objective/102,SETON,4065947,27/02/2017,65650,53.2,0,Extinguishing Fires at Work DVD -,221000,Health & Safety� Products
South Lakeland District Council,http://opendatacommunities.org/id/district-council/south-lakeland,28/02/2017,Customer Services,Central Services,http://opendatacommunities.org/def/concept/finance/sercop/objective/102,SHRED-IT,4047194,06/02/2017,65013,185.46,0,for removal of shred it,279999,ICT Not Elsewhere Classified
South Lakeland District Council,http://opendatacommunities.org/id/district-council/south-lakeland,28/02/2017,Customer Services,Central Services,http://opendatacommunities.org/def/concept/finance/sercop/objective/102,SHRED-IT,4047194,27/02/2017,65594,150.29,0,for removal of shred it,279999,ICT Not Elsewhere Classified
South Lakeland District Council,http://opendatacommunities.org/id/district-council/south-lakeland,28/02/2017,Democratic and Member Services,Cultural Environmental Regulatory & Planning Services,http://opendatacommunities.org/def/concept/finance/sercop/objective/104,SKELWITH PARISH COUNCIL,,15/02/2017,65361,100,0,100 donation from Cllr towards a,908000,Public Bodies Council support services
South Lakeland District Council,http://opendatacommunities.org/id/district-council/south-lakeland,28/02/2017,Business Support Community Services,Internal Trading Accounts,,Slicker Recycling Ltd,8652156,08/02/2017,65152,127,0,Exchange filter bin,182015,Environment Waste Mgt Waste Disposal
South Lakeland District Council,http://opendatacommunities.org/id/district-council/south-lakeland,28/02/2017,Social Enterprise Admin,Cultural Environmental Regulatory & Planning Services,http://opendatacommunities.org/def/concept/finance/sercop/objective/104,SMS (SALCOMBE) LTD,4558962,20/02/2017,65532,123.15,0,Sabatack 750 xl white 290 ml,381500,Vehicle Mgt Parts
South Lakeland District Council,http://opendatacommunities.org/id/district-council/south-lakeland,28/02/2017,Business Support Community Services,Internal Trading Accounts,,SNAP-ON TOOLS LTD,,27/02/2017,65652,144,0,Wrench,101600,Building Hand Tools
South Lakeland District Council,http://opendatacommunities.org/id/district-council/south-lakeland,28/02/2017,Business Support Community Services,Internal Trading Accounts,,SOLWAY DAF,1393710,13/02/2017,65356,26.34,0,Control,381000,Vehicle Mgt Commercial
South Lakeland District Council,http://opendatacommunities.org/id/district-council/south-lakeland,28/02/2017,Business Support Community Services,Internal Trading Accounts,,SOLWAY DAF,1393710,13/02/2017,65359,209.72,0,Control,381000,Vehicle Mgt Commercial
South Lakeland District Council,http://opendatacommunities.org/id/district-council/south-lakeland,28/02/2017,Business Support Community Services,Internal Trading Accounts,,SOLWAY DAF,1393710,13/02/2017,65362,163.34,0,Control,381000,Vehicle Mgt Commercial
South Lakeland District Council,http://opendatacommunities.org/id/district-council/south-lakeland,28/02/2017,Business Support Community Services,Internal Trading Accounts,,SOLWAY DAF,1393710,13/02/2017,65364,9.61,0,Control,381000,Vehicle Mgt Commercial
South Lakeland District Council,http://opendatacommunities.org/id/district-council/south-lakeland,28/02/2017,Business Support Community Services,Internal Trading Accounts,,SOLWAY DAF,1393710,20/02/2017,65505,33.52,0,Control,381000,Vehicle Mgt Commercial
South Lakeland District Council,http://opendatacommunities.org/id/district-council/south-lakeland,28/02/2017,Human Resources,Central Services,http://opendatacommunities.org/def/concept/finance/sercop/objective/102,SOUTH LAKES HOUSING,IP031419,08/02/2017,65227,90,0,Room Hire � All booked,191700,Facilities Property Management
South Lakeland District Council,http://opendatacommunities.org/id/district-council/south-lakeland,28/02/2017,Human Resources,Central Services,http://opendatacommunities.org/def/concept/finance/sercop/objective/102,SOUTH LAKES HOUSING,IP031419,27/02/2017,65678,90,0,Room Hire � All booked,191700,Facilities Property Management
South Lakeland District Council,http://opendatacommunities.org/id/district-council/south-lakeland,28/02/2017,Business Support Community Services,Housing Services,http://opendatacommunities.org/def/concept/finance/sercop/objective/108,SOUTH LAKES HOUSING RENT A/C,,06/02/2017,65182,98.09,0,Rent in advance,191700,Facilities Property Management
South Lakeland District Council,http://opendatacommunities.org/id/district-council/south-lakeland,28/02/2017,Revenues and Benefits,Central Services,http://opendatacommunities.org/def/concept/finance/sercop/objective/102,Southerns Office Interiors Ltd,3478080,20/02/2017,65513,832,0,Ref JI - SLDC - 100217  (10 X ABL - 2FSA,211200,Furniture & Soft Furn Office Furniture
South Lakeland District Council,http://opendatacommunities.org/id/district-council/south-lakeland,28/02/2017,Business Support Community Services,Internal Trading Accounts,,Southfield Garage,,13/02/2017,65286,1000.39,0,Repair VX14 LKL,380000,Vehicle Management
South Lakeland District Council,http://opendatacommunities.org/id/district-council/south-lakeland,28/02/2017,Business Support Community Services,Internal Trading Accounts,,Southfield Garage,,13/02/2017,65287,260,0,Repair VX14 LKL,380000,Vehicle Management
South Lakeland District Council,http://opendatacommunities.org/id/district-council/south-lakeland,28/02/2017,Business Support Community Services,Internal Trading Accounts,,Southfield Garage,,20/02/2017,65508,220,0,Repair SL014,380000,Vehicle Management
South Lakeland District Council,http://opendatacommunities.org/id/district-council/south-lakeland,28/02/2017,Business Support Community Services,Internal Trading Accounts,,Southfield Garage,,20/02/2017,65509,200,0,Repair SL014,380000,Vehicle Management
South Lakeland District Council,http://opendatacommunities.org/id/district-council/south-lakeland,28/02/2017,Business Support Community Services,Internal Trading Accounts,,Southfield Garage,,20/02/2017,65510,360,0,Body repair,380000,Vehicle Management
South Lakeland District Council,http://opendatacommunities.org/id/district-council/south-lakeland,28/02/2017,Business Support Community Services,Housing Services,http://opendatacommunities.org/def/concept/finance/sercop/objective/108,STATION HOUSE SURGERY,,13/02/2017,65207,25,0,Medical advice,311600,Healthcare Services
South Lakeland District Council,http://opendatacommunities.org/id/district-council/south-lakeland,28/02/2017,Policy & Partnerships,Cultural Environmental Regulatory & Planning Services,http://opendatacommunities.org/def/concept/finance/sercop/objective/104,Staveley Village Association,,13/02/2017,65296,24,0,Room hire of Staveley Village hall for,201700,Financial Services Grants
South Lakeland District Council,http://opendatacommunities.org/id/district-council/south-lakeland,28/02/2017,Business Support Community Services,Housing Services,http://opendatacommunities.org/def/concept/finance/sercop/objective/108,STEELES REMOVALS LTD,3082686,08/02/2017,65200,80,0,Storage unit,191900,Facilities Removals
South Lakeland District Council,http://opendatacommunities.org/id/district-council/south-lakeland,28/02/2017,Business Support Community Services,Internal Trading Accounts,,Studextract Ltd,8101587,13/02/2017,65327,295,0,Replace wheel bearing,381500,Vehicle Mgt Parts
South Lakeland District Council,http://opendatacommunities.org/id/district-council/south-lakeland,28/02/2017,Business Support Community Services,Internal Trading Accounts,,TAYLOR ENGINEERING & FABRICATIONS LTD,4989359,20/02/2017,65363,155.23,0,Switches,391200,Construction Engineering
South Lakeland District Council,http://opendatacommunities.org/id/district-council/south-lakeland,28/02/2017,Business Support Community Services,Internal Trading Accounts,,TAYLOR ENGINEERING & FABRICATIONS LTD,4989359,13/02/2017,65365,75.5,0,Switches,391200,Construction Engineering
South Lakeland District Council,http://opendatacommunities.org/id/district-council/south-lakeland,28/02/2017,Business Support Community Services,Internal Trading Accounts,,TAYLOR ENGINEERING & FABRICATIONS LTD,4989359,15/02/2017,65394,88.69,0,Switches,391200,Construction Engineering
South Lakeland District Council,http://opendatacommunities.org/id/district-council/south-lakeland,28/02/2017,Business Support Community Services,Internal Trading Accounts,,TECHNIJET LTD,2776601,01/02/2017,64851,108.92,0,Service & repair pressure washers,139999,Cleaning & Janitorial Not Elsewhere Clas
South Lakeland District Council,http://opendatacommunities.org/id/district-council/south-lakeland,28/02/2017,Business Support Community Services,Internal Trading Accounts,,TECHNIJET LTD,2776601,27/02/2017,65607,162.75,0,Service & repair pressure washers,139999,Cleaning & Janitorial Not Elsewhere Clas
South Lakeland District Council,http://opendatacommunities.org/id/district-council/south-lakeland,28/02/2017,Business Support Community Services,Internal Trading Accounts,,TECHNIJET LTD,2776601,27/02/2017,65608,141.38,0,Service & repair pressure washers,139999,Cleaning & Janitorial Not Elsewhere Clas
South Lakeland District Council,http://opendatacommunities.org/id/district-council/south-lakeland,28/02/2017,Environment and Housing,Housing,http://opendatacommunities.org/def/concept/finance/sercop/objective/108,The Excellent Ramp System Ltd,5369407,20/02/2017,65524,10150,0,"Hayfell Avenue, Kendal",250000,Housing
South Lakeland District Council,http://opendatacommunities.org/id/district-council/south-lakeland,28/02/2017,Environment and Housing,Housing Services,http://opendatacommunities.org/def/concept/finance/sercop/objective/108,The Oyster Partnership,5020374,06/02/2017,65082,462.91,0,Agency,261300,HR Recruitment & Assessment
South Lakeland District Council,http://opendatacommunities.org/id/district-council/south-lakeland,28/02/2017,Environment and Housing,Housing Services,http://opendatacommunities.org/def/concept/finance/sercop/objective/108,The Oyster Partnership,5020374,06/02/2017,65142,397.38,0,Agency staff - ,261300,HR Recruitment & Assessment
South Lakeland District Council,http://opendatacommunities.org/id/district-council/south-lakeland,28/02/2017,Environment and Housing,Housing Services,http://opendatacommunities.org/def/concept/finance/sercop/objective/108,The Oyster Partnership,5020374,15/02/2017,65429,429,0,Agency staff -,261300,HR Recruitment & Assessment
South Lakeland District Council,http://opendatacommunities.org/id/district-council/south-lakeland,28/02/2017,Environment and Housing,Housing Services,http://opendatacommunities.org/def/concept/finance/sercop/objective/108,The Oyster Partnership,5020374,27/02/2017,65583,418.7,0,Agency staff - ,261300,HR Recruitment & Assessment
South Lakeland District Council,http://opendatacommunities.org/id/district-council/south-lakeland,28/02/2017,Development Implementation,Cultural Environmental Regulatory & Planning Services,http://opendatacommunities.org/def/concept/finance/sercop/objective/104,THE PLAIN CREATIVE AGENCY LTD,6867950,20/02/2017,65529,630,0,Design & artwork for Northern Powerhouse,191000,Facilities Advertising
South Lakeland District Council,http://opendatacommunities.org/id/district-council/south-lakeland,28/02/2017,Human Resources,Central Services,http://opendatacommunities.org/def/concept/finance/sercop/objective/102,THE QUAKER TAPESTRY KENDAL LTD,,06/02/2017,65087,125,0,late cancellation fee,291400,Arts & Leisure Services Sport & Fitness
South Lakeland District Council,http://opendatacommunities.org/id/district-council/south-lakeland,28/02/2017,Financial Services,Central Services,http://opendatacommunities.org/def/concept/finance/sercop/objective/102,The Salary Exchange Limited,6784632,27/02/2017,65668,41.63,0,Service charge for Computershare,260000,HR
South Lakeland District Council,http://opendatacommunities.org/id/district-council/south-lakeland,28/02/2017,Development Implementation,Central Services,http://opendatacommunities.org/def/concept/finance/sercop/objective/102,THOMAS GRAHAM & SONS LTD,656879,06/02/2017,65122,235.44,0,3 boxes CFold paperhand towels Blue 1,101400,Building General Materials
South Lakeland District Council,http://opendatacommunities.org/id/district-council/south-lakeland,28/02/2017,Development Implementation,Cultural Environmental Regulatory & Planning Services,http://opendatacommunities.org/def/concept/finance/sercop/objective/104,THOMAS GRAHAM & SONS LTD,656879,06/02/2017,65122,47.94,0,3 boxes CFold paperhand towels Blue 1,101400,Building General Materials
South Lakeland District Council,http://opendatacommunities.org/id/district-council/south-lakeland,28/02/2017,Kendal Town Hall,External Trading Accounts,,THOMAS GRAHAM & SONS LTD,656879,15/02/2017,65455,7.7,0,2 boxes of nitrile powder free gloves,101400,Building General Materials
South Lakeland District Council,http://opendatacommunities.org/id/district-council/south-lakeland,28/02/2017,Environment and Housing,Housing,http://opendatacommunities.org/def/concept/finance/sercop/objective/108,THYSSENKRUPP ENCASA,1166449,13/02/2017,65379,4360,0,"Fernleigh Avenue, Grange-over-Sands,",321311,Social Care Supplies Equipment
South Lakeland District Council,http://opendatacommunities.org/id/district-council/south-lakeland,28/02/2017,Business Support Community Services,Central Services,http://opendatacommunities.org/def/concept/finance/sercop/objective/102,TOUCHDOWN OFFICES LTD,4844444,27/02/2017,65374,206.58,0,Call charges 2016/17,271700,ICT Telecommunications Fixed
South Lakeland District Council,http://opendatacommunities.org/id/district-council/south-lakeland,28/02/2017,Development Implementation,Cultural Environmental Regulatory & Planning Services,http://opendatacommunities.org/def/concept/finance/sercop/objective/104,Treble3 Design Ltd,8694514,20/02/2017,65544,260,0,Banners for Heversham & Hincaster,271515,ICT Website Development
South Lakeland District Council,http://opendatacommunities.org/id/district-council/south-lakeland,28/02/2017,Development Implementation,Cultural Environmental Regulatory & Planning Services,http://opendatacommunities.org/def/concept/finance/sercop/objective/104,UK Northern Powerhouse Ltd,9532586,01/02/2017,65006,4125,0,SLDC/InvestinSouthlakeland - Northern,151000,Consultancy Business
South Lakeland District Council,http://opendatacommunities.org/id/district-council/south-lakeland,28/02/2017,Development Implementation,Cultural Environmental Regulatory & Planning Services,http://opendatacommunities.org/def/concept/finance/sercop/objective/104,UK Northern Powerhouse Ltd,9532586,06/02/2017,65117,400,0,1 x one day conf/exh pass (Tues 21st,151000,Consultancy Business
South Lakeland District Council,http://opendatacommunities.org/id/district-council/south-lakeland,28/02/2017,Business Support Community Services,Housing Services,http://opendatacommunities.org/def/concept/finance/sercop/objective/108,ULTRACARE PROPERTY MANAGEMENT LTD,5020554,01/02/2017,65062,1180,0,Decorating work and repair work,191700,Facilities Property Management
South Lakeland District Council,http://opendatacommunities.org/id/district-council/south-lakeland,28/02/2017,Business Support Community Services,Housing Services,http://opendatacommunities.org/def/concept/finance/sercop/objective/108,ULTRACARE PROPERTY MANAGEMENT LTD,5020554,27/02/2017,65628,510,0,Repair work,191700,Facilities Property Management
South Lakeland District Council,http://opendatacommunities.org/id/district-council/south-lakeland,28/02/2017,Revenues and Benefits,,,Ulverston BID Company Ltd,9761005,06/02/2017,65084,3890.99,0,Collection figures for December 2016,201700,Financial Services Grants
South Lakeland District Council,http://opendatacommunities.org/id/district-council/south-lakeland,28/02/2017,Revenues and Benefits,,,Ulverston BID Company Ltd,9761005,13/02/2017,65278,2621.82,0,Collection figures for January 2017,201700,Financial Services Grants
South Lakeland District Council,http://opendatacommunities.org/id/district-council/south-lakeland,28/02/2017,Human Resources,SLDC as Agent,,Ulverston Community Enterprises Ltd,8904327,13/02/2017,65106,76.66,0,Hire of Hall for CSP,201700,Financial Services Grants
South Lakeland District Council,http://opendatacommunities.org/id/district-council/south-lakeland,28/02/2017,Policy & Partnerships,SLDC as Agent,,Ulverston Community Enterprises Ltd,8904327,13/02/2017,65295,83.33,0,Hire of Ulverston Coronation Hall on,201700,Financial Services Grants
South Lakeland District Council,http://opendatacommunities.org/id/district-council/south-lakeland,28/02/2017,Human Resources,Cultural Environmental Regulatory & Planning Services,http://opendatacommunities.org/def/concept/finance/sercop/objective/104,Ulverston Methodist Church,,13/02/2017,65272,18.5,0,Room booking for Low furness and,192110,Facilities Room Hire
South Lakeland District Council,http://opendatacommunities.org/id/district-council/south-lakeland,28/02/2017,Business Support Community Services,Cultural Environmental Regulatory & Planning Services,http://opendatacommunities.org/def/concept/finance/sercop/objective/104,UNITED UTILITIES WATER PLC,2366678,20/02/2017,65306,359.66,0,Private Water Analysis - December 2016,371300,Utilities Water
South Lakeland District Council,http://opendatacommunities.org/id/district-council/south-lakeland,28/02/2017,Legal Services,Central Services,http://opendatacommunities.org/def/concept/finance/sercop/objective/102,VENN GROUP RECRUITMENT SOLUTIONS,,01/02/2017,64996,1739.63,0,Fees from 8.01.17 for,261400,HR Temporary & Agency Staff
South Lakeland District Council,http://opendatacommunities.org/id/district-council/south-lakeland,28/02/2017,Legal Services,Central Services,http://opendatacommunities.org/def/concept/finance/sercop/objective/102,VENN GROUP RECRUITMENT SOLUTIONS,,13/02/2017,65133,1739.63,0,Fees from 8.01.17 for,261400,HR Temporary & Agency Staff
South Lakeland District Council,http://opendatacommunities.org/id/district-council/south-lakeland,28/02/2017,Legal Services,Central Services,http://opendatacommunities.org/def/concept/finance/sercop/objective/102,VENN GROUP RECRUITMENT SOLUTIONS,,20/02/2017,65372,1654.77,0,Fees from 8.01.17 for,261400,HR Temporary & Agency Staff
South Lakeland District Council,http://opendatacommunities.org/id/district-council/south-lakeland,28/02/2017,Legal Services,Central Services,http://opendatacommunities.org/def/concept/finance/sercop/objective/102,VENN GROUP RECRUITMENT SOLUTIONS,,27/02/2017,65575,1654.77,0,Fees from 8.01.17 for,261400,HR Temporary & Agency Staff
South Lakeland District Council,http://opendatacommunities.org/id/district-council/south-lakeland,28/02/2017,Business Support Community Services,Housing Services,http://opendatacommunities.org/def/concept/finance/sercop/objective/108,Vicki Hastings,,15/02/2017,65454,25,0,Medical report,311600,Healthcare Services
South Lakeland District Council,http://opendatacommunities.org/id/district-council/south-lakeland,28/02/2017,Business Support Community Services,Housing Services,http://opendatacommunities.org/def/concept/finance/sercop/objective/108,Vigilant Security Services UK Ltd,5914271,13/02/2017,65373,2376,0,Payment for security guard at TVF,192213,Facilities Security Manned Guarding
South Lakeland District Council,http://opendatacommunities.org/id/district-council/south-lakeland,28/02/2017,ICT Group,Central Services,http://opendatacommunities.org/def/concept/finance/sercop/objective/102,VODAFONE LIMITED,1471587,20/02/2017,65009,100,0,Mobile phone call costs,271800,ICT Telecommunications Mobile
South Lakeland District Council,http://opendatacommunities.org/id/district-council/south-lakeland,28/02/2017,ICT Group,Central Services,http://opendatacommunities.org/def/concept/finance/sercop/objective/102,VODAFONE LIMITED,1471587,01/02/2017,65045,36,0,Mobile phone call costs,271800,ICT Telecommunications Mobile
South Lakeland District Council,http://opendatacommunities.org/id/district-council/south-lakeland,28/02/2017,Business Support Community Services,Internal Trading Accounts,,VOLVO GROUP UK LTD,2190944,13/02/2017,65269,380.17,0,Belt,381000,Vehicle Mgt Commercial
South Lakeland District Council,http://opendatacommunities.org/id/district-council/south-lakeland,28/02/2017,Business Support Community Services,Internal Trading Accounts,,VOLVO GROUP UK LTD,2190944,13/02/2017,65349,85,0,Paper rolls,381000,Vehicle Mgt Commercial
South Lakeland District Council,http://opendatacommunities.org/id/district-council/south-lakeland,28/02/2017,Business Support Community Services,Cultural Environmental Regulatory & Planning Services,http://opendatacommunities.org/def/concept/finance/sercop/objective/104,VWR International Ltd,1932827,27/02/2017,65680,51.55,0,PWS Sundries,182030,Environment Water Assessment & Treatment
South Lakeland District Council,http://opendatacommunities.org/id/district-council/south-lakeland,28/02/2017,Kendal Town Hall,Cultural Environmental Regulatory & Planning Services,http://opendatacommunities.org/def/concept/finance/sercop/objective/104,W MCCLURE LTD,685360,15/02/2017,65399,36.5,0,10 boxes of UHT semi skimmed milk,111200,Catering Food & Beverages
South Lakeland District Council,http://opendatacommunities.org/id/district-council/south-lakeland,28/02/2017,Democratic Services,Central Services,http://opendatacommunities.org/def/concept/finance/sercop/objective/102,WEIGHTMANS LLP,OC326117,06/02/2017,65075,1124,0,Counsel fees from Weightmans ,281300,Legal Services Legal Opinion
South Lakeland District Council,http://opendatacommunities.org/id/district-council/south-lakeland,28/02/2017,Revenues and Benefits,Central Services,http://opendatacommunities.org/def/concept/finance/sercop/objective/102,WEIGHTMANS LLP,OC326117,06/02/2017,65160,156,0,Recovery from  -,281300,Legal Services Legal Opinion
South Lakeland District Council,http://opendatacommunities.org/id/district-council/south-lakeland,28/02/2017,Human Resources,Central Services,http://opendatacommunities.org/def/concept/finance/sercop/objective/102,WEIGHTMANS LLP,OC326117,13/02/2017,65309,470,0,Bankruptcy - ,281300,Legal Services Legal Opinion
South Lakeland District Council,http://opendatacommunities.org/id/district-council/south-lakeland,28/02/2017,Business Support Community Services,Cultural Environmental Regulatory & Planning Services,http://opendatacommunities.org/def/concept/finance/sercop/objective/104,WESTMORLAND VETERINARY GROUP,,13/02/2017,65162,108.5,0,Vet Inspection Fees,181500,Environment Animal Services
South Lakeland District Council,http://opendatacommunities.org/id/district-council/south-lakeland,28/02/2017,Development Implementation,Cultural Environmental Regulatory & Planning Services,http://opendatacommunities.org/def/concept/finance/sercop/objective/104,WiFi Spark Ltd,,01/02/2017,65071,402.18,0,Kendal Town Centre Wifi - 12 months,271800,ICT Telecommunications Mobile
South Lakeland District Council,http://opendatacommunities.org/id/district-council/south-lakeland,28/02/2017,Business Support Community Services,Central Services,http://opendatacommunities.org/def/concept/finance/sercop/objective/102,Wildy & Sons Ltd,348459,08/02/2017,65197,58,0,ENQUIRIES OF LOCAL AUTHORITIES AND WATER,281200,Legal Services General Support
South Lakeland District Council,http://opendatacommunities.org/id/district-council/south-lakeland,28/02/2017,Social Enterprise Admin,Cultural Environmental Regulatory & Planning Services,http://opendatacommunities.org/def/concept/finance/sercop/objective/104,WINDERMERE TOWN COUNCIL,,01/02/2017,64944,5481.71,0,For contribution from SLDC for water use,908000,Public Bodies Council support services
South Lakeland District Council,http://opendatacommunities.org/id/district-council/south-lakeland,28/02/2017,Leisure and Wellbeing,Cultural Environmental Regulatory & Planning Services,http://opendatacommunities.org/def/concept/finance/sercop/objective/104,Woodmad and Woodshed,,15/02/2017,65396,2500,0,For natural playground works at Rothay,241210,Horticultural Tree Trimming
South Lakeland District Council,http://opendatacommunities.org/id/district-council/south-lakeland,28/02/2017,Leisure and Wellbeing,Cultural Environmental Regulatory & Planning Services,http://opendatacommunities.org/def/concept/finance/sercop/objective/104,Woodmad and Woodshed,,27/02/2017,65620,250,0,Move log from Kendal Green to Castle,241210,Horticultural Tree Trimming
